Workbook

Sheet ΕΙΣΑΓΩΓΗ (hidden)
C9: ΥΠΟ ΚΑΤΑΣΚΕΥΗ

Sheet ΟΔΗΓΙΕΣ
C5: ΟΔΗΓΙΕΣ ΓΙΑ ΤΗΝ ΕΚΤΕΛΕΣΗ ΤΗΣ ΕΦΑΡΜΟΓΗΣ
C7: 1ο ΒΗΜΑ: | D7: Στο κάτω μέρος της οθόνης επιλέγουμε την καρτέλα < ΕΙΣΑΓΩΓΗ ΒΑΘΜΟΛΟΓΙΑΣ >.
C8: 2ο ΒΗΜΑ: | D8: Στην καρτέλλα αυτή αφού εισάγουμε το επιστημονικό πεδίο μας (1,2,3,4) κατόπιν καταχωρούμε τις βαθμολογίες στα τέσσερα μαθήματα.
C9: 3ο ΒΗΜΑ: | D9: Καταχωρούμε το μέσο όρο βαθμολογίας των πανελληνίων (Τον υποθετικό μέχρι να ανακοινωθεί ο πραγματικός ή τον πραγματικό όταν ανακοινωθεί).
C10: 4ο ΒΗΜΑ: | D10: Επιλέγουμε την αντίστοιχη καρτέλα του πεδίου μας για να δούμε τις σχολές.
C12: * * | D12: Η εφαρμογή δεν λαμβάνει υπ΄όψιν της στην επεξεργασία της βαθμολογίας, τους βαθμούς που ίσως υπάρχουν σε ειδικά μαθήματα.
D15: Για το φροντιστήριο ΟΡΟΣΗΜΟ ΠΕΙΡΑΙΑ
D16: Γρηγόρης Μπαξεβανίδης

Sheet ΕΙΣΑΓΩΓΗ ΒΑΘΜΟΛΟΓΙΑΣ
E5: ΒΑΘΜΟΙ ΠΑΝΕΛΛΗΝΙΩΝ
B7: ΕΠΙΣΤΗΜΟΝΙΚΟ ΠΕΔΙΟ: (1, 2, 3, 4) | C7: 2 | E7: =IF(C7=1,"ΑΡΧΑΙΑ",IF(C7=2,"ΜΑΘΗΜΑΤΙΚΑ",IF(C7=3,"ΒΙΟΛΟΓΙΑ","ΜΑΘΗΜΑΤΙΚΑ"))) -> ΜΑΘΗΜΑΤΙΚΑ | F7: 12
E8: =IF(C7=1,"ΙΣΤΟΡΙΑ",IF(C7=2,"ΦΥΣΙΚΗ",IF(C7=3,"ΧΗΜΕΙΑ","ΟΙΚΟΝΟΜΙΑ"))) -> ΦΥΣΙΚΗ | F8: 14 | J8: ΤΟ ΣΥΝΟΛΟ ΤΩΝ ΜΟΡΙΩΝ ΣΟΥ ΕΙΝΑΙ :
B9: =IF(OR(C7>4, C7<1),"ΛΑΘΟΣ ΕΙΣΑΓΩΓΗ"," ") ->  | E9: =IF(C7=1,"ΚΟΙΝΩΝΙΟΛΟΓΙΑ",IF(C7=2,"ΧΗΜΕΙΑ",IF(C7=3,"ΦΥΣΙΚΗ","ΠΛΗΡΟΦΟΡΙΚΗ"))) -> ΧΗΜΕΙΑ | F9: 12 | K9: =100*(SUM(F7:F10)*2+F7*1.3+F8*0.7) -> 12540
E10: ΓΛΩΣΣΑ | F10: 12
K11: =H11 -> 
E14: ΜΕΣΟΣ ΟΡΟΣ ΒΑΘΜΟΛΟΓΙΑΣ ΠΑΝΕΛΛΗΝΙΩΝ ΣΤΑ ΤΕΣΣΕΡΑ ΜΑΘΗΜΑΤΑ | F14: 12000

Sheet 1ο ΠΕΔΙΟ-ΑΝΘΡ ΝΟΜΙΚΕΣ
A6: ΠΕΔΙΟ 1ο: ΑΝΘΡΩΠΙΣΤΙΚΕΣ - ΝΟΜΙΚΕΣ ΣΧΟΛΕΣ
A7: ΚΩΔΙΚΟΣ | B7: ΣΧΟΛΗ/ΤΜΗΜΑ | C7: ΠΟΛΗ | D7: ΕΙΣΑΚΤΕΟΙ | E7: ΣΕΒΕ | F7: ΕΒΕ | G7: ΑΠΟΤΕΛΕΣΜΑ
A8: ΜΗΧΑΝΟΓΡ | D8: 2021 (90%) | E8: 2021 | F8: 2021 (90%)
A9: 101 | B9: Θεολογίας, ΕΚΠΑ | C9: Αθήνα | D9: 215 | E9: 0.8 | F9: =E9*'ΒΟΗΘ'!D3 -> 9600 | G9: =IF((F9<='ΒΟΗΘ'!B3),"ΕΠΙΤΥΧΙΑ","") -> ΕΠΙΤΥΧΙΑ
A10: 102 | B10: Φιλοσοφίας, Πατρών | C10: Πάτρα | D10: 162 | E10: 0.8 | F10: =E10*'ΒΟΗΘ'!D4 -> 9600 | G10: =IF((F10<='ΒΟΗΘ'!B4),"ΕΠΙΤΥΧΙΑ","") -> ΕΠΙΤΥΧΙΑ
A11: 103 | B11: Θεολογίας | C11: Θεσσαλονίκη | D11: 191 | E11: 0.8 | F11: =E11*'ΒΟΗΘ'!D5 -> 9600 | G11: =IF((F11<='ΒΟΗΘ'!B5),"ΕΠΙΤΥΧΙΑ","") -> ΕΠΙΤΥΧΙΑ
A12: 104 | B12: Ιστορίας, Αρχαιολογίας & Διαχείρισης Πολιτισμικών Αγαθών, Πελοποννήσου | C12: Καλαμάτα | D12: 143 | E12: 0.9 | F12: =E12*'ΒΟΗΘ'!D6 -> 10800 | G12: =IF((F12<='ΒΟΗΘ'!B6),"ΕΠΙΤΥΧΙΑ","") -> ΕΠΙΤΥΧΙΑ
A13: 105 | B13: Κοινωνικής Θεολογίας & Θρησκειολογίας (πρώην Κοιν Θεολογίας), ΕΚΠΑ | C13: Αθήνα | D13: 238 | E13: 0.8 | F13: =E13*'ΒΟΗΘ'!D7 -> 9600 | G13: =IF((F13<='ΒΟΗΘ'!B7),"ΕΠΙΤΥΧΙΑ","") -> ΕΠΙΤΥΧΙΑ
A14: 106 | B14: Ελληνικής Φιλολογίας, Θράκης | C14: Κομοτηνή | D14: 195 | E14: 0.8 | F14: =E14*'ΒΟΗΘ'!D8 -> 9600 | G14: =IF((F14<='ΒΟΗΘ'!B8),"ΕΠΙΤΥΧΙΑ","") -> ΕΠΙΤΥΧΙΑ
A15: 107 | B15: Κοινωνικής Θεολογίας και Χριστ. Πολιτισμού (πρώην Ποιμ & Κοιν Θεολογίας) | C15: Θεσσαλονίκη | D15: 172 | E15: 0.8 | F15: =E15*'ΒΟΗΘ'!D9 -> 9600 | G15: =IF((F15<='ΒΟΗΘ'!B9),"ΕΠΙΤΥΧΙΑ","") -> ΕΠΙΤΥΧΙΑ
A16: 108 | B16: Ιστορίας & Εθνολογίας, Θράκης | C16: Κομοτηνή | D16: 191 | E16: 0.8 | F16: =E16*'ΒΟΗΘ'!D10 -> 9600 | G16: =IF((F16<='ΒΟΗΘ'!B10),"ΕΠΙΤΥΧΙΑ","") -> ΕΠΙΤΥΧΙΑ
A17: 109 | B17: Φιλολογίας, ΕΚΠΑ | C17: Αθήνα | D17: 296 | E17: 1 | F17: =E17*'ΒΟΗΘ'!D11 -> 12000 | G17: =IF((F17<='ΒΟΗΘ'!B11),"ΕΠΙΤΥΧΙΑ","") -> ΕΠΙΤΥΧΙΑ
A18: 110 | B18: Ιστορίας & Αρχαιολογίας, ΕΚΠΑ | C18: Αθήνα | D18: 191 | E18: 1 | F18: =E18*'ΒΟΗΘ'!D12 -> 12000 | G18: =IF((F18<='ΒΟΗΘ'!B12),"ΕΠΙΤΥΧΙΑ","") -> ΕΠΙΤΥΧΙΑ
A19: 111 | B19: Φιλολογίας, ΑΠΘ | C19: Θεσσαλονίκη | D19: 202 | E19: 1.2 | F19: =E19*'ΒΟΗΘ'!D13 -> 14400 | G19: =IF((F19<='ΒΟΗΘ'!B13),"ΕΠΙΤΥΧΙΑ","") -> 
A20: 112 | B20: Ιστορίας & Αρχαιολογίας, ΑΠΘ | C20: Θεσσαλονίκη | D20: 144 | E20: 1.2 | F20: =E20*'ΒΟΗΘ'!D14 -> 14400 | G20: =IF((F20<='ΒΟΗΘ'!B14),"ΕΠΙΤΥΧΙΑ","") -> 
A21: 113 | B21: Φιλολογίας, Ιωαννίνων | C21: Ιωάννινα | D21: 220 | E21: 0.85 | F21: =E21*'ΒΟΗΘ'!D15 -> 10200 | G21: =IF((F21<='ΒΟΗΘ'!B15),"ΕΠΙΤΥΧΙΑ","") -> ΕΠΙΤΥΧΙΑ
A22: 114 | B22: Ιστορίας & Αρχαιολογίας, Ιωαννίνων | C22: Ιωάννινα | D22: 276 | E22: 0.9 | F22: =E22*'ΒΟΗΘ'!D16 -> 10800 | G22: =IF((F22<='ΒΟΗΘ'!B16),"ΕΠΙΤΥΧΙΑ","") -> ΕΠΙΤΥΧΙΑ
A23: 115 | B23: Φιλολογίας, Κρήτης | C23: Ρέθυμνο | D23: 172 | E23: 0.8 | F23: =E23*'ΒΟΗΘ'!D17 -> 9600 | G23: =IF((F23<='ΒΟΗΘ'!B17),"ΕΠΙΤΥΧΙΑ","") -> ΕΠΙΤΥΧΙΑ
A24: 116 | B24: Ιστορίας & Αρχαιολογίας, Κρήτης | C24: Ρέθυμνο | D24: 167 | E24: 1 | F24: =E24*'ΒΟΗΘ'!D18 -> 12000 | G24: =IF((F24<='ΒΟΗΘ'!B18),"ΕΠΙΤΥΧΙΑ","") -> ΕΠΙΤΥΧΙΑ
A25: 117 | B25: Νομικής | C25: Αθήνα | D25: 360 | E25: 1.2 | F25: =E25*'ΒΟΗΘ'!D19 -> 14400 | G25: =IF((F25<='ΒΟΗΘ'!B19),"ΕΠΙΤΥΧΙΑ","") -> 
A26: 119 | B26: Νομικής | C26: Θεσσαλονίκη | D26: 333 | E26: 1.2 | F26: =E26*'ΒΟΗΘ'!D20 -> 14400 | G26: =IF((F26<='ΒΟΗΘ'!B20),"ΕΠΙΤΥΧΙΑ","") -> 
A27: 120 | B27: Φιλοσοφίας & Παιδ/κής, ΑΠΘ | C27: Θεσσαλονίκη | D27: 157 | E27: 1.2 | F27: =E27*'ΒΟΗΘ'!D21 -> 14400 | G27: =IF((F27<='ΒΟΗΘ'!B21),"ΕΠΙΤΥΧΙΑ","") -> 
A28: 121 | B28: Νομικής, Θράκης | C28: Κομοτηνή | D28: 455 | E28: 1.2 | F28: =E28*'ΒΟΗΘ'!D22 -> 14400 | G28: =IF((F28<='ΒΟΗΘ'!B22),"ΕΠΙΤΥΧΙΑ","") -> 
A29: 122 | B29: Φιλοσοφίας (πρώην Φιλοσοφίας - Παιδ/κής & Ψυχ/γίας), Ιωαννίνων | C29: Ιωάννινα | D29: 225 | E29: 0.8 | F29: =E29*'ΒΟΗΘ'!D23 -> 9600 | G29: =IF((F29<='ΒΟΗΘ'!B23),"ΕΠΙΤΥΧΙΑ","") -> ΕΠΙΤΥΧΙΑ
A30: 123 | B30: Πολιτικής Επιστήμης & Δημόσιας Διοίκησης, ΕΚΠΑ | C30: Αθήνα | D30: 189 | E30: 1.2 | F30: =E30*'ΒΟΗΘ'!D24 -> 14400 | G30: =IF((F30<='ΒΟΗΘ'!B24),"ΕΠΙΤΥΧΙΑ","") -> 
A31: 124 | B31: Δημόσιας Διοίκησης, Παντείου | C31: Αθήνα | D31: 265 | E31: 1.2 | F31: =E31*'ΒΟΗΘ'!D25 -> 14400 | G31: =IF((F31<='ΒΟΗΘ'!B25),"ΕΠΙΤΥΧΙΑ","") -> 
A32: 125 | B32: Πολιτικής Επιστήμης & Ιστορίας, Παντείου | C32: Αθήνα | D32: 138 | E32: 1 | F32: =E32*'ΒΟΗΘ'!D26 -> 12000 | G32: =IF((F32<='ΒΟΗΘ'!B26),"ΕΠΙΤΥΧΙΑ","") -> ΕΠΙΤΥΧΙΑ
A33: 126 | B33: Κοινωνιολογίας, Παντείου | C33: Αθήνα | D33: 133 | E33: 0.9 | F33: =E33*'ΒΟΗΘ'!D27 -> 10800 | G33: =IF((F33<='ΒΟΗΘ'!B27),"ΕΠΙΤΥΧΙΑ","") -> ΕΠΙΤΥΧΙΑ
A34: 127 | B34: Αγγλικής Γλώσσας & Φιλολογίας, ΕΚΠΑ | C34: Αθήνα | D34: 202 | E34: 0.9 | F34: =E34*'ΒΟΗΘ'!D28 -> 10800 | G34: =IF((F34<='ΒΟΗΘ'!B28),"ΕΠΙΤΥΧΙΑ","") -> ΕΠΙΤΥΧΙΑ
A35: 128 | B35: Παιδαγωγικό Δημοτικής Εκπ/σης, ΕΚΠΑ | C35: Αθήνα | D35: 180 | E35: 1.2 | F35: =E35*'ΒΟΗΘ'!D29 -> 14400 | G35: =IF((F35<='ΒΟΗΘ'!B29),"ΕΠΙΤΥΧΙΑ","") -> 
A36: 129 | B36: Αγγλικής Γλώσσας & Φιλολογίας, ΑΠΘ | C36: Θεσσαλονίκη | D36: 153 | E36: 1.1 | F36: =E36*'ΒΟΗΘ'!D30 -> 13200 | G36: =IF((F36<='ΒΟΗΘ'!B30),"ΕΠΙΤΥΧΙΑ","") -> 
A37: 130 | B37: Παιδαγωγικό Δημοτικής Εκπ/σης, Ιωαννίνων | C37: Ιωάννινα | D37: 209 | E37: 0.8 | F37: =E37*'ΒΟΗΘ'!D31 -> 9600 | G37: =IF((F37<='ΒΟΗΘ'!B31),"ΕΠΙΤΥΧΙΑ","") -> ΕΠΙΤΥΧΙΑ
A38: 131 | B38: Γαλλικής Γλώσσας & Φιλολογίας, ΕΚΠΑ | C38: Αθήνα | D38: 124 | E38: 0.8 | F38: =E38*'ΒΟΗΘ'!D32 -> 9600 | G38: =IF((F38<='ΒΟΗΘ'!B32),"ΕΠΙΤΥΧΙΑ","") -> ΕΠΙΤΥΧΙΑ
A39: 132 | B39: Παιδαγωγικό Δημοτικής Εκπ/σης, Κρήτης | C39: Ρέθυμνο | D39: 169 | E39: 1 | F39: =E39*'ΒΟΗΘ'!D33 -> 12000 | G39: =IF((F39<='ΒΟΗΘ'!B33),"ΕΠΙΤΥΧΙΑ","") -> ΕΠΙΤΥΧΙΑ
A40: 133 | B40: Γαλλικής Γλώσσας & Φιλολογίας, ΑΠΘ | C40: Θεσσαλονίκη | D40: 105 | E40: 0.8 | F40: =E40*'ΒΟΗΘ'!D34 -> 9600 | G40: =IF((F40<='ΒΟΗΘ'!B34),"ΕΠΙΤΥΧΙΑ","") -> ΕΠΙΤΥΧΙΑ
A41: 134 | B41: Επιστημών Προσχολ. Αγωγής & Εκπ/σης, ΑΠΘ | C41: Θεσσαλονίκη | D41: 130 | E41: 0.8 | F41: =E41*'ΒΟΗΘ'!D35 -> 9600 | G41: =IF((F41<='ΒΟΗΘ'!B35),"ΕΠΙΤΥΧΙΑ","") -> ΕΠΙΤΥΧΙΑ
A42: 135 | B42: Γερμανικής Γλώσσας & Φιλολογίας, ΕΚΠΑ | C42: Αθήνα | D42: 133 | E42: 0.8 | F42: =E42*'ΒΟΗΘ'!D36 -> 9600 | G42: =IF((F42<='ΒΟΗΘ'!B36),"ΕΠΙΤΥΧΙΑ","") -> ΕΠΙΤΥΧΙΑ
A43: 136 | B43: Επιστημών της Εκπαίδευσης & της Αγωγής στην Προσχολική Ηλικία, Πατρών | C43: Πάτρα | D43: 143 | E43: 0.8 | F43: =E43*'ΒΟΗΘ'!D37 -> 9600 | G43: =IF((F43<='ΒΟΗΘ'!B37),"ΕΠΙΤΥΧΙΑ","") -> ΕΠΙΤΥΧΙΑ
A44: 137 | B44: Γερμανικής Γλώσσας & Φιλολογίας, ΑΠΘ | C44: Θεσσαλονίκη | D44: 124 | E44: 0.8 | F44: =E44*'ΒΟΗΘ'!D38 -> 9600 | G44: =IF((F44<='ΒΟΗΘ'!B38),"ΕΠΙΤΥΧΙΑ","") -> ΕΠΙΤΥΧΙΑ
A45: 138 | B45: Φιλοσοφικών & Κοινωνικών Σπουδών, Κρήτης | C45: Ρέθυμνο | D45: 187 | E45: 0.8 | F45: =E45*'ΒΟΗΘ'!D39 -> 9600 | G45: =IF((F45<='ΒΟΗΘ'!B39),"ΕΠΙΤΥΧΙΑ","") -> ΕΠΙΤΥΧΙΑ
A46: 139 | B46: Ιταλικής Γλώσσας & Φιλολογίας, ΑΠΘ | C46: Θεσσαλονίκη | D46: 85 | E46: 0.8 | F46: =E46*'ΒΟΗΘ'!D40 -> 9600 | G46: =IF((F46<='ΒΟΗΘ'!B40),"ΕΠΙΤΥΧΙΑ","") -> ΕΠΙΤΥΧΙΑ
A47: 140 | B47: Παιδαγωγικό Δημοτικής Εκπ/σης, ΑΠΘ | C47: Θεσσαλονίκη | D47: 180 | E47: 0.8 | F47: =E47*'ΒΟΗΘ'!D41 -> 9600 | G47: =IF((F47<='ΒΟΗΘ'!B41),"ΕΠΙΤΥΧΙΑ","") -> ΕΠΙΤΥΧΙΑ
A48: 142 | B48: Παιδαγωγικό Δημοτικής Εκπ/σης, Θράκης | C48: Αλεξ/πολη | D48: 216 | E48: 0.8 | F48: =E48*'ΒΟΗΘ'!D42 -> 9600 | G48: =IF((F48<='ΒΟΗΘ'!B42),"ΕΠΙΤΥΧΙΑ","") -> ΕΠΙΤΥΧΙΑ
A49: 143 | B49: Παιδαγωγικό Δημοτικής Εκπ/σης, Αιγαίου | C49: Ρόδος | D49: 306 | E49: 0.8 | F49: =E49*'ΒΟΗΘ'!D43 -> 9600 | G49: =IF((F49<='ΒΟΗΘ'!B43),"ΕΠΙΤΥΧΙΑ","") -> ΕΠΙΤΥΧΙΑ
A50: 145 | B50: Ιστορίας, Ιονίου | C50: Κέρκυρα | D50: 172 | E50: 0.9 | F50: =E50*'ΒΟΗΘ'!D44 -> 10800 | G50: =IF((F50<='ΒΟΗΘ'!B44),"ΕΠΙΤΥΧΙΑ","") -> ΕΠΙΤΥΧΙΑ
A51: 146 | B51: Θεατρικών Σπουδών, ΕΚΠΑ | C51: Αθήνα | D51: 86 | E51: 0.9 | F51: =E51*'ΒΟΗΘ'!D45 -> 10800 | G51: =IF((F51<='ΒΟΗΘ'!B45),"ΕΠΙΤΥΧΙΑ","") -> ΕΠΙΤΥΧΙΑ
A52: 147 | B52: Δημοσιογραφίας & Μέσων Μαζικής Επικοινωνίας | C52: Θεσσαλονίκη | D52: 108 | E52: 0.9 | F52: =E52*'ΒΟΗΘ'!D46 -> 10800 | G52: =IF((F52<='ΒΟΗΘ'!B46),"ΕΠΙΤΥΧΙΑ","") -> ΕΠΙΤΥΧΙΑ
A53: 148 | B53: Επικοινωνίας & Μέσων Μαζικής Ενημέρωσης | C53: Αθήνα | D53: 120 | E53: 1 | F53: =E53*'ΒΟΗΘ'!D47 -> 12000 | G53: =IF((F53<='ΒΟΗΘ'!B47),"ΕΠΙΤΥΧΙΑ","") -> ΕΠΙΤΥΧΙΑ
A54: 149 | B54: Κοινωνιολογίας, Κρήτης | C54: Ρέθυμνο | D54: 159 | E54: 0.8 | F54: =E54*'ΒΟΗΘ'!D48 -> 9600 | G54: =IF((F54<='ΒΟΗΘ'!B48),"ΕΠΙΤΥΧΙΑ","") -> ΕΠΙΤΥΧΙΑ
A55: 151 | B55: Ψυχολογίας, Κρήτης | C55: Ρέθυμνο | D55: 172 | E55: 1.1 | F55: =E55*'ΒΟΗΘ'!D49 -> 13200 | G55: =IF((F55<='ΒΟΗΘ'!B49),"ΕΠΙΤΥΧΙΑ","") -> 
A56: 153 | B56: Επικοινωνίας Μέσων & Πολιτισμού, Παντείου | C56: Αθήνα | D56: 133 | E56: 1 | F56: =E56*'ΒΟΗΘ'!D50 -> 12000 | G56: =IF((F56<='ΒΟΗΘ'!B50),"ΕΠΙΤΥΧΙΑ","") -> ΕΠΙΤΥΧΙΑ
A57: 154 | B57: Εκπαίδευσης & Αγωγής στην Προσχ. Ηλικία, ΕΚΠΑ | C57: Αθήνα | D57: 105 | E57: 0.8 | F57: =E57*'ΒΟΗΘ'!D51 -> 9600 | G57: =IF((F57<='ΒΟΗΘ'!B51),"ΕΠΙΤΥΧΙΑ","") -> ΕΠΙΤΥΧΙΑ
A58: 156 | B58: Παιδαγωγικό Νηπιαγωγών | C58: Ιωάννινα | D58: 223 | E58: 0.8 | F58: =E58*'ΒΟΗΘ'!D52 -> 9600 | G58: =IF((F58<='ΒΟΗΘ'!B52),"ΕΠΙΤΥΧΙΑ","") -> ΕΠΙΤΥΧΙΑ
A59: 158 | B59: Παιδαγωγικό Προσχολ. Εκπ/σης, Κρήτης | C59: Ρέθυμνο | D59: 152 | E59: 1 | F59: =E59*'ΒΟΗΘ'!D53 -> 12000 | G59: =IF((F59<='ΒΟΗΘ'!B53),"ΕΠΙΤΥΧΙΑ","") -> ΕΠΙΤΥΧΙΑ
A60: 159 | B60: Κοινωνικής Πολιτικής, Παντείου | C60: Αθήνα | D60: 133 | E60: 0.8 | F60: =E60*'ΒΟΗΘ'!D54 -> 9600 | G60: =IF((F60<='ΒΟΗΘ'!B54),"ΕΠΙΤΥΧΙΑ","") -> ΕΠΙΤΥΧΙΑ
A61: 160 | B61: Επιστημών της Εκπαίδευσης στην Προσχολική Ηλικία, Θράκης | C61: Αλεξ/πολη | D61: 193 | E61: 1 | F61: =E61*'ΒΟΗΘ'!D55 -> 12000 | G61: =IF((F61<='ΒΟΗΘ'!B55),"ΕΠΙΤΥΧΙΑ","") -> ΕΠΙΤΥΧΙΑ
A62: 161 | B62: Διεθνών & Ευρωπαϊκών Σπουδών, Μακεδονίας | C62: Θεσσαλονίκη | D62: 126 | E62: 1.2 | F62: =E62*'ΒΟΗΘ'!D56 -> 14400 | G62: =IF((F62<='ΒΟΗΘ'!B56),"ΕΠΙΤΥΧΙΑ","") -> 
A63: 162 | B63: Επιστημών της Προσχ. Αγωγής & του Εκπ/κού Σχεδιασμού, Αιγαίου | C63: Ρόδος | D63: 259 | E63: 0.8 | F63: =E63*'ΒΟΗΘ'!D57 -> 9600 | G63: =IF((F63<='ΒΟΗΘ'!B57),"ΕΠΙΤΥΧΙΑ","") -> ΕΠΙΤΥΧΙΑ
A64: 163 | B64: Κινηματογράφου | C64: Θεσσαλονίκη | D64: 73 | E64: 1 | F64: =E64*'ΒΟΗΘ'!D58 -> 12000 | G64: =IF((F64<='ΒΟΗΘ'!B58),"ΕΠΙΤΥΧΙΑ","") -> ΕΠΙΤΥΧΙΑ
A65: 164 | B65: Παιδαγωγικό Δημοτικής Εκπ/σης, Θεσσαλίας | C65: Βόλος | D65: 141 | E65: 0.8 | F65: =E65*'ΒΟΗΘ'!D59 -> 9600 | G65: =IF((F65<='ΒΟΗΘ'!B59),"ΕΠΙΤΥΧΙΑ","") -> ΕΠΙΤΥΧΙΑ
A66: 165 | B66: Κοινωνικής Ανθρωπολογίας, Παντείου | C66: Αθήνα | D66: 99 | E66: 0.8 | F66: =E66*'ΒΟΗΘ'!D60 -> 9600 | G66: =IF((F66<='ΒΟΗΘ'!B60),"ΕΠΙΤΥΧΙΑ","") -> ΕΠΙΤΥΧΙΑ
A67: 166 | B67: Παιδαγωγικό Προσχολ. Εκπ/σης, Θεσσαλίας | C67: Βόλος | D67: 125 | E67: 0.8 | F67: =E67*'ΒΟΗΘ'!D61 -> 9600 | G67: =IF((F67<='ΒΟΗΘ'!B61),"ΕΠΙΤΥΧΙΑ","") -> ΕΠΙΤΥΧΙΑ
A68: 167 | B68: Κοινωνικής Ανθρ/γίας & Ιστορίας, Αιγαίου | C68: Μυτιλήνη | D68: 252 | E68: 0.8 | F68: =E68*'ΒΟΗΘ'!D62 -> 9600 | G68: =IF((F68<='ΒΟΗΘ'!B62),"ΕΠΙΤΥΧΙΑ","") -> ΕΠΙΤΥΧΙΑ
A69: 168 | B69: Θεάτρου, ΑΠΘ | C69: Θεσσαλονίκη | D69: 63 | E69: 0.8 | F69: =E69*'ΒΟΗΘ'!D63 -> 9600 | G69: =IF((F69<='ΒΟΗΘ'!B63),"ΕΠΙΤΥΧΙΑ","") -> ΕΠΙΤΥΧΙΑ
A70: 169 | B70: Θεατρικών Σπουδών, Πατρών | C70: Πάτρα | D70: 100 | E70: 0.89 | F70: =E70*'ΒΟΗΘ'!D64 -> 10680 | G70: =IF((F70<='ΒΟΗΘ'!B64),"ΕΠΙΤΥΧΙΑ","") -> ΕΠΙΤΥΧΙΑ
A71: 170 | B71: Ψυχολογίας, Παντείου | C71: Αθήνα | D71: 131 | E71: 1 | F71: =E71*'ΒΟΗΘ'!D65 -> 12000 | G71: =IF((F71<='ΒΟΗΘ'!B65),"ΕΠΙΤΥΧΙΑ","") -> ΕΠΙΤΥΧΙΑ
A72: 171 | B72: Ψυχολογίας, ΕΚΠΑ | C72: Αθήνα | D72: 152 | E72: 0.96 | F72: =E72*'ΒΟΗΘ'!D66 -> 11520 | G72: =IF((F72<='ΒΟΗΘ'!B66),"ΕΠΙΤΥΧΙΑ","") -> ΕΠΙΤΥΧΙΑ
A73: 172 | B73: Ψυχολογίας | C73: Θεσσαλονίκη | D73: 162 | E73: 1.2 | F73: =E73*'ΒΟΗΘ'!D67 -> 14400 | G73: =IF((F73<='ΒΟΗΘ'!B67),"ΕΠΙΤΥΧΙΑ","") -> 
A74: 173 | B74: Ιστορίας & Φιλοσοφίας της Επιστήμης, ΕΚΠΑ | C74: Αθήνα | D74: 114 | E74: 1.05 | F74: =E74*'ΒΟΗΘ'!D68 -> 12600 | G74: =IF((F74<='ΒΟΗΘ'!B68),"ΕΠΙΤΥΧΙΑ","") -> 
A75: 174 | B75: Εκπαιδευτικής & Κοινωνικής Πολιτικής, Μακεδονίας | C75: Θεσσαλονίκη | D75: 142 | E75: 1.2 | F75: =E75*'ΒΟΗΘ'!D69 -> 14400 | G75: =IF((F75<='ΒΟΗΘ'!B69),"ΕΠΙΤΥΧΙΑ","") -> 
A76: 175 | B76: Φιλολογίας, Πατρών | C76: Πάτρα | D76: 172 | E76: 1 | F76: =E76*'ΒΟΗΘ'!D70 -> 12000 | G76: =IF((F76<='ΒΟΗΘ'!B70),"ΕΠΙΤΥΧΙΑ","") -> ΕΠΙΤΥΧΙΑ
A77: 176 | B77: Βαλκανικών, Σλαβικών & Ανατολ. Σπουδών, Μακεδονίας | C77: Θεσσαλονίκη | D77: 177 | E77: 1.2 | F77: =E77*'ΒΟΗΘ'!D71 -> 14400 | G77: =IF((F77<='ΒΟΗΘ'!B71),"ΕΠΙΤΥΧΙΑ","") -> 
A78: 177 | B78: Ιστορίας , Αρχαιολογίας & Κοιν. Ανθρωπολογίας, Θεσσαλίας | C78: Βόλος | D78: 100 | E78: 0.8 | F78: =E78*'ΒΟΗΘ'!D72 -> 9600 | G78: =IF((F78<='ΒΟΗΘ'!B72),"ΕΠΙΤΥΧΙΑ","") -> ΕΠΙΤΥΧΙΑ
A79: 178 | B79: Παιδαγωγικό Ειδικής Αγωγής, Θεσσαλίας | C79: Βόλος | D79: 114 | E79: 1 | F79: =E79*'ΒΟΗΘ'!D73 -> 12000 | G79: =IF((F79<='ΒΟΗΘ'!B73),"ΕΠΙΤΥΧΙΑ","") -> ΕΠΙΤΥΧΙΑ
A80: 179 | B80: Διεθνών, Ευρωπαϊκών & Περιφερειακών Σπουδών, Παντείου | C80: Αθήνα | D80: 138 | E80: 1 | F80: =E80*'ΒΟΗΘ'!D74 -> 12000 | G80: =IF((F80<='ΒΟΗΘ'!B74),"ΕΠΙΤΥΧΙΑ","") -> ΕΠΙΤΥΧΙΑ
A81: 181 | B81: Μεσογειακών Σπουδών, Αιγαίου | C81: Ρόδος | D81: 157 | E81: 0.8 | F81: =E81*'ΒΟΗΘ'!D75 -> 9600 | G81: =IF((F81<='ΒΟΗΘ'!B75),"ΕΠΙΤΥΧΙΑ","") -> ΕΠΙΤΥΧΙΑ
A82: 182 | B82: Ιταλικής Γλώσσας & Φιλολογίας, ΕΚΠΑ | C82: Αθήνα | D82: 76 | E82: 0.8 | F82: =E82*'ΒΟΗΘ'!D76 -> 9600 | G82: =IF((F82<='ΒΟΗΘ'!B76),"ΕΠΙΤΥΧΙΑ","") -> ΕΠΙΤΥΧΙΑ
A83: 183 | B83: Ισπανικής Γλώσσας & Φιλολογίας, ΕΚΠΑ | C83: Αθήνα | D83: 76 | E83: 0.8 | F83: =E83*'ΒΟΗΘ'!D77 -> 9600 | G83: =IF((F83<='ΒΟΗΘ'!B77),"ΕΠΙΤΥΧΙΑ","") -> ΕΠΙΤΥΧΙΑ
A84: 186 | B84: Γλώσσας - Φιλολογίας & Πολιτ. Παρευξείνιων Χωρών, Θράκης | C84: Κομοτηνή | D84: 143 | E84: 0.8 | F84: =E84*'ΒΟΗΘ'!D78 -> 9600 | G84: =IF((F84<='ΒΟΗΘ'!B78),"ΕΠΙΤΥΧΙΑ","") -> ΕΠΙΤΥΧΙΑ
A85: 187 | B85: Κοινωνικής & Εκπ/κής Πολιτικής, Πελοποννήσου | C85: Κόρινθος | D85: 124 | E85: 1 | F85: =E85*'ΒΟΗΘ'!D79 -> 12000 | G85: =IF((F85<='ΒΟΗΘ'!B79),"ΕΠΙΤΥΧΙΑ","") -> ΕΠΙΤΥΧΙΑ
A86: 188 | B86: Τουρκικών Σπουδών & Σύγχρονων Ασιατικών Σπουδών, ΕΚΠΑ | C86: Αθήνα | D86: 112 | E86: 1 | F86: =E86*'ΒΟΗΘ'!D80 -> 12000 | G86: =IF((F86<='ΒΟΗΘ'!B80),"ΕΠΙΤΥΧΙΑ","") -> ΕΠΙΤΥΧΙΑ
A87: 189 | B87: Φιλολογίας, Πελοποννήσου | C87: Καλαμάτα | D87: 181 | E87: 0.9 | F87: =E87*'ΒΟΗΘ'!D81 -> 10800 | G87: =IF((F87<='ΒΟΗΘ'!B81),"ΕΠΙΤΥΧΙΑ","") -> ΕΠΙΤΥΧΙΑ
A88: 192 | B88: Ρωσικής Γλώσσα και Φιλολογίας (Εισαγ. Κατ/νση) | C88: Αθήνα | D88: 76 | E88: 0.9 | F88: =E88*'ΒΟΗΘ'!D82 -> 10800 | G88: =IF((F88<='ΒΟΗΘ'!B82),"ΕΠΙΤΥΧΙΑ","") -> ΕΠΙΤΥΧΙΑ
A89: 334 | B89: Παιδαγωγικό Δημοτικής Εκπ/σης, Δυτ. Μακεδονίας | C89: Φλώρινα | D89: 180 | E89: 0.8 | F89: =E89*'ΒΟΗΘ'!D83 -> 9600 | G89: =IF((F89<='ΒΟΗΘ'!B83),"ΕΠΙΤΥΧΙΑ","") -> ΕΠΙΤΥΧΙΑ
A90: 341 | B90: Παιδαγωγικό Νηπιαγωγών, Δυτ. Μακεδονίας | C90: Φλώρινα | D90: 178 | E90: 1 | F90: =E90*'ΒΟΗΘ'!D84 -> 12000 | G90: =IF((F90<='ΒΟΗΘ'!B84),"ΕΠΙΤΥΧΙΑ","") -> ΕΠΙΤΥΧΙΑ
A91: 342 | B91: Αρχειονομίας, Βιβλιοθηκονομίας & Μουσειολογίας, Ιονίου | C91: Κέρκυρα | D91: 101 | E91: 0.8 | F91: =E91*'ΒΟΗΘ'!D85 -> 9600 | G91: =IF((F91<='ΒΟΗΘ'!B85),"ΕΠΙΤΥΧΙΑ","") -> ΕΠΙΤΥΧΙΑ
A92: 348 | B92: Κοινωνιολογίας, Αιγαίου | C92: Μυτιλήνη | D92: 190 | E92: 0.8 | F92: =E92*'ΒΟΗΘ'!D86 -> 9600 | G92: =IF((F92<='ΒΟΗΘ'!B86),"ΕΠΙΤΥΧΙΑ","") -> ΕΠΙΤΥΧΙΑ
A93: 351 | B93: Πολιτικής Επιστήμης, Κρήτης | C93: Ρέθυμνο | D93: 204 | E93: 0.8 | F93: =E93*'ΒΟΗΘ'!D87 -> 9600 | G93: =IF((F93<='ΒΟΗΘ'!B87),"ΕΠΙΤΥΧΙΑ","") -> ΕΠΙΤΥΧΙΑ
A94: 354 | B94: Πολιτισμικής Τεχ/γίας & Επικοινωνίας, Αιγαίου | C94: Μυτιλήνη | D94: 124 | E94: 0.8 | F94: =E94*'ΒΟΗΘ'!D88 -> 9600 | G94: =IF((F94<='ΒΟΗΘ'!B88),"ΕΠΙΤΥΧΙΑ","") -> ΕΠΙΤΥΧΙΑ
A95: 355 | B95: Διεθνών & Ευρωπαϊκών Σπουδών, Πειραιά | C95: Πειραιάς | D95: 129 | E95: 1.2 | F95: =E95*'ΒΟΗΘ'!D89 -> 14400 | G95: =IF((F95<='ΒΟΗΘ'!B89),"ΕΠΙΤΥΧΙΑ","") -> 
A96: 357 | B96: Πολιτικών Επιστημών, ΑΠΘ | C96: Θεσσαλονίκη | D96: 116 | E96: 0.8 | F96: =E96*'ΒΟΗΘ'!D90 -> 9600 | G96: =IF((F96<='ΒΟΗΘ'!B90),"ΕΠΙΤΥΧΙΑ","") -> ΕΠΙΤΥΧΙΑ
A97: 362 | B97: Θεατρικών Σπουδών, Πελοποννήσου | C97: Ναύπλιον | D97: 135 | E97: 0.8 | F97: =E97*'ΒΟΗΘ'!D91 -> 9600 | G97: =IF((F97<='ΒΟΗΘ'!B91),"ΕΠΙΤΥΧΙΑ","") -> ΕΠΙΤΥΧΙΑ
A98: 367 | B98: Τεχνών Ήχου & Εικόνας, Ιονίου | C98: Κέρκυρα | D98: 86 | E98: 0.8 | F98: =E98*'ΒΟΗΘ'!D92 -> 9600 | G98: =IF((F98<='ΒΟΗΘ'!B92),"ΕΠΙΤΥΧΙΑ","") -> ΕΠΙΤΥΧΙΑ
A99: 373 | B99: Πολιτικής Επιστήμης, Θράκης (πρώην Εισ. Κατ. πρώην Τμ. Κοιν Διοίκ & Πολιτ Επιστ.) | C99: Κομοτηνή | D99: 146 | E99: 0.8 | F99: =E99*'ΒΟΗΘ'!D93 -> 9600 | G99: =IF((F99<='ΒΟΗΘ'!B93),"ΕΠΙΤΥΧΙΑ","") -> ΕΠΙΤΥΧΙΑ
A100: 384 | B100: Θεωρίας & Ιστορίας της Τέχνης, ΑΣΚΤ | C100: Αθήνα | D100: 68 | E100: 0.85 | F100: =E100*'ΒΟΗΘ'!D94 -> 10200 | G100: =IF((F100<='ΒΟΗΘ'!B94),"ΕΠΙΤΥΧΙΑ","") -> ΕΠΙΤΥΧΙΑ
A101: 385 | B101: Ξένων Γλωσσών Μετάφρασης & Διερμηνείας, Ιονίου | C101: Κέρκυρα | D101: 114 | E101: 1.2 | F101: =E101*'ΒΟΗΘ'!D95 -> 14400 | G101: =IF((F101<='ΒΟΗΘ'!B95),"ΕΠΙΤΥΧΙΑ","") -> 
A102: 401 | B102: Επιστήμης Φυσ. Αγωγής & Αθλητισμού, ΕΚΠΑ | C102: Αθήνα | D102: 121 | E102: 0.8 | F102: =E102*'ΒΟΗΘ'!D96 -> 9600 | G102: =IF((F102<='ΒΟΗΘ'!B96),"ΕΠΙΤΥΧΙΑ","") -> ΕΠΙΤΥΧΙΑ
A103: 402 | B103: Επιστήμης Φυσ. Αγωγής & Αθλητισμού, ΑΠΘ / Εισαγ. Κατ/νση | C103: Σέρρες | D103: 113 | E103: 0.8 | F103: =E103*'ΒΟΗΘ'!D97 -> 9600 | G103: =IF((F103<='ΒΟΗΘ'!B97),"ΕΠΙΤΥΧΙΑ","") -> ΕΠΙΤΥΧΙΑ
A104: 403 | B104: Επιστήμης Φυσ. Αγωγής & Αθλητισμού, ΑΠΘ / Εισαγ. Κατ/νση | C104: Θεσσαλονίκη | D104: 121 | E104: 1 | F104: =E104*'ΒΟΗΘ'!D98 -> 12000 | G104: =IF((F104<='ΒΟΗΘ'!B98),"ΕΠΙΤΥΧΙΑ","") -> ΕΠΙΤΥΧΙΑ
A105: 404 | B105: Επιστήμης Φυσ. Αγωγής & Αθλητισμού, Θράκης | C105: Κομοτηνή | D105: 324 | E105: 0.8 | F105: =E105*'ΒΟΗΘ'!D99 -> 9600 | G105: =IF((F105<='ΒΟΗΘ'!B99),"ΕΠΙΤΥΧΙΑ","") -> ΕΠΙΤΥΧΙΑ
A106: 405 | B106: Επιστήμης Φυσ. Αγωγής & Αθλητισμού, Θεσσαλίας | C106: Τρίκαλα | D106: 151 | E106: 1 | F106: =E106*'ΒΟΗΘ'!D100 -> 12000 | G106: =IF((F106<='ΒΟΗΘ'!B100),"ΕΠΙΤΥΧΙΑ","") -> ΕΠΙΤΥΧΙΑ
A107: 406 | B107: Μουσικών Σπουδών, ΑΠΘ | C107: Θεσσαλονίκη | D107: 55 | E107: 0.9 | F107: =E107*'ΒΟΗΘ'!D101 -> 10800 | G107: =IF((F107<='ΒΟΗΘ'!B101),"ΕΠΙΤΥΧΙΑ","") -> ΕΠΙΤΥΧΙΑ
A108: 407 | B108: Μουσικών Σπουδών, Ιονίου (ΕΙΔΙΚΕΣ ΕΞΕΤΑΣΕΙΣ) | C108: Κέρκυρα | D108: 91 | E108: (***) | F108: =E108*'ΒΟΗΘ'!D102 -> #VALUE! | G108: =IF((F108<='ΒΟΗΘ'!B102),"ΕΠΙΤΥΧΙΑ","") -> #VALUE!
A109: 408 | B109: Μουσικών Σπουδών, ΕΚΠΑ | C109: Αθήνα | D109: 63 | E109: 0.9 | F109: =E109*'ΒΟΗΘ'!D103 -> 10800 | G109: =IF((F109<='ΒΟΗΘ'!B103),"ΕΠΙΤΥΧΙΑ","") -> ΕΠΙΤΥΧΙΑ
A110: 409 | B110: Μουσικής Επιστήμης & Τέχνης, Μακεδονίας (ΕΙΔΙΚΕΣ ΕΞΕΤΑΣΕΙΣ) | C110: Θεσσαλονίκη | D110: 73 | E110: (***) | F110: =E110*'ΒΟΗΘ'!D104 -> #VALUE! | G110: =IF((F110<='ΒΟΗΘ'!B104),"ΕΠΙΤΥΧΙΑ","") -> #VALUE!
A111: 411 | B111: Πολιτικής Επιστήμης & Διεθνών Σχέσεων, Πελοποννήσου | C111: Κόρινθος | D111: 111 | E111: 1.05 | F111: =E111*'ΒΟΗΘ'!D105 -> 12600 | G111: =IF((F111<='ΒΟΗΘ'!B105),"ΕΠΙΤΥΧΙΑ","") -> 
A112: 413 | B112: Πρόγραμμα Ιερατικών Σπουδών, Αν. Εκκλ. Ακαδ. Αθήνας | C112: Αθήνα | D112: 36 | E112: 0.8 | F112: =E112*'ΒΟΗΘ'!D106 -> 9600 | G112: =IF((F112<='ΒΟΗΘ'!B106),"ΕΠΙΤΥΧΙΑ","") -> ΕΠΙΤΥΧΙΑ
A113: 414 | B113: Πρόγραμμα Ιερατικών Σπουδών, Αν. Εκκλ. Ακαδ. Θεσ/κης | C113: Θεσσαλονίκη | D113: 18 | E113: 0.8 | F113: =E113*'ΒΟΗΘ'!D107 -> 9600 | G113: =IF((F113<='ΒΟΗΘ'!B107),"ΕΠΙΤΥΧΙΑ","") -> ΕΠΙΤΥΧΙΑ
A114: 415 | B114: Πρόγραμμα Ιερατικών Σπουδών, Αν. Εκκλ. Ακαδ. Ιωαννίνων | C114: Βελλάς | D114: 36 | E114: 0.8 | F114: =E114*'ΒΟΗΘ'!D108 -> 9600 | G114: =IF((F114<='ΒΟΗΘ'!B108),"ΕΠΙΤΥΧΙΑ","") -> ΕΠΙΤΥΧΙΑ
A115: 416 | B115: Πρόγραμμα Ιερατικών Σπουδών, Αν. Εκκλ. Ακαδ. Κρήτης | C115: Ηράκλειο | D115: 54 | E115: 0.8 | F115: =E115*'ΒΟΗΘ'!D109 -> 9600 | G115: =IF((F115<='ΒΟΗΘ'!B109),"ΕΠΙΤΥΧΙΑ","") -> ΕΠΙΤΥΧΙΑ
A116: 417 | B116: Πρόγραμμα Εκκλησιαστικής Μουσικής & Ψαλτικής, Αν. Εκκλ. Ακαδ. Ιωαννινων | C116: Βελλάς | D116: 8 | E116: 0.8 | F116: =E116*'ΒΟΗΘ'!D110 -> 9600 | G116: =IF((F116<='ΒΟΗΘ'!B110),"ΕΠΙΤΥΧΙΑ","") -> ΕΠΙΤΥΧΙΑ
A117: 418 | B117: Πρόγραμμα Εκκλησιαστικής Μουσικής & Ψαλτικής, Αν. Εκκλ. Ακαδ. Κρήτης | C117: Ηράκλειο | D117: 8 | E117: 0.8 | F117: =E117*'ΒΟΗΘ'!D111 -> 9600 | G117: =IF((F117<='ΒΟΗΘ'!B111),"ΕΠΙΤΥΧΙΑ","") -> ΕΠΙΤΥΧΙΑ
A118: 613 | B118: Ανώτερη Σχολή Τουριστικής Εκπαίδευσης Ρόδου (Α.Σ.Τ.Ε.Ρ.) | C118: Ρόδος | D118: 88 | E118: 0.8 | F118: =E118*'ΒΟΗΘ'!D112 -> 9600 | G118: =IF((F118<='ΒΟΗΘ'!B112),"ΕΠΙΤΥΧΙΑ","") -> ΕΠΙΤΥΧΙΑ
A119: 614 | B119: Ανώτερη Σχολή Τουριστικής Εκπαίδευσης Κρήτης (Α.Σ.Τ.Ε.Κ.) | C119: Αγ. Νικόλαος | D119: 88 | E119: 0.8 | F119: =E119*'ΒΟΗΘ'!D113 -> 9600 | G119: =IF((F119<='ΒΟΗΘ'!B113),"ΕΠΙΤΥΧΙΑ","") -> ΕΠΙΤΥΧΙΑ
A120: 668 | B120: Αρχειονομίας, Βιβλιοθηκονομίας & Συστημάτων Πληροφόρησης, Δυτ. Αττικής | C120: Αιγάλεω | D120: 101 | E120: 0.9 | F120: =E120*'ΒΟΗΘ'!D114 -> 10800 | G120: =IF((F120<='ΒΟΗΘ'!B114),"ΕΠΙΤΥΧΙΑ","") -> ΕΠΙΤΥΧΙΑ
A121: 671 | B121: Κοινωνικής Εργασίας, Δυτ. Αττικής | C121: Αιγάλεω | D121: 100 | E121: 0.8 | F121: =E121*'ΒΟΗΘ'!D115 -> 9600 | G121: =IF((F121<='ΒΟΗΘ'!B115),"ΕΠΙΤΥΧΙΑ","") -> ΕΠΙΤΥΧΙΑ
A122: 673 | B122: Αγωγής & Φροντίδας στην Πρώιμη Παιδική Ηλικία, Δυτ. Αττικής | C122: Ίλιον | D122: 113 | E122: 1 | F122: =E122*'ΒΟΗΘ'!D116 -> 12000 | G122: =IF((F122<='ΒΟΗΘ'!B116),"ΕΠΙΤΥΧΙΑ","") -> ΕΠΙΤΥΧΙΑ
A123: 677 | B123: Φωτογραφίας & Οπτικοακουστικών Τεχνών, Δυτ. Αττικής | C123: Αιγάλεω | D123: 92 | E123: 1 | F123: =E123*'ΒΟΗΘ'!D117 -> 12000 | G123: =IF((F123<='ΒΟΗΘ'!B117),"ΕΠΙΤΥΧΙΑ","") -> ΕΠΙΤΥΧΙΑ
A124: 780 | B124: Μουσουλμανικών Σπουδών / Εισαγωγική Κατεύθυνση | C124: Θεσσαλονίκη | D124: 93 | E124: 0.8 | F124: =E124*'ΒΟΗΘ'!D118 -> 9600 | G124: =IF((F124<='ΒΟΗΘ'!B118),"ΕΠΙΤΥΧΙΑ","") -> ΕΠΙΤΥΧΙΑ
A125: 866 | B125: Στρατολογικό - Στρατιωτ. Νομ. Συμβ. (ΣΣΑΣ) Γεν. Σειρά | C125: Θεσσαλονίκη | D125: 13 | E125: 1.2 | F125: =E125*'ΒΟΗΘ'!D119 -> 14400 | G125: =IF((F125<='ΒΟΗΘ'!B119),"ΕΠΙΤΥΧΙΑ","") -> 
A126: 869 | B126: Αξιωματικών Ελλ. Αστυνομίας Γεν. Σειρά | C126: Αθήνα | D126: 31 | E126: 0.8 | F126: =E126*'ΒΟΗΘ'!D120 -> 9600 | G126: =IF((F126<='ΒΟΗΘ'!B120),"ΕΠΙΤΥΧΙΑ","") -> ΕΠΙΤΥΧΙΑ
A127: 870 | B127: Αστυφυλάκων Γεν. Σειρά | C127: Αθήνα | D127: 221 | E127: 0.8 | F127: =E127*'ΒΟΗΘ'!D121 -> 9600 | G127: =IF((F127<='ΒΟΗΘ'!B121),"ΕΠΙΤΥΧΙΑ","") -> ΕΠΙΤΥΧΙΑ
A128: 871 | B128: Τμήμα Ανθυποπυραγών (Πυροσβέστες) Γεν. Σειρά | C128: Αθήνα | D128: 4 | E128: 0.8 | F128: =E128*'ΒΟΗΘ'!D122 -> 9600 | G128: =IF((F128<='ΒΟΗΘ'!B122),"ΕΠΙΤΥΧΙΑ","") -> ΕΠΙΤΥΧΙΑ
A129: 872 | B129: Αξιωματικών Ελλ. Αστυνομίας (Αστυνομικοί) Γεν. Σειρά | C129: Αθήνα | D129: 22 | E129: 0.8 | F129: =E129*'ΒΟΗΘ'!D123 -> 9600 | G129: =IF((F129<='ΒΟΗΘ'!B123),"ΕΠΙΤΥΧΙΑ","") -> ΕΠΙΤΥΧΙΑ
A130: 875 | B130: Ψυχολόγων (ΣΣΑΣ) Γεν. Σειρά | C130: Θεσσαλονίκη | D130: 3 | E130: 1.2 | F130: =E130*'ΒΟΗΘ'!D124 -> 14400 | G130: =IF((F130<='ΒΟΗΘ'!B124),"ΕΠΙΤΥΧΙΑ","") -> 
A131: 876 | B131: Σχολή Πυροσβεστών Γεν. Σειρά | C131: Αθήνα | D131: 131 | E131: 0.8 | F131: =E131*'ΒΟΗΘ'!D125 -> 9600 | G131: =IF((F131<='ΒΟΗΘ'!B125),"ΕΠΙΤΥΧΙΑ","") -> ΕΠΙΤΥΧΙΑ
A132: 877 | B132: Σχολή Ανθυποπυραγών Γεν. Σειρά | C132: Αθήνα | D132: 16 | E132: 0.8 | F132: =E132*'ΒΟΗΘ'!D126 -> 9600 | G132: =IF((F132<='ΒΟΗΘ'!B126),"ΕΠΙΤΥΧΙΑ","") -> ΕΠΙΤΥΧΙΑ
A133: 881 | B133: Σχολή Δοκίμων Σημαιοφόρων Λιμενικού Σώματος - Ελληνικής Ακτοφυλακής (Σ.Δ.Σ.Λ.Σ. -ΕΛ.ΑΚΤ.), ΝΕΟ | C133: Αθήνα | D133: 21 | E133: 0.9 | F133: =E133*'ΒΟΗΘ'!D127 -> 10800 | G133: =IF((F133<='ΒΟΗΘ'!B127),"ΕΠΙΤΥΧΙΑ","") -> ΕΠΙΤΥΧΙΑ
A134: 882 | B134: Σχολή Δοκίμων Λιμενοφυλάκων, ΝΕΟ | C134: Αθήνα | D134: 74 | E134: 0.9 | F134: =E134*'ΒΟΗΘ'!D128 -> 10800 | G134: =IF((F134<='ΒΟΗΘ'!B128),"ΕΠΙΤΥΧΙΑ","") -> ΕΠΙΤΥΧΙΑ
A135: 1006 | B135: Κοινωνιολογίας, ΕΚΠΑ, ΝΕΟ | C135: Αθήνα | D135: 81 | E135: 1 | F135: =E135*'ΒΟΗΘ'!D129 -> 12000 | G135: =IF((F135<='ΒΟΗΘ'!B129),"ΕΠΙΤΥΧΙΑ","") -> ΕΠΙΤΥΧΙΑ
A136: 1007 | B136: Παιδαγωγικό Δευτεροβάθμιας Εκπαίδευσης, ΕΚΠΑ, ΝΕΟ | C136: Αθήνα | D136: 135 | E136: 0.8 | F136: =E136*'ΒΟΗΘ'!D130 -> 9600 | G136: =IF((F136<='ΒΟΗΘ'!B130),"ΕΠΙΤΥΧΙΑ","") -> ΕΠΙΤΥΧΙΑ
A137: 1010 | B137: Φιλοσοφίας, ΕΚΠΑ, ΝΕΟ (πρώην Φιλοσοφίας - Παιδ/κής & Ψυχ/γίας) | C137: Αθήνα | D137: 135 | E137: 1.1 | F137: =E137*'ΒΟΗΘ'!D131 -> 13200 | G137: =IF((F137<='ΒΟΗΘ'!B131),"ΕΠΙΤΥΧΙΑ","") -> 
A138: 1011 | B138: Ψηφιακών Τεχνών & Κινηματογράφου, ΕΚΠΑ, ΝΕΟ | C138: Ψαχνά | D138: 81 | E138: 0.8 | F138: =E138*'ΒΟΗΘ'!D132 -> 9600 | G138: =IF((F138<='ΒΟΗΘ'!B132),"ΕΠΙΤΥΧΙΑ","") -> ΕΠΙΤΥΧΙΑ
A139: 1241 | B139: Αγωγής & Φροντίδας στην Πρώιμη Παιδική Ηλικία, Ιωαννίνων, ΝΕΟ (πρώην Προσχολικής Αγωγής, ΤΕΙ Ηπείρου) | C139: Ιωάννινα | D139: 138 | E139: 0.8 | F139: =E139*'ΒΟΗΘ'!D133 -> 9600 | G139: =IF((F139<='ΒΟΗΘ'!B133),"ΕΠΙΤΥΧΙΑ","") -> ΕΠΙΤΥΧΙΑ
A140: 1248 | B140: Μουσικών Σπουδών, Ιωαννίνων (ΕΙΔΙΚΕΣ ΕΞΕΤΑΣΕΙΣ) | C140: Αρτα | D140: 135 | E140: (***) | F140: =E140*'ΒΟΗΘ'!D134 -> #VALUE! | G140: =IF((F140<='ΒΟΗΘ'!B134),"ΕΠΙΤΥΧΙΑ","") -> #VALUE!
A141: 1251 | B141: Ψυχολογίας, Ιωαννίνων, ΝΕΟ | C141: Ιωάννινα | D141: 90 | E141: 0.8 | F141: =E141*'ΒΟΗΘ'!D135 -> 9600 | G141: =IF((F141<='ΒΟΗΘ'!B135),"ΕΠΙΤΥΧΙΑ","") -> ΕΠΙΤΥΧΙΑ
A142: 1284 | B142: Ιστορίας - Αρχαιολογίας, Πατρών, ΝΕΟ | C142: Αγρίνιο | D142: 180 | E142: 0.8 | F142: =E142*'ΒΟΗΘ'!D136 -> 9600 | G142: =IF((F142<='ΒΟΗΘ'!B136),"ΕΠΙΤΥΧΙΑ","") -> ΕΠΙΤΥΧΙΑ
A143: 1286 | B143: Επιστημών της Εκπαίδευσης & Κοινωνικής Εργασίας, Πατρών, ΝΕΟ (πρώην Παιδαγ. Δημοτικής Εκπ/σης) | C143: Πάτρα | D143: 225 | E143: 1.15 | F143: =E143*'ΒΟΗΘ'!D137 -> 13800 | G143: =IF((F143<='ΒΟΗΘ'!B137),"ΕΠΙΤΥΧΙΑ","") -> 
A144: 1301 | B144: Κοινωνικής Εργασίας, ΔΠΘ, ΝΕΟ | C144: Κομοτηνή | D144: 97 | E144: 1.1 | F144: =E144*'ΒΟΗΘ'!D138 -> 13200 | G144: =IF((F144<='ΒΟΗΘ'!B138),"ΕΠΙΤΥΧΙΑ","") -> 
A145: 1302 | B145: Κοινωνικής Πολιτικής, ΔΠΘ, ΝΕΟ (πρώην Εισ. Κατ. Κοινωνικής Διοίκησης, Τμ. Κοιν. Διοίκησης & Πολ. Επιστήμης) | C145: Κομοτηνή | D145: 105 | E145: 0.8 | F145: =E145*'ΒΟΗΘ'!D139 -> 9600 | G145: =IF((F145<='ΒΟΗΘ'!B139),"ΕΠΙΤΥΧΙΑ","") -> ΕΠΙΤΥΧΙΑ
A146: 1423 | B146: Γλωσσικών & Διαπολιτισμικών Σπουδών, Θεσσαλίας, ΝΕΟ | C146: Βόλος | D146: 90 | E146: 0.8 | F146: =E146*'ΒΟΗΘ'!D140 -> 9600 | G146: =IF((F146<='ΒΟΗΘ'!B140),"ΕΠΙΤΥΧΙΑ","") -> ΕΠΙΤΥΧΙΑ
A147: 1435 | B147: Πολιτισμού & Δημιουργικών Μέσων & Βιομηχανιών, Θεσσαλίας, ΝΕΟ | C147: Βόλος | D147: 81 | E147: 0.8 | F147: =E147*'ΒΟΗΘ'!D141 -> 9600 | G147: =IF((F147<='ΒΟΗΘ'!B141),"ΕΠΙΤΥΧΙΑ","") -> ΕΠΙΤΥΧΙΑ
A148: 1456 | B148: Ψηφιακών Μέσων & Επικοινωνίας, Ιονίου, ΝΕΟ (πρώην Ψηφιακών Μέσων & Επικοινωνίας ΤΕ, ΤΕΙ Ιόνιων Νήσων) | C148: Αργοστόλι | D148: 211 | E148: 0.8 | F148: =E148*'ΒΟΗΘ'!D142 -> 9600 | G148: =IF((F148<='ΒΟΗΘ'!B142),"ΕΠΙΤΥΧΙΑ","") -> ΕΠΙΤΥΧΙΑ
A149: 1517 | B149: Παραστατικών & Ψηφιακών Τεχνών, Πελοποννήσου, ΝΕΟ | C149: Ναύπλιον | D149: 113 | E149: 0.8 | F149: =E149*'ΒΟΗΘ'!D143 -> 9600 | G149: =IF((F149<='ΒΟΗΘ'!B143),"ΕΠΙΤΥΧΙΑ","") -> ΕΠΙΤΥΧΙΑ
A150: 1550 | B150: Ψυχολογίας, Δυτ. Μακεδονίας, ΝΕΟ | C150: Φλώρινα | D150: 135 | E150: 1 | F150: =E150*'ΒΟΗΘ'!D144 -> 12000 | G150: =IF((F150<='ΒΟΗΘ'!B144),"ΕΠΙΤΥΧΙΑ","") -> ΕΠΙΤΥΧΙΑ
A151: 1551 | B151: Επικοινωνίας & Ψηφιακών Μέσων, Δυτ. Μακεδονίας, ΝΕΟ (πρώην Ψηφιακών Μέσων & Επικοινωνίας ΤΕ, ΤΕΙ Δυτ. Μακεδονίας) | C151: Καστοριά | D151: 178 | E151: 0.96 | F151: =E151*'ΒΟΗΘ'!D145 -> 11520 | G151: =IF((F151<='ΒΟΗΘ'!B145),"ΕΠΙΤΥΧΙΑ","") -> ΕΠΙΤΥΧΙΑ
A152: 1609 | B152: Βιβλιοθηκονομίας, Αρχειονομίας και Συστημάτων Πληροφόρησης, ΔΙ.ΠΑ.Ε., ΝΕΟ (πρώην Βιβλιοθηκονομίας & Συστημάτων Πληροφόρησης, ΤΕΙ Θεσσαλονίκης) | C152: Θεσσαλονίκη | D152: 130 | E152: 0.9 | F152: =E152*'ΒΟΗΘ'!D146 -> 10800 | G152: =IF((F152<='ΒΟΗΘ'!B146),"ΕΠΙΤΥΧΙΑ","") -> ΕΠΙΤΥΧΙΑ
A153: 1610 | B153: Αγωγής & Φροντίδας στην Πρώιμη Παιδική Ηλικία, ΔΙ.ΠΑ.Ε., ΝΕΟ (πρώην Προσχολικής Αγωγής, ΤΕΙ Θεσσαλονίκης) | C153: Θεσσαλονίκη | D153: 113 | E153: 0.8 | F153: =E153*'ΒΟΗΘ'!D147 -> 9600 | G153: =IF((F153<='ΒΟΗΘ'!B147),"ΕΠΙΤΥΧΙΑ","") -> ΕΠΙΤΥΧΙΑ
A154: 1652 | B154: Κοινωνικής Εργασίας, ΕΛ.ΜΕ.ΠΑ., ΝΕΟ (πρώην Κοινωνικής Εργασίας, ΤΕΙ Κρήτης) | C154: Ηράκλειο | D154: 125 | E154: 1.1 | F154: =E154*'ΒΟΗΘ'!D148 -> 13200 | G154: =IF((F154<='ΒΟΗΘ'!B148),"ΕΠΙΤΥΧΙΑ","") -> 

Sheet 2ο ΠΕΔΙΟ-ΘΕΤ ΤΕΧΝ
A2: ΠΕΔΙΟ 2ο : ΘΕΤΙΚΕΣ - ΤΕΧΝΟΛΟΓΙΚΕΣ ΣΧΟΛΕΣ
A3: ΚΩΔΙΚΟΣ | B3: ΣΧΟΛΗ/ΤΜΗΜΑ | C3: ΠΟΛΗ | D3: ΕΙΣΑΚΤΕΟΙ | E3: ΣΕΒΕ | F3: ΕΒΕ | G3: ΑΠΟΤΕΛΕΣΜΑ
A4: ΜΗΧΑΝΟΓΡ | D4: 2021 (90%) | E4: 2021 | F4: 2021 (90%)
A5: 98 | B5: Πληροφορικής & Τηλεπικοινωνιών, Πελοποννήσου | C5: Τρίπολη | D5: 197 | E5: 0.9 | F5: =E5*'ΒΟΗΘ'!D3 -> 10800 | G5: =IF((F5<='ΒΟΗΘ'!B3),"ΕΠΙΤΥΧΙΑ","") -> ΕΠΙΤΥΧΙΑ
A6: 99 | B6: Πληροφορικής & Τηλεπικοινωνιών, Θεσσαλίας, ΝΕΟ (πρώην Πληροφορικής) | C6: Λαμία | D6: 243 | E6: 0.8 | F6: =E6*'ΒΟΗΘ'!D4 -> 9600 | G6: =IF((F6<='ΒΟΗΘ'!B4),"ΕΠΙΤΥΧΙΑ","") -> ΕΠΙΤΥΧΙΑ
A7: 128 | B7: Παιδαγωγικό Δημοτικής Εκπ/σης, ΕΚΠΑ | C7: Αθήνα | D7: 180 | E7: 1.2 | F7: =E7*'ΒΟΗΘ'!D5 -> 14400 | G7: =IF((F7<='ΒΟΗΘ'!B5),"ΕΠΙΤΥΧΙΑ","") -> 
A8: 130 | B8: Παιδαγωγικό Δημοτικής Εκπ/σης, Ιωαννίνων | C8: Ιωάννινα | D8: 209 | E8: 0.8 | F8: =E8*'ΒΟΗΘ'!D6 -> 9600 | G8: =IF((F8<='ΒΟΗΘ'!B6),"ΕΠΙΤΥΧΙΑ","") -> ΕΠΙΤΥΧΙΑ
A9: 132 | B9: Παιδαγωγικό Δημοτικής Εκπ/σης, Κρήτης | C9: Ρέθυμνο | D9: 169 | E9: 1 | F9: =E9*'ΒΟΗΘ'!D7 -> 12000 | G9: =IF((F9<='ΒΟΗΘ'!B7),"ΕΠΙΤΥΧΙΑ","") -> ΕΠΙΤΥΧΙΑ
A10: 134 | B10: Επιστημών Προσχολ. Αγωγής & Εκπ/σης, ΑΠΘ | C10: Θεσσαλονίκη | D10: 130 | E10: 0.8 | F10: =E10*'ΒΟΗΘ'!D8 -> 9600 | G10: =IF((F10<='ΒΟΗΘ'!B8),"ΕΠΙΤΥΧΙΑ","") -> ΕΠΙΤΥΧΙΑ
A11: 136 | B11: Επιστημών της Εκπαίδευσης & της Αγωγής στην Προσχολική Ηλικία, Πατρών | C11: Πάτρα | D11: 143 | E11: 0.8 | F11: =E11*'ΒΟΗΘ'!D9 -> 9600 | G11: =IF((F11<='ΒΟΗΘ'!B9),"ΕΠΙΤΥΧΙΑ","") -> ΕΠΙΤΥΧΙΑ
A12: 140 | B12: Παιδαγωγικό Δημοτικής Εκπ/σης, ΑΠΘ | C12: Θεσσαλονίκη | D12: 180 | E12: 0.8 | F12: =E12*'ΒΟΗΘ'!D10 -> 9600 | G12: =IF((F12<='ΒΟΗΘ'!B10),"ΕΠΙΤΥΧΙΑ","") -> ΕΠΙΤΥΧΙΑ
A13: 142 | B13: Παιδαγωγικό Δημοτικής Εκπ/σης, Θράκης | C13: Αλεξ/πολη | D13: 216 | E13: 0.8 | F13: =E13*'ΒΟΗΘ'!D11 -> 9600 | G13: =IF((F13<='ΒΟΗΘ'!B11),"ΕΠΙΤΥΧΙΑ","") -> ΕΠΙΤΥΧΙΑ
A14: 143 | B14: Παιδαγωγικό Δημοτικής Εκπ/σης, Αιγαίου | C14: Ρόδος | D14: 306 | E14: 0.8 | F14: =E14*'ΒΟΗΘ'!D12 -> 9600 | G14: =IF((F14<='ΒΟΗΘ'!B12),"ΕΠΙΤΥΧΙΑ","") -> ΕΠΙΤΥΧΙΑ
A15: 154 | B15: Εκπαίδευσης & Αγωγής στην Προσχ. Ηλικία, ΕΚΠΑ | C15: Αθήνα | D15: 105 | E15: 0.8 | F15: =E15*'ΒΟΗΘ'!D13 -> 9600 | G15: =IF((F15<='ΒΟΗΘ'!B13),"ΕΠΙΤΥΧΙΑ","") -> ΕΠΙΤΥΧΙΑ
A16: 156 | B16: Παιδαγωγικό Νηπιαγωγών | C16: Ιωάννινα | D16: 223 | E16: 0.8 | F16: =E16*'ΒΟΗΘ'!D14 -> 9600 | G16: =IF((F16<='ΒΟΗΘ'!B14),"ΕΠΙΤΥΧΙΑ","") -> ΕΠΙΤΥΧΙΑ
A17: 158 | B17: Παιδαγωγικό Προσχολ. Εκπ/σης, Κρήτης | C17: Ρέθυμνο | D17: 152 | E17: 1 | F17: =E17*'ΒΟΗΘ'!D15 -> 12000 | G17: =IF((F17<='ΒΟΗΘ'!B15),"ΕΠΙΤΥΧΙΑ","") -> ΕΠΙΤΥΧΙΑ
A18: 160 | B18: Επιστημών της Εκπαίδευσης στην Προσχολική Ηλικία, Θράκης | C18: Αλεξ/πολη | D18: 193 | E18: 1 | F18: =E18*'ΒΟΗΘ'!D16 -> 12000 | G18: =IF((F18<='ΒΟΗΘ'!B16),"ΕΠΙΤΥΧΙΑ","") -> ΕΠΙΤΥΧΙΑ
A19: 162 | B19: Επιστημών της Προσχ. Αγωγής & του Εκπ/κού Σχεδιασμού, Αιγαίου | C19: Ρόδος | D19: 259 | E19: 0.8 | F19: =E19*'ΒΟΗΘ'!D17 -> 9600 | G19: =IF((F19<='ΒΟΗΘ'!B17),"ΕΠΙΤΥΧΙΑ","") -> ΕΠΙΤΥΧΙΑ
A20: 163 | B20: Κινηματογράφου | C20: Θεσσαλονίκη | D20: 73 | E20: 1 | F20: =E20*'ΒΟΗΘ'!D18 -> 12000 | G20: =IF((F20<='ΒΟΗΘ'!B18),"ΕΠΙΤΥΧΙΑ","") -> ΕΠΙΤΥΧΙΑ
A21: 164 | B21: Παιδαγωγικό Δημοτικής Εκπ/σης, Θεσσαλίας | C21: Βόλος | D21: 141 | E21: 0.8 | F21: =E21*'ΒΟΗΘ'!D19 -> 9600 | G21: =IF((F21<='ΒΟΗΘ'!B19),"ΕΠΙΤΥΧΙΑ","") -> ΕΠΙΤΥΧΙΑ
A22: 166 | B22: Παιδαγωγικό Προσχολ. Εκπ/σης, Θεσσαλίας | C22: Βόλος | D22: 125 | E22: 0.8 | F22: =E22*'ΒΟΗΘ'!D20 -> 9600 | G22: =IF((F22<='ΒΟΗΘ'!B20),"ΕΠΙΤΥΧΙΑ","") -> ΕΠΙΤΥΧΙΑ
A23: 168 | B23: Θεάτρου, ΑΠΘ | C23: Θεσσαλονίκη | D23: 63 | E23: 0.8 | F23: =E23*'ΒΟΗΘ'!D21 -> 9600 | G23: =IF((F23<='ΒΟΗΘ'!B21),"ΕΠΙΤΥΧΙΑ","") -> ΕΠΙΤΥΧΙΑ
A24: 173 | B24: Ιστορίας & Φιλοσοφίας της Επιστήμης, ΕΚΠΑ | C24: Αθήνα | D24: 114 | E24: 1.05 | F24: =E24*'ΒΟΗΘ'!D22 -> 12600 | G24: =IF((F24<='ΒΟΗΘ'!B22),"ΕΠΙΤΥΧΙΑ","") -> 
A25: 178 | B25: Παιδαγωγικό Ειδικής Αγωγής, Θεσσαλίας | C25: Βόλος | D25: 114 | E25: 1 | F25: =E25*'ΒΟΗΘ'!D23 -> 12000 | G25: =IF((F25<='ΒΟΗΘ'!B23),"ΕΠΙΤΥΧΙΑ","") -> ΕΠΙΤΥΧΙΑ
A26: 200 | B26: Επιστήμης & Τεχνολογίας Υλικών, Κρήτης | C26: Ηράκλειο | D26: 106 | E26: 0.8 | F26: =E26*'ΒΟΗΘ'!D24 -> 9600 | G26: =IF((F26<='ΒΟΗΘ'!B24),"ΕΠΙΤΥΧΙΑ","") -> ΕΠΙΤΥΧΙΑ
A27: 201 | B27: Πολιτικών Μηχανικών, ΕΜΠ | C27: Αθήνα | D27: 113 | E27: 1.2 | F27: =E27*'ΒΟΗΘ'!D25 -> 14400 | G27: =IF((F27<='ΒΟΗΘ'!B25),"ΕΠΙΤΥΧΙΑ","") -> 
A28: 203 | B28: Πολιτικών Μηχανικών, ΑΠΘ | C28: Θεσσαλονίκη | D28: 127 | E28: 0.8 | F28: =E28*'ΒΟΗΘ'!D26 -> 9600 | G28: =IF((F28<='ΒΟΗΘ'!B26),"ΕΠΙΤΥΧΙΑ","") -> ΕΠΙΤΥΧΙΑ
A29: 205 | B29: Πολιτικών Μηχανικών, Πατρών | C29: Πάτρα | D29: 162 | E29: 1.2 | F29: =E29*'ΒΟΗΘ'!D27 -> 14400 | G29: =IF((F29<='ΒΟΗΘ'!B27),"ΕΠΙΤΥΧΙΑ","") -> 
A30: 207 | B30: Πολιτικών Μηχανικών, Θράκης | C30: Ξάνθη | D30: 191 | E30: 1.1 | F30: =E30*'ΒΟΗΘ'!D28 -> 13200 | G30: =IF((F30<='ΒΟΗΘ'!B28),"ΕΠΙΤΥΧΙΑ","") -> 
A31: 208 | B31: Πολιτικών Μηχανικών, Θεσσαλίας | C31: Βόλος | D31: 94 | E31: 1 | F31: =E31*'ΒΟΗΘ'!D29 -> 12000 | G31: =IF((F31<='ΒΟΗΘ'!B29),"ΕΠΙΤΥΧΙΑ","") -> ΕΠΙΤΥΧΙΑ
A32: 209 | B32: Μηχανολόγων Μηχανικών, ΕΜΠ | C32: Αθήνα | D32: 113 | E32: 1.2 | F32: =E32*'ΒΟΗΘ'!D30 -> 14400 | G32: =IF((F32<='ΒΟΗΘ'!B30),"ΕΠΙΤΥΧΙΑ","") -> 
A33: 210 | B33: Μηχανολόγων Μηχανικών, Δυτ. Μακεδονίας | C33: Κοζάνη | D33: 136 | E33: 1.2 | F33: =E33*'ΒΟΗΘ'!D31 -> 14400 | G33: =IF((F33<='ΒΟΗΘ'!B31),"ΕΠΙΤΥΧΙΑ","") -> 
A34: 211 | B34: Μηχανολόγων Μηχανικών, ΑΠΘ | C34: Θεσσαλονίκη | D34: 94 | E34: 1.2 | F34: =E34*'ΒΟΗΘ'!D32 -> 14400 | G34: =IF((F34<='ΒΟΗΘ'!B32),"ΕΠΙΤΥΧΙΑ","") -> 
A35: 212 | B35: Δασολογίας & Διαχείρισης Περ/ντος & Φ.Πόρων, Θράκης | C35: Ορεστιάδα | D35: 190 | E35: 0.8 | F35: =E35*'ΒΟΗΘ'!D33 -> 9600 | G35: =IF((F35<='ΒΟΗΘ'!B33),"ΕΠΙΤΥΧΙΑ","") -> ΕΠΙΤΥΧΙΑ
A36: 213 | B36: Μηχανολόγων & Αεροναυπηγών Μηχανικών, Πατρών | C36: Πάτρα | D36: 136 | E36: 1.2 | F36: =E36*'ΒΟΗΘ'!D34 -> 14400 | G36: =IF((F36<='ΒΟΗΘ'!B34),"ΕΠΙΤΥΧΙΑ","") -> 
A37: 214 | B37: Χημικών Μηχανικών και Μηχανικών Περιβάλλοντος (πρώην Μηχανικών Περιβάλλοντος), Πολυτεχν. Κρήτης | C37: Χανιά | D37: 113 | E37: 1 | F37: =E37*'ΒΟΗΘ'!D35 -> 12000 | G37: =IF((F37<='ΒΟΗΘ'!B35),"ΕΠΙΤΥΧΙΑ","") -> ΕΠΙΤΥΧΙΑ
A38: 215 | B38: Μηχανικών Η/Υ & Πληροφορικής | C38: Πάτρα | D38: 183 | E38: 1.2 | F38: =E38*'ΒΟΗΘ'!D36 -> 14400 | G38: =IF((F38<='ΒΟΗΘ'!B36),"ΕΠΙΤΥΧΙΑ","") -> 
A39: 216 | B39: Επιστήμης Υπολογιστών, Κρήτης | C39: Ηράκλειο | D39: 148 | E39: 1.2 | F39: =E39*'ΒΟΗΘ'!D37 -> 14400 | G39: =IF((F39<='ΒΟΗΘ'!B37),"ΕΠΙΤΥΧΙΑ","") -> 
A40: 217 | B40: Ηλεκτρολόγων Μηχανικών & Μηχανικών Υπολογιστών, ΕΜΠ | C40: Αθήνα | D40: 221 | E40: 1.2 | F40: =E40*'ΒΟΗΘ'!D38 -> 14400 | G40: =IF((F40<='ΒΟΗΘ'!B38),"ΕΠΙΤΥΧΙΑ","") -> 
A41: 218 | B41: Στατιστικής & Αναλογιστικών-Χρηματοοικονομικών Μαθηματικών, Αιγαίου | C41: Σάμος | D41: 243 | E41: 0.8 | F41: =E41*'ΒΟΗΘ'!D39 -> 9600 | G41: =IF((F41<='ΒΟΗΘ'!B39),"ΕΠΙΤΥΧΙΑ","") -> ΕΠΙΤΥΧΙΑ
A42: 219 | B42: Ηλεκτρολόγων Μηχανικών & Μηχανικών Υπολογιστών | C42: Θεσσαλονίκη | D42: 168 | E42: 1.2 | F42: =E42*'ΒΟΗΘ'!D40 -> 14400 | G42: =IF((F42<='ΒΟΗΘ'!B40),"ΕΠΙΤΥΧΙΑ","") -> 
A43: 220 | B43: Ηλεκτρολόγων Μηχανικών & Μηχανικών Υπολογιστών, Θεσσαλίας | C43: Βόλος | D43: 168 | E43: 1 | F43: =E43*'ΒΟΗΘ'!D41 -> 12000 | G43: =IF((F43<='ΒΟΗΘ'!B41),"ΕΠΙΤΥΧΙΑ","") -> ΕΠΙΤΥΧΙΑ
A44: 221 | B44: Ηλεκτρολόγων Μηχανικών & Τεχνολογίας Υπολογιστών | C44: Πάτρα | D44: 265 | E44: 1.2 | F44: =E44*'ΒΟΗΘ'!D42 -> 14400 | G44: =IF((F44<='ΒΟΗΘ'!B42),"ΕΠΙΤΥΧΙΑ","") -> 
A45: 222 | B45: Μηχανικών Οικονομίας & Διοίκησης, Αιγαίου | C45: Χίος | D45: 113 | E45: 0.8 | F45: =E45*'ΒΟΗΘ'!D43 -> 9600 | G45: =IF((F45<='ΒΟΗΘ'!B43),"ΕΠΙΤΥΧΙΑ","") -> ΕΠΙΤΥΧΙΑ
A46: 223 | B46: Ηλεκτρολόγων Μηχανικών & Μηχανικών Υπολογιστών, Θράκης | C46: Ξάνθη | D46: 216 | E46: 1.2 | F46: =E46*'ΒΟΗΘ'!D44 -> 14400 | G46: =IF((F46<='ΒΟΗΘ'!B44),"ΕΠΙΤΥΧΙΑ","") -> 
A47: 224 | B47: Μηχανικών Παραγωγής & Διοίκησης, Θράκης | C47: Ξάνθη | D47: 118 | E47: 1.1 | F47: =E47*'ΒΟΗΘ'!D45 -> 13200 | G47: =IF((F47<='ΒΟΗΘ'!B45),"ΕΠΙΤΥΧΙΑ","") -> 
A48: 225 | B48: Αγρονόμων και Τοπογράφων Μηχανικών - Μηχανικών Γεωπληροφορικής (πρώην Αγρονόμων & Τοπογράφων Μηχανικών), ΕΜΠ | C48: Αθήνα | D48: 106 | E48: 1.2 | F48: =E48*'ΒΟΗΘ'!D46 -> 14400 | G48: =IF((F48<='ΒΟΗΘ'!B46),"ΕΠΙΤΥΧΙΑ","") -> 
A49: 227 | B49: Αγρονόμων & Τοπογράφων Μηχανικών, ΑΠΘ | C49: Θεσσαλονίκη | D49: 106 | E49: 1.05 | F49: =E49*'ΒΟΗΘ'!D47 -> 12600 | G49: =IF((F49<='ΒΟΗΘ'!B47),"ΕΠΙΤΥΧΙΑ","") -> 
A50: 228 | B50: Μηχανικών Χωροταξίας, Πολεοδομίας & Περιφερειακής Ανάπτ., Θεσσαλίας | C50: Βόλος | D50: 86 | E50: 0.8 | F50: =E50*'ΒΟΗΘ'!D48 -> 9600 | G50: =IF((F50<='ΒΟΗΘ'!B48),"ΕΠΙΤΥΧΙΑ","") -> ΕΠΙΤΥΧΙΑ
A51: 229 | B51: Ναυπηγών Μηχανολόγων Μηχανικών, ΕΜΠ | C51: Αθήνα | D51: 86 | E51: 1.2 | F51: =E51*'ΒΟΗΘ'!D49 -> 14400 | G51: =IF((F51<='ΒΟΗΘ'!B49),"ΕΠΙΤΥΧΙΑ","") -> 
A52: 230 | B52: Μηχανικών Παραγωγής & Διοίκησης, Πολυτ. Κρήτης | C52: Χανιά | D52: 154 | E52: 1.2 | F52: =E52*'ΒΟΗΘ'!D50 -> 14400 | G52: =IF((F52<='ΒΟΗΘ'!B50),"ΕΠΙΤΥΧΙΑ","") -> 
A53: 231 | B53: Αρχιτεκτόνων Μηχανικών, ΕΜΠ | C53: Αθήνα | D53: 86 | E53: 1 | F53: =E53*'ΒΟΗΘ'!D51 -> 12000 | G53: =IF((F53<='ΒΟΗΘ'!B51),"ΕΠΙΤΥΧΙΑ","") -> ΕΠΙΤΥΧΙΑ
A54: 232 | B54: Αρχιτεκτόνων Μηχανικών, Πατρών | C54: Πάτρα | D54: 94 | E54: 1.2 | F54: =E54*'ΒΟΗΘ'!D52 -> 14400 | G54: =IF((F54<='ΒΟΗΘ'!B52),"ΕΠΙΤΥΧΙΑ","") -> 
A55: 233 | B55: Αρχιτεκτόνων Μηχανικών, ΑΠΘ | C55: Θεσσαλονίκη | D55: 94 | E55: 1 | F55: =E55*'ΒΟΗΘ'!D53 -> 12000 | G55: =IF((F55<='ΒΟΗΘ'!B53),"ΕΠΙΤΥΧΙΑ","") -> ΕΠΙΤΥΧΙΑ
A56: 234 | B56: Αρχιτεκτόνων Μηχανικών, ΔΠΘ | C56: Ξάνθη | D56: 100 | E56: 1.1 | F56: =E56*'ΒΟΗΘ'!D54 -> 13200 | G56: =IF((F56<='ΒΟΗΘ'!B54),"ΕΠΙΤΥΧΙΑ","") -> 
A57: 235 | B57: Χημικών Μηχανικών, ΕΜΠ | C57: Αθήνα | D57: 116 | E57: 1.2 | F57: =E57*'ΒΟΗΘ'!D55 -> 14400 | G57: =IF((F57<='ΒΟΗΘ'!B55),"ΕΠΙΤΥΧΙΑ","") -> 
A58: 236 | B58: Αρχιτεκτόνων Μηχανικών, Θεσσαλίας | C58: Βόλος | D58: 104 | E58: 1 | F58: =E58*'ΒΟΗΘ'!D56 -> 12000 | G58: =IF((F58<='ΒΟΗΘ'!B56),"ΕΠΙΤΥΧΙΑ","") -> ΕΠΙΤΥΧΙΑ
A59: 237 | B59: Χημικών Μηχανικών, ΑΠΘ | C59: Θεσσαλονίκη | D59: 96 | E59: 1.2 | F59: =E59*'ΒΟΗΘ'!D57 -> 14400 | G59: =IF((F59<='ΒΟΗΘ'!B57),"ΕΠΙΤΥΧΙΑ","") -> 
A60: 238 | B60: Μηχανικών Σχεδίασης Προϊόντων & Συστημάτων, Αιγαίου | C60: Σύρος | D60: 113 | E60: 1 | F60: =E60*'ΒΟΗΘ'!D58 -> 12000 | G60: =IF((F60<='ΒΟΗΘ'!B58),"ΕΠΙΤΥΧΙΑ","") -> ΕΠΙΤΥΧΙΑ
A61: 239 | B61: Χημικών Μηχανικών, Πατρών | C61: Πάτρα | D61: 137 | E61: 1.2 | F61: =E61*'ΒΟΗΘ'!D59 -> 14400 | G61: =IF((F61<='ΒΟΗΘ'!B59),"ΕΠΙΤΥΧΙΑ","") -> 
A62: 241 | B62: Μηχανικών Μεταλλείων Μεταλλουργών, ΕΜΠ | C62: Αθήνα | D62: 91 | E62: 0.8 | F62: =E62*'ΒΟΗΘ'!D60 -> 9600 | G62: =IF((F62<='ΒΟΗΘ'!B60),"ΕΠΙΤΥΧΙΑ","") -> ΕΠΙΤΥΧΙΑ
A63: 242 | B63: Μηχανικών Ορυκτών Πόρων, Πολυτ. Κρήτης | C63: Χανιά | D63: 109 | E63: 0.8 | F63: =E63*'ΒΟΗΘ'!D61 -> 9600 | G63: =IF((F63<='ΒΟΗΘ'!B61),"ΕΠΙΤΥΧΙΑ","") -> ΕΠΙΤΥΧΙΑ
A64: 243 | B64: Μαθηματικών, ΕΚΠΑ | C64: Αθήνα | D64: 180 | E64: 1.2 | F64: =E64*'ΒΟΗΘ'!D62 -> 14400 | G64: =IF((F64<='ΒΟΗΘ'!B62),"ΕΠΙΤΥΧΙΑ","") -> 
A65: 245 | B65: Μαθηματικών | C65: Θεσσαλονίκη | D65: 131 | E65: 1.2 | F65: =E65*'ΒΟΗΘ'!D63 -> 14400 | G65: =IF((F65<='ΒΟΗΘ'!B63),"ΕΠΙΤΥΧΙΑ","") -> 
A66: 246 | B66: Εφαρμοσμένων Μαθημ. & Φυσ. Επιστημών, ΕΜΠ | C66: Αθήνα | D66: 144 | E66: 1.2 | F66: =E66*'ΒΟΗΘ'!D64 -> 14400 | G66: =IF((F66<='ΒΟΗΘ'!B64),"ΕΠΙΤΥΧΙΑ","") -> 
A67: 247 | B67: Μαθηματικών | C67: Πάτρα | D67: 300 | E67: 0.9 | F67: =E67*'ΒΟΗΘ'!D65 -> 10800 | G67: =IF((F67<='ΒΟΗΘ'!B65),"ΕΠΙΤΥΧΙΑ","") -> ΕΠΙΤΥΧΙΑ
A68: 248 | B68: Εφαρμοσμένων Μαθηματικών, Κρήτης / Εισαγωγική Κατεύθυνση (Τμ. Μαθηματικών & Εφαρμοσμένων Μαθηματικών) | C68: Ηράκλειο | D68: 148 | E68: 0.9 | F68: =E68*'ΒΟΗΘ'!D66 -> 10800 | G68: =IF((F68<='ΒΟΗΘ'!B66),"ΕΠΙΤΥΧΙΑ","") -> ΕΠΙΤΥΧΙΑ
A69: 249 | B69: Μαθηματικών | C69: Ιωάννινα | D69: 246 | E69: 0.8 | F69: =E69*'ΒΟΗΘ'!D67 -> 9600 | G69: =IF((F69<='ΒΟΗΘ'!B67),"ΕΠΙΤΥΧΙΑ","") -> ΕΠΙΤΥΧΙΑ
A70: 251 | B70: Μαθηματικών, Κρήτης / Εισαγ. Κατ/νση (Τμ. Μαθηματικών & Εφαρμοσμένων Μαθηματικών) | C70: Ηράκλειο | D70: 158 | E70: 0.9 | F70: =E70*'ΒΟΗΘ'!D68 -> 10800 | G70: =IF((F70<='ΒΟΗΘ'!B68),"ΕΠΙΤΥΧΙΑ","") -> ΕΠΙΤΥΧΙΑ
A71: 252 | B71: Μαθηματικών, Αιγαίου | C71: Σάμος | D71: 278 | E71: 0.8 | F71: =E71*'ΒΟΗΘ'!D69 -> 9600 | G71: =IF((F71<='ΒΟΗΘ'!B69),"ΕΠΙΤΥΧΙΑ","") -> ΕΠΙΤΥΧΙΑ
A72: 253 | B72: Φυσικής, ΕΚΠΑ | C72: Αθήνα | D72: 158 | E72: 1.2 | F72: =E72*'ΒΟΗΘ'!D70 -> 14400 | G72: =IF((F72<='ΒΟΗΘ'!B70),"ΕΠΙΤΥΧΙΑ","") -> 
A73: 255 | B73: Φυσικής, ΑΠΘ | C73: Θεσσαλονίκη | D73: 162 | E73: 1.2 | F73: =E73*'ΒΟΗΘ'!D71 -> 14400 | G73: =IF((F73<='ΒΟΗΘ'!B71),"ΕΠΙΤΥΧΙΑ","") -> 
A74: 257 | B74: Φυσικής, Πατρών | C74: Πάτρα | D74: 181 | E74: 1 | F74: =E74*'ΒΟΗΘ'!D72 -> 12000 | G74: =IF((F74<='ΒΟΗΘ'!B72),"ΕΠΙΤΥΧΙΑ","") -> ΕΠΙΤΥΧΙΑ
A75: 259 | B75: Φυσικής, Ιωαννίνων | C75: Ιωάννινα | D75: 201 | E75: 0.8 | F75: =E75*'ΒΟΗΘ'!D73 -> 9600 | G75: =IF((F75<='ΒΟΗΘ'!B73),"ΕΠΙΤΥΧΙΑ","") -> ΕΠΙΤΥΧΙΑ
A76: 261 | B76: Φυσικής, Κρήτης | C76: Ηράκλειο | D76: 150 | E76: 1.2 | F76: =E76*'ΒΟΗΘ'!D74 -> 14400 | G76: =IF((F76<='ΒΟΗΘ'!B74),"ΕΠΙΤΥΧΙΑ","") -> 
A77: 262 | B77: Ψηφιακών Συστημάτων, Πειραιώς | C77: Πειραιάς | D77: 163 | E77: 1.2 | F77: =E77*'ΒΟΗΘ'!D75 -> 14400 | G77: =IF((F77<='ΒΟΗΘ'!B75),"ΕΠΙΤΥΧΙΑ","") -> 
A78: 263 | B78: Χημείας, ΕΚΠΑ | C78: Αθήνα | D78: 94 | E78: 1.2 | F78: =E78*'ΒΟΗΘ'!D76 -> 14400 | G78: =IF((F78<='ΒΟΗΘ'!B76),"ΕΠΙΤΥΧΙΑ","") -> 
A79: 265 | B79: Χημείας, ΑΠΘ | C79: Θεσσαλονίκη | D79: 167 | E79: 0.8 | F79: =E79*'ΒΟΗΘ'!D77 -> 9600 | G79: =IF((F79<='ΒΟΗΘ'!B77),"ΕΠΙΤΥΧΙΑ","") -> ΕΠΙΤΥΧΙΑ
A80: 267 | B80: Χημείας, Πατρών | C80: Πάτρα | D80: 170 | E80: 0.8 | F80: =E80*'ΒΟΗΘ'!D78 -> 9600 | G80: =IF((F80<='ΒΟΗΘ'!B78),"ΕΠΙΤΥΧΙΑ","") -> ΕΠΙΤΥΧΙΑ
A81: 269 | B81: Χημείας, Ιωαννίνων | C81: Ιωάννινα | D81: 199 | E81: 0.8 | F81: =E81*'ΒΟΗΘ'!D79 -> 9600 | G81: =IF((F81<='ΒΟΗΘ'!B79),"ΕΠΙΤΥΧΙΑ","") -> ΕΠΙΤΥΧΙΑ
A82: 270 | B82: Χημείας, Κρήτης | C82: Ηράκλειο | D82: 129 | E82: 1.2 | F82: =E82*'ΒΟΗΘ'!D80 -> 14400 | G82: =IF((F82<='ΒΟΗΘ'!B80),"ΕΠΙΤΥΧΙΑ","") -> 
A83: 272 | B83: Μηχανικών Επιστήμης Υλικών | C83: Ιωάννινα | D83: 121 | E83: 0.85 | F83: =E83*'ΒΟΗΘ'!D81 -> 10200 | G83: =IF((F83<='ΒΟΗΘ'!B81),"ΕΠΙΤΥΧΙΑ","") -> ΕΠΙΤΥΧΙΑ
A84: 273 | B84: Γεωπονίας, ΑΠΘ | C84: Θεσσαλονίκη | D84: 200 | E84: 1.1 | F84: =E84*'ΒΟΗΘ'!D82 -> 13200 | G84: =IF((F84<='ΒΟΗΘ'!B82),"ΕΠΙΤΥΧΙΑ","") -> 
A85: 274 | B85: Γεωπονίας, Φυτικής Παραγ. & Αγροτ. Περιβ/ντος, Θεσσαλίας | C85: Βόλος | D85: 139 | E85: 0.9 | F85: =E85*'ΒΟΗΘ'!D83 -> 10800 | G85: =IF((F85<='ΒΟΗΘ'!B83),"ΕΠΙΤΥΧΙΑ","") -> ΕΠΙΤΥΧΙΑ
A86: 275 | B86: Δασολογίας & Φυσικού Περιβάλλοντος | C86: Θεσσαλονίκη | D86: 81 | E86: 1 | F86: =E86*'ΒΟΗΘ'!D84 -> 12000 | G86: =IF((F86<='ΒΟΗΘ'!B84),"ΕΠΙΤΥΧΙΑ","") -> ΕΠΙΤΥΧΙΑ
A87: 276 | B87: Περιβάλλοντος, Αιγαίου | C87: Μυτιλήνη | D87: 138 | E87: 0.8 | F87: =E87*'ΒΟΗΘ'!D85 -> 9600 | G87: =IF((F87<='ΒΟΗΘ'!B85),"ΕΠΙΤΥΧΙΑ","") -> ΕΠΙΤΥΧΙΑ
A88: 277 | B88: Βιολογίας, ΕΚΠΑ | C88: Αθήνα | D88: 93 | E88: 1.2 | F88: =E88*'ΒΟΗΘ'!D86 -> 14400 | G88: =IF((F88<='ΒΟΗΘ'!B86),"ΕΠΙΤΥΧΙΑ","") -> 
A89: 279 | B89: Βιολογίας, ΑΠΘ | C89: Θεσσαλονίκη | D89: 101 | E89: 1.2 | F89: =E89*'ΒΟΗΘ'!D87 -> 14400 | G89: =IF((F89<='ΒΟΗΘ'!B87),"ΕΠΙΤΥΧΙΑ","") -> 
A90: 280 | B90: Βιολογικών Εφαρμογών & Τεχνολογιών | C90: Ιωάννινα | D90: 112 | E90: 0.8 | F90: =E90*'ΒΟΗΘ'!D88 -> 9600 | G90: =IF((F90<='ΒΟΗΘ'!B88),"ΕΠΙΤΥΧΙΑ","") -> ΕΠΙΤΥΧΙΑ
A91: 281 | B91: Βιολογίας, Πατρών | C91: Πάτρα | D91: 134 | E91: 1.2 | F91: =E91*'ΒΟΗΘ'!D89 -> 14400 | G91: =IF((F91<='ΒΟΗΘ'!B89),"ΕΠΙΤΥΧΙΑ","") -> 
A92: 282 | B92: Βιολογίας, Κρήτης | C92: Ηράκλειο | D92: 114 | E92: 1 | F92: =E92*'ΒΟΗΘ'!D90 -> 12000 | G92: =IF((F92<='ΒΟΗΘ'!B90),"ΕΠΙΤΥΧΙΑ","") -> ΕΠΙΤΥΧΙΑ
A93: 283 | B93: Γεωλογίας & Γεωπεριβάλλοντος, ΕΚΠΑ | C93: Αθήνα | D93: 113 | E93: 0.95 | F93: =E93*'ΒΟΗΘ'!D91 -> 11400 | G93: =IF((F93<='ΒΟΗΘ'!B91),"ΕΠΙΤΥΧΙΑ","") -> ΕΠΙΤΥΧΙΑ
A94: 284 | B94: Βιοχημείας & Βιοτεχνολογίας, Θεσσαλίας | C94: Λάρισα | D94: 103 | E94: 0.8 | F94: =E94*'ΒΟΗΘ'!D92 -> 9600 | G94: =IF((F94<='ΒΟΗΘ'!B92),"ΕΠΙΤΥΧΙΑ","") -> ΕΠΙΤΥΧΙΑ
A95: 285 | B95: Γεωλογίας, ΑΠΘ | C95: Θεσσαλονίκη | D95: 104 | E95: 0.82 | F95: =E95*'ΒΟΗΘ'!D93 -> 9840 | G95: =IF((F95<='ΒΟΗΘ'!B93),"ΕΠΙΤΥΧΙΑ","") -> ΕΠΙΤΥΧΙΑ
A96: 287 | B96: Γεωλογίας, Πατρών | C96: Πάτρα | D96: 164 | E96: 0.85 | F96: =E96*'ΒΟΗΘ'!D94 -> 10200 | G96: =IF((F96<='ΒΟΗΘ'!B94),"ΕΠΙΤΥΧΙΑ","") -> ΕΠΙΤΥΧΙΑ
A97: 288 | B97: Επιστήμης των Υλικών | C97: Πάτρα | D97: 118 | E97: 0.8 | F97: =E97*'ΒΟΗΘ'!D95 -> 9600 | G97: =IF((F97<='ΒΟΗΘ'!B95),"ΕΠΙΤΥΧΙΑ","") -> ΕΠΙΤΥΧΙΑ
A98: 290 | B98: Μοριακής Βιολογίας & Γενετικής, Θράκης | C98: Αλεξ/πολη | D98: 117 | E98: 1.2 | F98: =E98*'ΒΟΗΘ'!D96 -> 14400 | G98: =IF((F98<='ΒΟΗΘ'!B96),"ΕΠΙΤΥΧΙΑ","") -> 
A99: 310 | B99: Γεωγραφίας, Αιγαίου | C99: Μυτιλήνη | D99: 177 | E99: 0.8 | F99: =E99*'ΒΟΗΘ'!D97 -> 9600 | G99: =IF((F99<='ΒΟΗΘ'!B97),"ΕΠΙΤΥΧΙΑ","") -> ΕΠΙΤΥΧΙΑ
A100: 318 | B100: Στατιστικής & Ασφαλιστικής Επιστήμης, Πειραιώς | C100: Πειραιάς | D100: 146 | E100: 1.2 | F100: =E100*'ΒΟΗΘ'!D98 -> 14400 | G100: =IF((F100<='ΒΟΗΘ'!B98),"ΕΠΙΤΥΧΙΑ","") -> 
A101: 323 | B101: Επιστήμης Φυτικής Παραγωγής, Γεωπονικού | C101: Αθήνα | D101: 167 | E101: 1 | F101: =E101*'ΒΟΗΘ'!D99 -> 12000 | G101: =IF((F101<='ΒΟΗΘ'!B99),"ΕΠΙΤΥΧΙΑ","") -> ΕΠΙΤΥΧΙΑ
A102: 324 | B102: Επιστήμης Ζωικής Παραγωγής, Γεωπονικού (πρώην Επιστήμης Ζωικής Παραγωγής & Υδατοκαλλιεργειών) | C102: Αθήνα | D102: 109 | E102: 1 | F102: =E102*'ΒΟΗΘ'!D100 -> 12000 | G102: =IF((F102<='ΒΟΗΘ'!B100),"ΕΠΙΤΥΧΙΑ","") -> ΕΠΙΤΥΧΙΑ
A103: 325 | B103: Βιοτεχνολογίας, Γεωπονικού | C103: Αθήνα | D103: 109 | E103: 1.01 | F103: =E103*'ΒΟΗΘ'!D101 -> 12120 | G103: =IF((F103<='ΒΟΗΘ'!B101),"ΕΠΙΤΥΧΙΑ","") -> ΕΠΙΤΥΧΙΑ
A104: 327 | B104: Αξιοποίησης Φυσ. Πόρων & Γεωργ. Μηχανικής, Γεωπονικού | C104: Αθήνα | D104: 118 | E104: 1.04 | F104: =E104*'ΒΟΗΘ'!D102 -> 12480 | G104: =IF((F104<='ΒΟΗΘ'!B102),"ΕΠΙΤΥΧΙΑ","") -> ΕΠΙΤΥΧΙΑ
A105: 328 | B105: Επιστήμης Τροφίμων & Διατροφής του Ανθρώπου, Γεωπονικού | C105: Αθήνα | D105: 101 | E105: 1.2 | F105: =E105*'ΒΟΗΘ'!D103 -> 14400 | G105: =IF((F105<='ΒΟΗΘ'!B103),"ΕΠΙΤΥΧΙΑ","") -> 
A106: 329 | B106: Στατιστικής, Ο.Π.Α. | C106: Αθήνα | D106: 97 | E106: 1.2 | F106: =E106*'ΒΟΗΘ'!D104 -> 14400 | G106: =IF((F106<='ΒΟΗΘ'!B104),"ΕΠΙΤΥΧΙΑ","") -> 
A107: 330 | B107: Πληροφορικής & Τηλεπικοινωνιών, ΕΚΠΑ | C107: Αθήνα | D107: 174 | E107: 1.2 | F107: =E107*'ΒΟΗΘ'!D105 -> 14400 | G107: =IF((F107<='ΒΟΗΘ'!B105),"ΕΠΙΤΥΧΙΑ","") -> 
A108: 331 | B108: Ηλεκτρολόγων Μηχ/κών & Μηχ/κών Υπολογιστών, Πολυτ. Κρήτης | C108: Χανιά | D108: 174 | E108: 1.2 | F108: =E108*'ΒΟΗΘ'!D106 -> 14400 | G108: =IF((F108<='ΒΟΗΘ'!B106),"ΕΠΙΤΥΧΙΑ","") -> 
A109: 332 | B109: Μηχανολόγων Μηχανικών, Θεσσαλίας | C109: Βόλος | D109: 104 | E109: 1.2 | F109: =E109*'ΒΟΗΘ'!D107 -> 14400 | G109: =IF((F109<='ΒΟΗΘ'!B107),"ΕΠΙΤΥΧΙΑ","") -> 
A110: 333 | B110: Πληροφορικής, Ο.Π.Α. | C110: Αθήνα | D110: 182 | E110: 1.2 | F110: =E110*'ΒΟΗΘ'!D108 -> 14400 | G110: =IF((F110<='ΒΟΗΘ'!B108),"ΕΠΙΤΥΧΙΑ","") -> 
A111: 334 | B111: Παιδαγωγικό Δημοτικής Εκπ/σης, Δυτ. Μακεδονίας | C111: Φλώρινα | D111: 180 | E111: 0.8 | F111: =E111*'ΒΟΗΘ'!D109 -> 9600 | G111: =IF((F111<='ΒΟΗΘ'!B109),"ΕΠΙΤΥΧΙΑ","") -> ΕΠΙΤΥΧΙΑ
A112: 336 | B112: Βιομηχανικής Διοίκησης & Τεχνολογίας | C112: Πειραιάς | D112: 133 | E112: 1.2 | F112: =E112*'ΒΟΗΘ'!D110 -> 14400 | G112: =IF((F112<='ΒΟΗΘ'!B110),"ΕΠΙΤΥΧΙΑ","") -> 
A113: 338 | B113: Πληροφορικής, ΑΠΘ | C113: Θεσσαλονίκη | D113: 118 | E113: 1.2 | F113: =E113*'ΒΟΗΘ'!D111 -> 14400 | G113: =IF((F113<='ΒΟΗΘ'!B111),"ΕΠΙΤΥΧΙΑ","") -> 
A114: 339 | B114: Πληροφορικής, Πειραιά | C114: Πειραιάς | D114: 157 | E114: 1.2 | F114: =E114*'ΒΟΗΘ'!D112 -> 14400 | G114: =IF((F114<='ΒΟΗΘ'!B112),"ΕΠΙΤΥΧΙΑ","") -> 
A115: 340 | B115: Μηχανικών Η/Υ & Πληροφορικής | C115: Ιωάννινα | D115: 193 | E115: 0.8 | F115: =E115*'ΒΟΗΘ'!D113 -> 9600 | G115: =IF((F115<='ΒΟΗΘ'!B113),"ΕΠΙΤΥΧΙΑ","") -> ΕΠΙΤΥΧΙΑ
A116: 341 | B116: Παιδαγωγικό Νηπιαγωγών, Δυτ. Μακεδονίας | C116: Φλώρινα | D116: 178 | E116: 1 | F116: =E116*'ΒΟΗΘ'!D114 -> 12000 | G116: =IF((F116<='ΒΟΗΘ'!B114),"ΕΠΙΤΥΧΙΑ","") -> ΕΠΙΤΥΧΙΑ
A117: 344 | B117: Μηχανικών Πληροφοριακών & Επικοινωνιακών Συστημάτων, Αιγαίου | C117: Σάμος | D117: 212 | E117: 0.8 | F117: =E117*'ΒΟΗΘ'!D115 -> 9600 | G117: =IF((F117<='ΒΟΗΘ'!B115),"ΕΠΙΤΥΧΙΑ","") -> ΕΠΙΤΥΧΙΑ
A118: 353 | B118: Αγροτικής Ανάπτυξης, ΔΠΘ | C118: Ορεστιάδα | D118: 283 | E118: 0.8 | F118: =E118*'ΒΟΗΘ'!D116 -> 9600 | G118: =IF((F118<='ΒΟΗΘ'!B116),"ΕΠΙΤΥΧΙΑ","") -> ΕΠΙΤΥΧΙΑ
A119: 356 | B119: Γεωγραφίας, Χαροκοπείου | C119: Αθήνα | D119: 62 | E119: 0.9 | F119: =E119*'ΒΟΗΘ'!D117 -> 10800 | G119: =IF((F119<='ΒΟΗΘ'!B117),"ΕΠΙΤΥΧΙΑ","") -> ΕΠΙΤΥΧΙΑ
A120: 360 | B120: Γεωπονίας, Ιχθυολογίας & Υδάτινου Περιβ/ντος, Θεσσαλίας | C120: Βόλος | D120: 157 | E120: 0.9 | F120: =E120*'ΒΟΗΘ'!D118 -> 10800 | G120: =IF((F120<='ΒΟΗΘ'!B118),"ΕΠΙΤΥΧΙΑ","") -> ΕΠΙΤΥΧΙΑ
A121: 363 | B121: Μηχανικών Χωροταξίας & Ανάπτυξης | C121: Θεσσαλονίκη | D121: 94 | E121: 0.88 | F121: =E121*'ΒΟΗΘ'!D119 -> 10560 | G121: =IF((F121<='ΒΟΗΘ'!B119),"ΕΠΙΤΥΧΙΑ","") -> ΕΠΙΤΥΧΙΑ
A122: 366 | B122: Πληροφορικής, Ιονίου | C122: Κέρκυρα | D122: 202 | E122: 1 | F122: =E122*'ΒΟΗΘ'!D120 -> 12000 | G122: =IF((F122<='ΒΟΗΘ'!B120),"ΕΠΙΤΥΧΙΑ","") -> ΕΠΙΤΥΧΙΑ
A123: 367 | B123: Τεχνών Ήχου & Εικόνας, Ιονίου | C123: Κέρκυρα | D123: 86 | E123: 0.8 | F123: =E123*'ΒΟΗΘ'!D121 -> 9600 | G123: =IF((F123<='ΒΟΗΘ'!B121),"ΕΠΙΤΥΧΙΑ","") -> ΕΠΙΤΥΧΙΑ
A124: 369 | B124: Πληροφορικής με Εφαρμογές στη Βιοϊατρική, Θεσσαλίας | C124: Λαμία | D124: 167 | E124: 0.8 | F124: =E124*'ΒΟΗΘ'!D122 -> 9600 | G124: =IF((F124<='ΒΟΗΘ'!B122),"ΕΠΙΤΥΧΙΑ","") -> ΕΠΙΤΥΧΙΑ
A125: 370 | B125: Αρχιτεκτόνων Μηχανικών, Πολυτεχνείου Κρήτης | C125: Χανιά | D125: 104 | E125: 0.9 | F125: =E125*'ΒΟΗΘ'!D123 -> 10800 | G125: =IF((F125<='ΒΟΗΘ'!B123),"ΕΠΙΤΥΧΙΑ","") -> ΕΠΙΤΥΧΙΑ
A126: 372 | B126: Επιστήμης Τροφίμων & Διατροφής, Αιγαίου | C126: Λήμνος | D126: 162 | E126: 0.8 | F126: =E126*'ΒΟΗΘ'!D124 -> 9600 | G126: =IF((F126<='ΒΟΗΘ'!B124),"ΕΠΙΤΥΧΙΑ","") -> ΕΠΙΤΥΧΙΑ
A127: 387 | B127: Ηλεκτρολόγων & Ηλεκτρονικών Μηχανικών, Δυτ. Αττικής | C127: Αιγάλεω | D127: 247 | E127: 1 | F127: =E127*'ΒΟΗΘ'!D125 -> 12000 | G127: =IF((F127<='ΒΟΗΘ'!B125),"ΕΠΙΤΥΧΙΑ","") -> ΕΠΙΤΥΧΙΑ
A128: 388 | B128: Μηχανικών Βιοϊατρικής, Δυτ. Αττικής | C128: Αιγάλεω | D128: 94 | E128: 0.8 | F128: =E128*'ΒΟΗΘ'!D126 -> 9600 | G128: =IF((F128<='ΒΟΗΘ'!B126),"ΕΠΙΤΥΧΙΑ","") -> ΕΠΙΤΥΧΙΑ
A129: 389 | B129: Μηχανικών Βιομηχανικής Σχεδίασης & Παραγωγής, Δυτ. Αττικής | C129: Αιγάλεω | D129: 243 | E129: 1 | F129: =E129*'ΒΟΗΘ'!D127 -> 12000 | G129: =IF((F129<='ΒΟΗΘ'!B127),"ΕΠΙΤΥΧΙΑ","") -> ΕΠΙΤΥΧΙΑ
A130: 390 | B130: Μηχανικών Πληροφορικής & Υπολογιστών, Δυτ. Αττικής | C130: Αιγάλεω | D130: 213 | E130: 1.2 | F130: =E130*'ΒΟΗΘ'!D128 -> 14400 | G130: =IF((F130<='ΒΟΗΘ'!B128),"ΕΠΙΤΥΧΙΑ","") -> 
A131: 391 | B131: Μηχανικών Τοπογραφίας & Γεωπληροφορικής, Δυτ. Αττικής | C131: Αιγάλεω | D131: 85 | E131: 0.8 | F131: =E131*'ΒΟΗΘ'!D129 -> 9600 | G131: =IF((F131<='ΒΟΗΘ'!B129),"ΕΠΙΤΥΧΙΑ","") -> ΕΠΙΤΥΧΙΑ
A132: 392 | B132: Μηχανολόγων Μηχανικών, Δυτ. Αττικής | C132: Αιγάλεω | D132: 137 | E132: 1.11 | F132: =E132*'ΒΟΗΘ'!D130 -> 13320 | G132: =IF((F132<='ΒΟΗΘ'!B130),"ΕΠΙΤΥΧΙΑ","") -> 
A133: 393 | B133: Ναυπηγών Μηχανικών, Δυτ. Αττικής | C133: Αιγάλεω | D133: 85 | E133: 0.9 | F133: =E133*'ΒΟΗΘ'!D131 -> 10800 | G133: =IF((F133<='ΒΟΗΘ'!B131),"ΕΠΙΤΥΧΙΑ","") -> ΕΠΙΤΥΧΙΑ
A134: 394 | B134: Πολιτικών Μηχανικών, Δυτ. Αττικής | C134: Αιγάλεω | D134: 184 | E134: 0.93 | F134: =E134*'ΒΟΗΘ'!D132 -> 11160 | G134: =IF((F134<='ΒΟΗΘ'!B132),"ΕΠΙΤΥΧΙΑ","") -> ΕΠΙΤΥΧΙΑ
A135: 401 | B135: Επιστήμης Φυσ. Αγωγής & Αθλητισμού, ΕΚΠΑ | C135: Αθήνα | D135: 121 | E135: 0.8 | F135: =E135*'ΒΟΗΘ'!D133 -> 9600 | G135: =IF((F135<='ΒΟΗΘ'!B133),"ΕΠΙΤΥΧΙΑ","") -> ΕΠΙΤΥΧΙΑ
A136: 402 | B136: Επιστήμης Φυσ. Αγωγής & Αθλητισμού, ΑΠΘ / Εισαγ. Κατ/νση | C136: Σέρρες | D136: 113 | E136: 0.8 | F136: =E136*'ΒΟΗΘ'!D134 -> 9600 | G136: =IF((F136<='ΒΟΗΘ'!B134),"ΕΠΙΤΥΧΙΑ","") -> ΕΠΙΤΥΧΙΑ
A137: 403 | B137: Επιστήμης Φυσ. Αγωγής & Αθλητισμού, ΑΠΘ / Εισαγ. Κατ/νση | C137: Θεσσαλονίκη | D137: 121 | E137: 1 | F137: =E137*'ΒΟΗΘ'!D135 -> 12000 | G137: =IF((F137<='ΒΟΗΘ'!B135),"ΕΠΙΤΥΧΙΑ","") -> ΕΠΙΤΥΧΙΑ
A138: 404 | B138: Επιστήμης Φυσ. Αγωγής & Αθλητισμού, Θράκης | C138: Κομοτηνή | D138: 324 | E138: 0.8 | F138: =E138*'ΒΟΗΘ'!D136 -> 9600 | G138: =IF((F138<='ΒΟΗΘ'!B136),"ΕΠΙΤΥΧΙΑ","") -> ΕΠΙΤΥΧΙΑ
A139: 405 | B139: Επιστήμης Φυσ. Αγωγής & Αθλητισμού, Θεσσαλίας | C139: Τρίκαλα | D139: 151 | E139: 1 | F139: =E139*'ΒΟΗΘ'!D137 -> 12000 | G139: =IF((F139<='ΒΟΗΘ'!B137),"ΕΠΙΤΥΧΙΑ","") -> ΕΠΙΤΥΧΙΑ
A140: 406 | B140: Μουσικών Σπουδών, ΑΠΘ | C140: Θεσσαλονίκη | D140: 55 | E140: 0.9 | F140: =E140*'ΒΟΗΘ'!D138 -> 10800 | G140: =IF((F140<='ΒΟΗΘ'!B138),"ΕΠΙΤΥΧΙΑ","") -> ΕΠΙΤΥΧΙΑ
A141: 407 | B141: Μουσικών Σπουδών, Ιονίου (ΕΙΔΙΚΕΣ ΕΞΕΤΑΣΕΙΣ) | C141: Κέρκυρα | D141: 91 | E141: (***) | F141: =E141*'ΒΟΗΘ'!D139 -> #VALUE! | G141: =IF((F141<='ΒΟΗΘ'!B139),"ΕΠΙΤΥΧΙΑ","") -> #VALUE!
A142: 408 | B142: Μουσικών Σπουδών, ΕΚΠΑ | C142: Αθήνα | D142: 63 | E142: 0.9 | F142: =E142*'ΒΟΗΘ'!D140 -> 10800 | G142: =IF((F142<='ΒΟΗΘ'!B140),"ΕΠΙΤΥΧΙΑ","") -> ΕΠΙΤΥΧΙΑ
A143: 409 | B143: Μουσικής Επιστήμης & Τέχνης, Μακεδονίας (ΕΙΔΙΚΕΣ ΕΞΕΤΑΣΕΙΣ) | C143: Θεσσαλονίκη | D143: 73 | E143: (***) | F143: =E143*'ΒΟΗΘ'!D141 -> #VALUE! | G143: =IF((F143<='ΒΟΗΘ'!B141),"ΕΠΙΤΥΧΙΑ","") -> #VALUE!
A144: 412 | B144: Πληροφορικής & Τηλεματικής, Χαροκοπείου | C144: Αθήνα | D144: 89 | E144: 1.2 | F144: =E144*'ΒΟΗΘ'!D142 -> 14400 | G144: =IF((F144<='ΒΟΗΘ'!B142),"ΕΠΙΤΥΧΙΑ","") -> 
A145: 419 | B145: Πρόγραμμα Διαχείρισης Εκκλησιαστικών Κειμηλίων, Αν. Εκκλ. Ακαδ. Αθήνας | C145: Αθήνα | D145: 9 | E145: 0.8 | F145: =E145*'ΒΟΗΘ'!D143 -> 9600 | G145: =IF((F145<='ΒΟΗΘ'!B143),"ΕΠΙΤΥΧΙΑ","") -> ΕΠΙΤΥΧΙΑ
A146: 420 | B146: Πρόγραμμα Διαχείρισης Εκκλησιαστικών Κειμηλίων, Αν. Εκκλ. Ακαδ. Θεσ/κης | C146: Θεσσαλονίκη | D146: 8 | E146: 0.8 | F146: =E146*'ΒΟΗΘ'!D144 -> 9600 | G146: =IF((F146<='ΒΟΗΘ'!B144),"ΕΠΙΤΥΧΙΑ","") -> ΕΠΙΤΥΧΙΑ
A147: 476 | B147: Μηχανικών Περιβάλλοντος, ΔΠΘ | C147: Ξάνθη | D147: 113 | E147: 0.8 | F147: =E147*'ΒΟΗΘ'!D145 -> 9600 | G147: =IF((F147<='ΒΟΗΘ'!B145),"ΕΠΙΤΥΧΙΑ","") -> ΕΠΙΤΥΧΙΑ
A148: 477 | B148: Εκπαιδευτικών Μηχανολόγων Μηχανικών, Α.Σ.ΠΑΙ.Τ.Ε. | C148: Αθήνα | D148: 86 | E148: 0.85 | F148: =E148*'ΒΟΗΘ'!D146 -> 10200 | G148: =IF((F148<='ΒΟΗΘ'!B146),"ΕΠΙΤΥΧΙΑ","") -> ΕΠΙΤΥΧΙΑ
A149: 497 | B149: Εκπαιδευτικών Ηλεκτρολόγων Μηχανικών, Α.Σ.ΠΑΙ.Τ.Ε. / Εισαγ. Κατ/νση | C149: Αθήνα | D149: 86 | E149: 0.8 | F149: =E149*'ΒΟΗΘ'!D147 -> 9600 | G149: =IF((F149<='ΒΟΗΘ'!B147),"ΕΠΙΤΥΧΙΑ","") -> ΕΠΙΤΥΧΙΑ
A150: 507 | B150: Εκπαιδευτικών Ηλεκτρονικών Μηχανικών, Α.Σ.ΠΑΙ.Τ.Ε. / Εισαγ. Κατ/νση | C150: Αθήνα | D150: 86 | E150: 0.8 | F150: =E150*'ΒΟΗΘ'!D148 -> 9600 | G150: =IF((F150<='ΒΟΗΘ'!B148),"ΕΠΙΤΥΧΙΑ","") -> ΕΠΙΤΥΧΙΑ
A151: 673 | B151: Αγωγής & Φροντίδας στην Πρώιμη Παιδική Ηλικία, Δυτ. Αττικής | C151: Ίλιον | D151: 113 | E151: 1 | F151: =E151*'ΒΟΗΘ'!D149 -> 12000 | G151: =IF((F151<='ΒΟΗΘ'!B149),"ΕΠΙΤΥΧΙΑ","") -> ΕΠΙΤΥΧΙΑ
A152: 674 | B152: Γραφιστικής & Οπτικής Επικοινωνίας, Δυτ. Αττικής | C152: Αιγάλεω | D152: 174 | E152: 1 | F152: =E152*'ΒΟΗΘ'!D150 -> 12000 | G152: =IF((F152<='ΒΟΗΘ'!B150),"ΕΠΙΤΥΧΙΑ","") -> ΕΠΙΤΥΧΙΑ
A153: 675 | B153: Εσωτερικής Αρχιτεκτονικής, Δυτ. Αττικής | C153: Αιγάλεω | D153: 94 | E153: 0.9 | F153: =E153*'ΒΟΗΘ'!D151 -> 10800 | G153: =IF((F153<='ΒΟΗΘ'!B151),"ΕΠΙΤΥΧΙΑ","") -> ΕΠΙΤΥΧΙΑ
A154: 676 | B154: Συντήρησης Αρχαιοτήτων & Έργων Τέχνης, Δυτ. Αττικής | C154: Αιγάλεω | D154: 67 | E154: 0.8 | F154: =E154*'ΒΟΗΘ'!D152 -> 9600 | G154: =IF((F154<='ΒΟΗΘ'!B152),"ΕΠΙΤΥΧΙΑ","") -> ΕΠΙΤΥΧΙΑ
A155: 677 | B155: Φωτογραφίας & Οπτικοακουστικών Τεχνών, Δυτ. Αττικής | C155: Αιγάλεω | D155: 92 | E155: 1 | F155: =E155*'ΒΟΗΘ'!D153 -> 12000 | G155: =IF((F155<='ΒΟΗΘ'!B153),"ΕΠΙΤΥΧΙΑ","") -> ΕΠΙΤΥΧΙΑ
A156: 684 | B156: Επιστήμης & Τεχνολογίας Τροφίμων, Δυτ. Αττικής | C156: Αιγάλεω | D156: 81 | E156: 1.1 | F156: =E156*'ΒΟΗΘ'!D154 -> 13200 | G156: =IF((F156<='ΒΟΗΘ'!B154),"ΕΠΙΤΥΧΙΑ","") -> 
A157: 685 | B157: Επιστημών Οίνου, Αμπέλου & Ποτών, Δυτ. Αττικής | C157: Αιγάλεω | D157: 109 | E157: 1 | F157: =E157*'ΒΟΗΘ'!D155 -> 12000 | G157: =IF((F157<='ΒΟΗΘ'!B155),"ΕΠΙΤΥΧΙΑ","") -> ΕΠΙΤΥΧΙΑ
A158: 776 | B158: Εκπαιδευτικών Πολιτικών Μηχανικών, Α.Σ.ΠΑΙ.Τ.Ε. | C158: Αθήνα | D158: 86 | E158: 0.85 | F158: =E158*'ΒΟΗΘ'!D156 -> 10200 | G158: =IF((F158<='ΒΟΗΘ'!B156),"ΕΠΙΤΥΧΙΑ","") -> ΕΠΙΤΥΧΙΑ
A159: 779 | B159: Αρχιτεκτόνων Μηχανικών, Ιωαννίνων | C159: Ιωάννινα | D159: 45 | E159: 0.8 | F159: =E159*'ΒΟΗΘ'!D157 -> 9600 | G159: =IF((F159<='ΒΟΗΘ'!B157),"ΕΠΙΤΥΧΙΑ","") -> ΕΠΙΤΥΧΙΑ
A160: 801 | B160: Ευελπίδων (ΣΣΕ)- Όπλα Γεν. Σειρά | C160: Αθήνα | D160: 140 | E160: 1.2 | F160: =E160*'ΒΟΗΘ'!D158 -> 14400 | G160: =IF((F160<='ΒΟΗΘ'!B158),"ΕΠΙΤΥΧΙΑ","") -> 
A161: 806 | B161: Ευελπίδων (ΣΣΕ)- Σώματα Γεν. Σειρά | C161: Αθήνα | D161: 34 | E161: 1.2 | F161: =E161*'ΒΟΗΘ'!D159 -> 14400 | G161: =IF((F161<='ΒΟΗΘ'!B159),"ΕΠΙΤΥΧΙΑ","") -> 
A162: 811 | B162: Ναυτικών Δοκίμων (ΣΝΔ)- Μάχιμοι Γεν. Σειρά | C162: Αθήνα | D162: 22 | E162: 1.2 | F162: =E162*'ΒΟΗΘ'!D160 -> 14400 | G162: =IF((F162<='ΒΟΗΘ'!B160),"ΕΠΙΤΥΧΙΑ","") -> 
A163: 816 | B163: Ναυτικών Δοκίμων (ΣΝΔ)- Μηχανικοί Γεν. Σειρά | C163: Αθήνα | D163: 11 | E163: 1.2 | F163: =E163*'ΒΟΗΘ'!D161 -> 14400 | G163: =IF((F163<='ΒΟΗΘ'!B161),"ΕΠΙΤΥΧΙΑ","") -> 
A164: 817 | B164: Σχολή Πλοιάρχων Εμπορικού Ναυτικού Γεν.Σειρά | C164: Διάφορες | D164: 0 | E164: 0.8 | F164: =E164*'ΒΟΗΘ'!D162 -> 9600 | G164: =IF((F164<='ΒΟΗΘ'!B162),"ΕΠΙΤΥΧΙΑ","") -> ΕΠΙΤΥΧΙΑ
A165: 818 | B165: Σχολή Μηχανικών Εμπορικού Ναυτικού Γεν.Σειρά | C165: Διάφορες | D165: 0 | E165: 0.8 | F165: =E165*'ΒΟΗΘ'!D163 -> 9600 | G165: =IF((F165<='ΒΟΗΘ'!B163),"ΕΠΙΤΥΧΙΑ","") -> ΕΠΙΤΥΧΙΑ
A166: 821 | B166: Ικάρων (ΣΙ)- Ιπτάμενοι Γεν. Σειρά | C166: Αθήνα | D166: 37 | E166: 1.2 | F166: =E166*'ΒΟΗΘ'!D164 -> 14400 | G166: =IF((F166<='ΒΟΗΘ'!B164),"ΕΠΙΤΥΧΙΑ","") -> 
A167: 826 | B167: Ικάρων- Μηχανικοί (ΣΜΑ) Γεν. Σειρά | C167: Αθήνα | D167: 23 | E167: 1.2 | F167: =E167*'ΒΟΗΘ'!D165 -> 14400 | G167: =IF((F167<='ΒΟΗΘ'!B165),"ΕΠΙΤΥΧΙΑ","") -> 
A168: 827 | B168: Ικάρων (ΣΙ)- Ελεγκτές Αεράμυνας Γεν. Σειρά | C168: Αθήνα | D168: 26 | E168: 1.2 | F168: =E168*'ΒΟΗΘ'!D166 -> 14400 | G168: =IF((F168<='ΒΟΗΘ'!B166),"ΕΠΙΤΥΧΙΑ","") -> 
A169: 862 | B169: Μονίμων Υπαξ/κών Στρατού (Σ.Μ.Υ) - Όπλα Γεν. Σειρά | C169: Τρίκαλα | D169: 103 | E169: 1 | F169: =E169*'ΒΟΗΘ'!D167 -> 12000 | G169: =IF((F169<='ΒΟΗΘ'!B167),"ΕΠΙΤΥΧΙΑ","") -> ΕΠΙΤΥΧΙΑ
A170: 863 | B170: Μονίμων Υπαξ/κών Στρατού (Σ.Μ.Υ) - Σώματα Γεν. Σειρά | C170: Τρίκαλα | D170: 35 | E170: 1 | F170: =E170*'ΒΟΗΘ'!D168 -> 12000 | G170: =IF((F170<='ΒΟΗΘ'!B168),"ΕΠΙΤΥΧΙΑ","") -> ΕΠΙΤΥΧΙΑ
A171: 864 | B171: Μονίμων Υπαξ/κών Ναυτικού (Σ.Μ.Υ.Ν) Γεν. Σειρά | C171: Αθήνα | D171: 65 | E171: 1 | F171: =E171*'ΒΟΗΘ'!D169 -> 12000 | G171: =IF((F171<='ΒΟΗΘ'!B169),"ΕΠΙΤΥΧΙΑ","") -> ΕΠΙΤΥΧΙΑ
A172: 869 | B172: Αξιωματικών Ελλ. Αστυνομίας Γεν. Σειρά | C172: Αθήνα | D172: 31 | E172: 0.8 | F172: =E172*'ΒΟΗΘ'!D170 -> 9600 | G172: =IF((F172<='ΒΟΗΘ'!B170),"ΕΠΙΤΥΧΙΑ","") -> ΕΠΙΤΥΧΙΑ
A173: 870 | B173: Αστυφυλάκων Γεν. Σειρά | C173: Αθήνα | D173: 221 | E173: 0.8 | F173: =E173*'ΒΟΗΘ'!D171 -> 9600 | G173: =IF((F173<='ΒΟΗΘ'!B171),"ΕΠΙΤΥΧΙΑ","") -> ΕΠΙΤΥΧΙΑ
A174: 871 | B174: Τμήμα Ανθυποπυραγών (Πυροσβέστες) Γεν. Σειρά | C174: Αθήνα | D174: 4 | E174: 0.8 | F174: =E174*'ΒΟΗΘ'!D172 -> 9600 | G174: =IF((F174<='ΒΟΗΘ'!B172),"ΕΠΙΤΥΧΙΑ","") -> ΕΠΙΤΥΧΙΑ
A175: 872 | B175: Αξιωματικών Ελλ. Αστυνομίας (Αστυνομικοί) Γεν. Σειρά | C175: Αθήνα | D175: 22 | E175: 0.8 | F175: =E175*'ΒΟΗΘ'!D173 -> 9600 | G175: =IF((F175<='ΒΟΗΘ'!B173),"ΕΠΙΤΥΧΙΑ","") -> ΕΠΙΤΥΧΙΑ
A176: 876 | B176: Σχολή Πυροσβεστών Γεν. Σειρά | C176: Αθήνα | D176: 131 | E176: 0.8 | F176: =E176*'ΒΟΗΘ'!D174 -> 9600 | G176: =IF((F176<='ΒΟΗΘ'!B174),"ΕΠΙΤΥΧΙΑ","") -> ΕΠΙΤΥΧΙΑ
A177: 877 | B177: Σχολή Αξιωματικών Πυροσβεστικής Ακαδημίας Γεν. Σειρά | C177: Αθήνα | D177: 16 | E177: 0.8 | F177: =E177*'ΒΟΗΘ'!D175 -> 9600 | G177: =IF((F177<='ΒΟΗΘ'!B175),"ΕΠΙΤΥΧΙΑ","") -> ΕΠΙΤΥΧΙΑ
A178: 878 | B178: ΣΜΥΑ - Κατεύθυνση Τεχνολογικής Υποστήριξης Γεν. Σειρά | C178: Αθήνα | D178: 65 | E178: 1 | F178: =E178*'ΒΟΗΘ'!D176 -> 12000 | G178: =IF((F178<='ΒΟΗΘ'!B176),"ΕΠΙΤΥΧΙΑ","") -> ΕΠΙΤΥΧΙΑ
A179: 879 | B179: ΣΜΥΑ - Κατεύθυνση Επιχειρησιακής Υποστήριξης Γεν. Σειρά | C179: Αθήνα | D179: 16 | E179: 1 | F179: =E179*'ΒΟΗΘ'!D177 -> 12000 | G179: =IF((F179<='ΒΟΗΘ'!B177),"ΕΠΙΤΥΧΙΑ","") -> ΕΠΙΤΥΧΙΑ
A180: 880 | B180: ΣΜΥΑ - Κατ/νση Διοικητικής και Εφοδιαστικής Υποστήριξης Γεν. Σειρά | C180: Αθήνα | D180: 18 | E180: 1 | F180: =E180*'ΒΟΗΘ'!D178 -> 12000 | G180: =IF((F180<='ΒΟΗΘ'!B178),"ΕΠΙΤΥΧΙΑ","") -> ΕΠΙΤΥΧΙΑ
A181: 881 | B181: Σχολή Δοκίμων Σημαιοφόρων Λιμενικού Σώματος - Ελληνικής Ακτοφυλακής (Σ.Δ.Σ.Λ.Σ. -ΕΛ.ΑΚΤ.), ΝΕΟ | C181: Αθήνα | D181: 21 | E181: 0.9 | F181: =E181*'ΒΟΗΘ'!D179 -> 10800 | G181: =IF((F181<='ΒΟΗΘ'!B179),"ΕΠΙΤΥΧΙΑ","") -> ΕΠΙΤΥΧΙΑ
A182: 882 | B182: Σχολή Δοκίμων Λιμενοφυλάκων, ΝΕΟ | C182: Αθήνα | D182: 74 | E182: 0.9 | F182: =E182*'ΒΟΗΘ'!D180 -> 10800 | G182: =IF((F182<='ΒΟΗΘ'!B180),"ΕΠΙΤΥΧΙΑ","") -> ΕΠΙΤΥΧΙΑ
A183: 1002 | B183: Αεροδιαστημικής Επιστήμης & Τεχνολογίας, ΕΚΠΑ, ΝΕΟ (πρώην Μηχανικών Τεχνολογίας Αεροσκαφών ΤΕ, ΤΕΙ Στερεάς Ελλάδας) | C183: Ψαχνά | D183: 81 | E183: 0.9 | F183: =E183*'ΒΟΗΘ'!D181 -> 10800 | G183: =IF((F183<='ΒΟΗΘ'!B181),"ΕΠΙΤΥΧΙΑ","") -> ΕΠΙΤΥΧΙΑ
A184: 1008 | B184: Τεχνολογιών Ψηφιακής Βιομηχανίας, ΕΚΠΑ, ΝΕΟ | C184: Ψαχνά | D184: 186 | E184: 0.85 | F184: =E184*'ΒΟΗΘ'!D182 -> 10200 | G184: =IF((F184<='ΒΟΗΘ'!B182),"ΕΠΙΤΥΧΙΑ","") -> ΕΠΙΤΥΧΙΑ
A185: 1011 | B185: Ψηφιακών Τεχνών & Κινηματογράφου, ΕΚΠΑ, ΝΕΟ | C185: Ψαχνά | D185: 81 | E185: 0.8 | F185: =E185*'ΒΟΗΘ'!D183 -> 9600 | G185: =IF((F185<='ΒΟΗΘ'!B183),"ΕΠΙΤΥΧΙΑ","") -> ΕΠΙΤΥΧΙΑ
A186: 1061 | B186: Δασολογίας & Διαχείρισης Φυσικού Περιβάλλοντος, Γεωπονικού, ΝΕΟ (πρώην Δασοπονίας & Διαχείρισης Φυσικού Περιβάλλοντος, ΤΕΙ Στερ. Ελλάδας) | C186: Καρπενήσι | D186: 154 | E186: 0.8 | F186: =E186*'ΒΟΗΘ'!D184 -> 9600 | G186: =IF((F186<='ΒΟΗΘ'!B184),"ΕΠΙΤΥΧΙΑ","") -> ΕΠΙΤΥΧΙΑ
A187: 1211 | B187: Επιστήμη & Τεχνολογία Υπολογιστών, Μακεδονίας, ΝΕΟ / Εισαγ. Κατ/νση (Τμ. Εφαρμοσμένης Πληροφορικής) | C187: Θεσσαλονίκη | D187: 109 | E187: 1.2 | F187: =E187*'ΒΟΗΘ'!D185 -> 14400 | G187: =IF((F187<='ΒΟΗΘ'!B185),"ΕΠΙΤΥΧΙΑ","") -> 
A188: 1212 | B188: Πληροφοριακά Συστήματα, Μακεδονίας, ΝΕΟ / Εισαγ. Κατ/νση (Τμ. Εφαρμοσμένης Πληροφορικής) | C188: Θεσσαλονίκη | D188: 109 | E188: 1.2 | F188: =E188*'ΒΟΗΘ'!D186 -> 14400 | G188: =IF((F188<='ΒΟΗΘ'!B186),"ΕΠΙΤΥΧΙΑ","") -> 
A189: 1241 | B189: Αγωγής & Φροντίδας στην Πρώιμη Παιδική Ηλικία, Ιωαννίνων, ΝΕΟ (πρώην Προσχολικής Αγωγής, ΤΕΙ Ηπείρου) | C189: Ιωάννινα | D189: 138 | E189: 0.8 | F189: =E189*'ΒΟΗΘ'!D187 -> 9600 | G189: =IF((F189<='ΒΟΗΘ'!B187),"ΕΠΙΤΥΧΙΑ","") -> ΕΠΙΤΥΧΙΑ
A190: 1242 | B190: Γεωπονίας, Ιωαννίνων, ΝΕΟ (πρώην Τεχνολόγων Γεωπόνων, ΤΕΙ Ηπείρου) | C190: Άρτα | D190: 174 | E190: 0.8 | F190: =E190*'ΒΟΗΘ'!D188 -> 9600 | G190: =IF((F190<='ΒΟΗΘ'!B188),"ΕΠΙΤΥΧΙΑ","") -> ΕΠΙΤΥΧΙΑ
A191: 1248 | B191: Μουσικών Σπουδών, Ιωαννίνων (ΕΙΔΙΚΕΣ ΕΞΕΤΑΣΕΙΣ) | C191: Αρτα | D191: 135 | E191: (***) | F191: =E191*'ΒΟΗΘ'!D189 -> #VALUE! | G191: =IF((F191<='ΒΟΗΘ'!B189),"ΕΠΙΤΥΧΙΑ","") -> #VALUE!
A192: 1250 | B192: Πληροφορικής & Τηλεπικοινωνιών, Ιωαννίνων, ΝΕΟ (πρώην Μηχανικών Πληροφορικής ΤΕ, ΤΕΙ Ηπείρου) | C192: Άρτα | D192: 214 | E192: 0.8 | F192: =E192*'ΒΟΗΘ'!D190 -> 9600 | G192: =IF((F192<='ΒΟΗΘ'!B190),"ΕΠΙΤΥΧΙΑ","") -> ΕΠΙΤΥΧΙΑ
A193: 1276 | B193: Ζωικής Παραγωγής, Αλιείας & Υδατοκαλλιεργειών, Πατρών, ΝΕΟ (πρώην Τεχνολογίας Αλιείας - Υδατοκαλλιεργειών, ΤΕΙ Δυτ. Ελλάδας) | C193: Μεσολόγγι | D193: 154 | E193: 0.8 | F193: =E193*'ΒΟΗΘ'!D191 -> 9600 | G193: =IF((F193<='ΒΟΗΘ'!B191),"ΕΠΙΤΥΧΙΑ","") -> ΕΠΙΤΥΧΙΑ
A194: 1278 | B194: Επιστήμης & Τεχνολογίας Τροφίμων, Πατρών, ΝΕΟ | C194: Αγρίνιο | D194: 227 | E194: 0.82 | F194: =E194*'ΒΟΗΘ'!D192 -> 9840 | G194: =IF((F194<='ΒΟΗΘ'!B192),"ΕΠΙΤΥΧΙΑ","") -> ΕΠΙΤΥΧΙΑ
A195: 1280 | B195: Επιστήμης Φυτικής Παραγωγής, Πατρών, ΝΕΟ | C195: Μεσολόγγι | D195: 202 | E195: 0.8 | F195: =E195*'ΒΟΗΘ'!D193 -> 9600 | G195: =IF((F195<='ΒΟΗΘ'!B193),"ΕΠΙΤΥΧΙΑ","") -> ΕΠΙΤΥΧΙΑ
A196: 1286 | B196: Επιστημών της Εκπαίδευσης & Κοινωνικής Εργασίας, Πατρών, ΝΕΟ (πρώην Παιδαγ. Δημοτικής Εκπ/σης) | C196: Πάτρα | D196: 225 | E196: 1.15 | F196: =E196*'ΒΟΗΘ'!D194 -> 13800 | G196: =IF((F196<='ΒΟΗΘ'!B194),"ΕΠΙΤΥΧΙΑ","") -> 
A197: 1287 | B197: Μηχανικών Περιβάλλοντος, Πατρών, ΝΕΟ (πρώην Διαχείρισης Περιβάλλοντος & Φυσικών Πόρων) | C197: Αγρίνιο | D197: 148 | E197: 0.82 | F197: =E197*'ΒΟΗΘ'!D195 -> 9840 | G197: =IF((F197<='ΒΟΗΘ'!B195),"ΕΠΙΤΥΧΙΑ","") -> ΕΠΙΤΥΧΙΑ
A198: 1391 | B198: Ωκεανογραφίας & Θαλάσσιων Βιοεπιστημών, Αιγαίου, ΝΕΟ (πρώην Επιστημών της Θάλασσας) | C198: Μυτιλήνη | D198: 103 | E198: 0.8 | F198: =E198*'ΒΟΗΘ'!D196 -> 9600 | G198: =IF((F198<='ΒΟΗΘ'!B196),"ΕΠΙΤΥΧΙΑ","") -> ΕΠΙΤΥΧΙΑ
A199: 1422 | B199: Γεωπονίας - Αγροτεχνολογίας, Θεσσαλίας, ΝΕΟ (πρώην Τεχνολόγων Γεωπόνων, ΤΕΙ Θεσσαλίας) | C199: Λάρισα | D199: 138 | E199: 0.8 | F199: =E199*'ΒΟΗΘ'!D197 -> 9600 | G199: =IF((F199<='ΒΟΗΘ'!B197),"ΕΠΙΤΥΧΙΑ","") -> ΕΠΙΤΥΧΙΑ
A200: 1424 | B200: Δασολογίας, Επιστημών Ξύλου & Σχεδιασμού, Θεσσαλίας, ΝΕΟ (πρώην Σχεδιασμού & Τεχνολογίας Ξύλου & Επίπλου ΤΕ, ΤΕΙ Θεσσαλίας) | C200: Καρδίτσα | D200: 186 | E200: 0.8 | F200: =E200*'ΒΟΗΘ'!D198 -> 9600 | G200: =IF((F200<='ΒΟΗΘ'!B198),"ΕΠΙΤΥΧΙΑ","") -> ΕΠΙΤΥΧΙΑ
A201: 1428 | B201: Επιστήμης Ζωικής Παραγωγής, Θεσσαλίας, ΝΕΟ | C201: Λάρισα | D201: 105 | E201: 0.8 | F201: =E201*'ΒΟΗΘ'!D199 -> 9600 | G201: =IF((F201<='ΒΟΗΘ'!B199),"ΕΠΙΤΥΧΙΑ","") -> ΕΠΙΤΥΧΙΑ
... 46 more rows

Sheet 3ο ΠΕΔΙΟ-ΥΓΕΙΑΣ
A2: ΠΕΔΙΟ 3ο : ΣΧΟΛΕΣ ΥΓΕΙΑΣ
A3: ΚΩΔΙΚΟΣ | B3: ΣΧΟΛΗ/ΤΜΗΜΑ | C3: ΠΟΛΗ | D3: ΕΙΣΑΚΤΕΟΙ | E3: ΣΕΒΕ | F3: ΕΒΕ | G3: ΑΠΟΤΕΛΕΣΜΑ
A4: ΜΗΧΑΝΟΓΡ | D4: 2021 (90%) | E4: 2021 | F4: 2021 (90%)
A5: 128 | B5: Παιδαγωγικό Δημοτικής Εκπ/σης, ΕΚΠΑ | C5: Αθήνα | D5: 180 | E5: 1.2 | F5: =E5*'ΒΟΗΘ'!D3 -> 14400 | G5: =IF((F5<='ΒΟΗΘ'!B3),"ΕΠΙΤΥΧΙΑ","") -> 
A6: 130 | B6: Παιδαγωγικό Δημοτικής Εκπ/σης, Ιωαννίνων | C6: Ιωάννινα | D6: 209 | E6: 0.8 | F6: =E6*'ΒΟΗΘ'!D4 -> 9600 | G6: =IF((F6<='ΒΟΗΘ'!B4),"ΕΠΙΤΥΧΙΑ","") -> ΕΠΙΤΥΧΙΑ
A7: 132 | B7: Παιδαγωγικό Δημοτικής Εκπ/σης, Κρήτης | C7: Ρέθυμνο | D7: 169 | E7: 1 | F7: =E7*'ΒΟΗΘ'!D5 -> 12000 | G7: =IF((F7<='ΒΟΗΘ'!B5),"ΕΠΙΤΥΧΙΑ","") -> ΕΠΙΤΥΧΙΑ
A8: 134 | B8: Επιστημών Προσχολ. Αγωγής & Εκπ/σης, ΑΠΘ | C8: Θεσσαλονίκη | D8: 130 | E8: 0.8 | F8: =E8*'ΒΟΗΘ'!D6 -> 9600 | G8: =IF((F8<='ΒΟΗΘ'!B6),"ΕΠΙΤΥΧΙΑ","") -> ΕΠΙΤΥΧΙΑ
A9: 136 | B9: Επιστημών της Εκπαίδευσης & της Αγωγής στην Προσχολική Ηλικία, Πατρών | C9: Πάτρα | D9: 143 | E9: 0.8 | F9: =E9*'ΒΟΗΘ'!D7 -> 9600 | G9: =IF((F9<='ΒΟΗΘ'!B7),"ΕΠΙΤΥΧΙΑ","") -> ΕΠΙΤΥΧΙΑ
A10: 140 | B10: Παιδαγωγικό Δημοτικής Εκπ/σης, ΑΠΘ | C10: Θεσσαλονίκη | D10: 180 | E10: 0.8 | F10: =E10*'ΒΟΗΘ'!D8 -> 9600 | G10: =IF((F10<='ΒΟΗΘ'!B8),"ΕΠΙΤΥΧΙΑ","") -> ΕΠΙΤΥΧΙΑ
A11: 142 | B11: Παιδαγωγικό Δημοτικής Εκπ/σης, Θράκης | C11: Αλεξ/πολη | D11: 216 | E11: 0.8 | F11: =E11*'ΒΟΗΘ'!D9 -> 9600 | G11: =IF((F11<='ΒΟΗΘ'!B9),"ΕΠΙΤΥΧΙΑ","") -> ΕΠΙΤΥΧΙΑ
A12: 143 | B12: Παιδαγωγικό Δημοτικής Εκπ/σης, Αιγαίου | C12: Ρόδος | D12: 306 | E12: 0.8 | F12: =E12*'ΒΟΗΘ'!D10 -> 9600 | G12: =IF((F12<='ΒΟΗΘ'!B10),"ΕΠΙΤΥΧΙΑ","") -> ΕΠΙΤΥΧΙΑ
A13: 154 | B13: Εκπαίδευσης & Αγωγής στην Προσχ. Ηλικία, ΕΚΠΑ | C13: Αθήνα | D13: 105 | E13: 0.8 | F13: =E13*'ΒΟΗΘ'!D11 -> 9600 | G13: =IF((F13<='ΒΟΗΘ'!B11),"ΕΠΙΤΥΧΙΑ","") -> ΕΠΙΤΥΧΙΑ
A14: 156 | B14: Παιδαγωγικό Νηπιαγωγών | C14: Ιωάννινα | D14: 223 | E14: 0.8 | F14: =E14*'ΒΟΗΘ'!D12 -> 9600 | G14: =IF((F14<='ΒΟΗΘ'!B12),"ΕΠΙΤΥΧΙΑ","") -> ΕΠΙΤΥΧΙΑ
A15: 158 | B15: Παιδαγωγικό Προσχολ. Εκπ/σης, Κρήτης | C15: Ρέθυμνο | D15: 152 | E15: 1 | F15: =E15*'ΒΟΗΘ'!D13 -> 12000 | G15: =IF((F15<='ΒΟΗΘ'!B13),"ΕΠΙΤΥΧΙΑ","") -> ΕΠΙΤΥΧΙΑ
A16: 160 | B16: Επιστημών της Εκπαίδευσης στην Προσχολική Ηλικία, Θράκης | C16: Αλεξ/πολη | D16: 193 | E16: 1 | F16: =E16*'ΒΟΗΘ'!D14 -> 12000 | G16: =IF((F16<='ΒΟΗΘ'!B14),"ΕΠΙΤΥΧΙΑ","") -> ΕΠΙΤΥΧΙΑ
A17: 162 | B17: Επιστημών της Προσχ. Αγωγής & του Εκπ/κού Σχεδιασμού, Αιγαίου | C17: Ρόδος | D17: 259 | E17: 0.8 | F17: =E17*'ΒΟΗΘ'!D15 -> 9600 | G17: =IF((F17<='ΒΟΗΘ'!B15),"ΕΠΙΤΥΧΙΑ","") -> ΕΠΙΤΥΧΙΑ
A18: 163 | B18: Κινηματογράφου | C18: Θεσσαλονίκη | D18: 73 | E18: 1 | F18: =E18*'ΒΟΗΘ'!D16 -> 12000 | G18: =IF((F18<='ΒΟΗΘ'!B16),"ΕΠΙΤΥΧΙΑ","") -> ΕΠΙΤΥΧΙΑ
A19: 164 | B19: Παιδαγωγικό Δημοτικής Εκπ/σης, Θεσσαλίας | C19: Βόλος | D19: 141 | E19: 0.8 | F19: =E19*'ΒΟΗΘ'!D17 -> 9600 | G19: =IF((F19<='ΒΟΗΘ'!B17),"ΕΠΙΤΥΧΙΑ","") -> ΕΠΙΤΥΧΙΑ
A20: 166 | B20: Παιδαγωγικό Προσχολ. Εκπ/σης, Θεσσαλίας | C20: Βόλος | D20: 125 | E20: 0.8 | F20: =E20*'ΒΟΗΘ'!D18 -> 9600 | G20: =IF((F20<='ΒΟΗΘ'!B18),"ΕΠΙΤΥΧΙΑ","") -> ΕΠΙΤΥΧΙΑ
A21: 168 | B21: Θεάτρου, ΑΠΘ | C21: Θεσσαλονίκη | D21: 63 | E21: 0.8 | F21: =E21*'ΒΟΗΘ'!D19 -> 9600 | G21: =IF((F21<='ΒΟΗΘ'!B19),"ΕΠΙΤΥΧΙΑ","") -> ΕΠΙΤΥΧΙΑ
A22: 173 | B22: Ιστορίας & Φιλοσοφίας της Επιστήμης, ΕΚΠΑ | C22: Αθήνα | D22: 114 | E22: 1.05 | F22: =E22*'ΒΟΗΘ'!D20 -> 12600 | G22: =IF((F22<='ΒΟΗΘ'!B20),"ΕΠΙΤΥΧΙΑ","") -> 
A23: 178 | B23: Παιδαγωγικό Ειδικής Αγωγής, Θεσσαλίας | C23: Βόλος | D23: 114 | E23: 1 | F23: =E23*'ΒΟΗΘ'!D21 -> 12000 | G23: =IF((F23<='ΒΟΗΘ'!B21),"ΕΠΙΤΥΧΙΑ","") -> ΕΠΙΤΥΧΙΑ
A24: 190 | B24: Νοσηλευτικής, Πελοποννήσου | C24: Τρίπολη | D24: 166 | E24: 0.86 | F24: =E24*'ΒΟΗΘ'!D22 -> 10320 | G24: =IF((F24<='ΒΟΗΘ'!B22),"ΕΠΙΤΥΧΙΑ","") -> ΕΠΙΤΥΧΙΑ
A25: 212 | B25: Δασολογίας & Διαχείρισης Περ/ντος & Φ.Πόρων, Θράκης | C25: Ορεστιάδα | D25: 190 | E25: 0.8 | F25: =E25*'ΒΟΗΘ'!D23 -> 9600 | G25: =IF((F25<='ΒΟΗΘ'!B23),"ΕΠΙΤΥΧΙΑ","") -> ΕΠΙΤΥΧΙΑ
A26: 263 | B26: Χημείας, ΕΚΠΑ | C26: Αθήνα | D26: 94 | E26: 1.2 | F26: =E26*'ΒΟΗΘ'!D24 -> 14400 | G26: =IF((F26<='ΒΟΗΘ'!B24),"ΕΠΙΤΥΧΙΑ","") -> 
A27: 265 | B27: Χημείας, ΑΠΘ | C27: Θεσσαλονίκη | D27: 167 | E27: 0.8 | F27: =E27*'ΒΟΗΘ'!D25 -> 9600 | G27: =IF((F27<='ΒΟΗΘ'!B25),"ΕΠΙΤΥΧΙΑ","") -> ΕΠΙΤΥΧΙΑ
A28: 267 | B28: Χημείας, Πατρών | C28: Πάτρα | D28: 170 | E28: 0.8 | F28: =E28*'ΒΟΗΘ'!D26 -> 9600 | G28: =IF((F28<='ΒΟΗΘ'!B26),"ΕΠΙΤΥΧΙΑ","") -> ΕΠΙΤΥΧΙΑ
A29: 269 | B29: Χημείας, Ιωαννίνων | C29: Ιωάννινα | D29: 199 | E29: 0.8 | F29: =E29*'ΒΟΗΘ'!D27 -> 9600 | G29: =IF((F29<='ΒΟΗΘ'!B27),"ΕΠΙΤΥΧΙΑ","") -> ΕΠΙΤΥΧΙΑ
A30: 270 | B30: Χημείας, Κρήτης | C30: Ηράκλειο | D30: 129 | E30: 1.2 | F30: =E30*'ΒΟΗΘ'!D28 -> 14400 | G30: =IF((F30<='ΒΟΗΘ'!B28),"ΕΠΙΤΥΧΙΑ","") -> 
A31: 273 | B31: Γεωπονίας, ΑΠΘ | C31: Θεσσαλονίκη | D31: 200 | E31: 1.1 | F31: =E31*'ΒΟΗΘ'!D29 -> 13200 | G31: =IF((F31<='ΒΟΗΘ'!B29),"ΕΠΙΤΥΧΙΑ","") -> 
A32: 274 | B32: Γεωπονίας, Φυτικής Παραγ. & Αγροτ. Περιβ/ντος, Θεσσαλίας | C32: Βόλος | D32: 139 | E32: 0.9 | F32: =E32*'ΒΟΗΘ'!D30 -> 10800 | G32: =IF((F32<='ΒΟΗΘ'!B30),"ΕΠΙΤΥΧΙΑ","") -> ΕΠΙΤΥΧΙΑ
A33: 275 | B33: Δασολογίας & Φυσικού Περιβάλλοντος | C33: Θεσσαλονίκη | D33: 81 | E33: 1 | F33: =E33*'ΒΟΗΘ'!D31 -> 12000 | G33: =IF((F33<='ΒΟΗΘ'!B31),"ΕΠΙΤΥΧΙΑ","") -> ΕΠΙΤΥΧΙΑ
A34: 276 | B34: Περιβάλλοντος, Αιγαίου | C34: Μυτιλήνη | D34: 138 | E34: 0.8 | F34: =E34*'ΒΟΗΘ'!D32 -> 9600 | G34: =IF((F34<='ΒΟΗΘ'!B32),"ΕΠΙΤΥΧΙΑ","") -> ΕΠΙΤΥΧΙΑ
A35: 277 | B35: Βιολογίας, ΕΚΠΑ | C35: Αθήνα | D35: 93 | E35: 1.2 | F35: =E35*'ΒΟΗΘ'!D33 -> 14400 | G35: =IF((F35<='ΒΟΗΘ'!B33),"ΕΠΙΤΥΧΙΑ","") -> 
A36: 279 | B36: Βιολογίας, ΑΠΘ | C36: Θεσσαλονίκη | D36: 101 | E36: 1.2 | F36: =E36*'ΒΟΗΘ'!D34 -> 14400 | G36: =IF((F36<='ΒΟΗΘ'!B34),"ΕΠΙΤΥΧΙΑ","") -> 
A37: 280 | B37: Βιολογικών Εφαρμογών & Τεχνολογιών | C37: Ιωάννινα | D37: 112 | E37: 0.8 | F37: =E37*'ΒΟΗΘ'!D35 -> 9600 | G37: =IF((F37<='ΒΟΗΘ'!B35),"ΕΠΙΤΥΧΙΑ","") -> ΕΠΙΤΥΧΙΑ
A38: 281 | B38: Βιολογίας, Πατρών | C38: Πάτρα | D38: 134 | E38: 1.2 | F38: =E38*'ΒΟΗΘ'!D36 -> 14400 | G38: =IF((F38<='ΒΟΗΘ'!B36),"ΕΠΙΤΥΧΙΑ","") -> 
A39: 282 | B39: Βιολογίας, Κρήτης | C39: Ηράκλειο | D39: 114 | E39: 1 | F39: =E39*'ΒΟΗΘ'!D37 -> 12000 | G39: =IF((F39<='ΒΟΗΘ'!B37),"ΕΠΙΤΥΧΙΑ","") -> ΕΠΙΤΥΧΙΑ
A40: 284 | B40: Βιοχημείας & Βιοτεχνολογίας, Θεσσαλίας | C40: Λάρισα | D40: 103 | E40: 0.8 | F40: =E40*'ΒΟΗΘ'!D38 -> 9600 | G40: =IF((F40<='ΒΟΗΘ'!B38),"ΕΠΙΤΥΧΙΑ","") -> ΕΠΙΤΥΧΙΑ
A41: 289 | B41: Φαρμακευτικής, ΕΚΠΑ | C41: Αθήνα | D41: 97 | E41: 1.2 | F41: =E41*'ΒΟΗΘ'!D39 -> 14400 | G41: =IF((F41<='ΒΟΗΘ'!B39),"ΕΠΙΤΥΧΙΑ","") -> 
A42: 290 | B42: Μοριακής Βιολογίας & Γενετικής, Θράκης | C42: Αλεξ/πολη | D42: 117 | E42: 1.2 | F42: =E42*'ΒΟΗΘ'!D40 -> 14400 | G42: =IF((F42<='ΒΟΗΘ'!B40),"ΕΠΙΤΥΧΙΑ","") -> 
A43: 291 | B43: Φαρμακευτικής, ΑΠΘ | C43: Θεσσαλονίκη | D43: 76 | E43: 1.2 | F43: =E43*'ΒΟΗΘ'!D41 -> 14400 | G43: =IF((F43<='ΒΟΗΘ'!B41),"ΕΠΙΤΥΧΙΑ","") -> 
A44: 293 | B44: Φαρμακευτικής, Πατρών | C44: Πάτρα | D44: 139 | E44: 1.2 | F44: =E44*'ΒΟΗΘ'!D42 -> 14400 | G44: =IF((F44<='ΒΟΗΘ'!B42),"ΕΠΙΤΥΧΙΑ","") -> 
A45: 294 | B45: Επιστήμης Διαιτολογίας & Διατροφής, Χαροκοπείου | C45: Αθήνα | D45: 57 | E45: 1.2 | F45: =E45*'ΒΟΗΘ'!D43 -> 14400 | G45: =IF((F45<='ΒΟΗΘ'!B43),"ΕΠΙΤΥΧΙΑ","") -> 
A46: 295 | B46: Ιατρικής, ΕΚΠΑ | C46: Αθήνα | D46: 141 | E46: 1.2 | F46: =E46*'ΒΟΗΘ'!D44 -> 14400 | G46: =IF((F46<='ΒΟΗΘ'!B44),"ΕΠΙΤΥΧΙΑ","") -> 
A47: 297 | B47: Ιατρικής, ΑΠΘ | C47: Θεσσαλονίκη | D47: 132 | E47: 1.2 | F47: =E47*'ΒΟΗΘ'!D45 -> 14400 | G47: =IF((F47<='ΒΟΗΘ'!B45),"ΕΠΙΤΥΧΙΑ","") -> 
A48: 299 | B48: Ιατρικής, Πατρών | C48: Πάτρα | D48: 137 | E48: 1.2 | F48: =E48*'ΒΟΗΘ'!D46 -> 14400 | G48: =IF((F48<='ΒΟΗΘ'!B46),"ΕΠΙΤΥΧΙΑ","") -> 
A49: 300 | B49: Ιατρικής, Θεσσαλίας | C49: Λάρισα | D49: 76 | E49: 1.2 | F49: =E49*'ΒΟΗΘ'!D47 -> 14400 | G49: =IF((F49<='ΒΟΗΘ'!B47),"ΕΠΙΤΥΧΙΑ","") -> 
A50: 301 | B50: Ιατρικής, Ιωαννίνων | C50: Ιωάννινα | D50: 111 | E50: 0.8 | F50: =E50*'ΒΟΗΘ'!D48 -> 9600 | G50: =IF((F50<='ΒΟΗΘ'!B48),"ΕΠΙΤΥΧΙΑ","") -> ΕΠΙΤΥΧΙΑ
A51: 302 | B51: Ιατρικής, Θράκης | C51: Αλεξ/πολη | D51: 115 | E51: 1.2 | F51: =E51*'ΒΟΗΘ'!D49 -> 14400 | G51: =IF((F51<='ΒΟΗΘ'!B49),"ΕΠΙΤΥΧΙΑ","") -> 
A52: 303 | B52: Οδοντιατρικής, ΕΚΠΑ | C52: Αθήνα | D52: 85 | E52: 1.2 | F52: =E52*'ΒΟΗΘ'!D50 -> 14400 | G52: =IF((F52<='ΒΟΗΘ'!B50),"ΕΠΙΤΥΧΙΑ","") -> 
A53: 304 | B53: Ιατρικής, Κρήτης | C53: Ηράκλειο | D53: 94 | E53: 1.2 | F53: =E53*'ΒΟΗΘ'!D51 -> 14400 | G53: =IF((F53<='ΒΟΗΘ'!B51),"ΕΠΙΤΥΧΙΑ","") -> 
A54: 305 | B54: Οδοντιατρικής, ΑΠΘ | C54: Θεσσαλονίκη | D54: 65 | E54: 1 | F54: =E54*'ΒΟΗΘ'!D52 -> 12000 | G54: =IF((F54<='ΒΟΗΘ'!B52),"ΕΠΙΤΥΧΙΑ","") -> ΕΠΙΤΥΧΙΑ
A55: 306 | B55: Νοσηλευτικής, ΕΚΠΑ | C55: Αθήνα | D55: 129 | E55: 1.2 | F55: =E55*'ΒΟΗΘ'!D53 -> 14400 | G55: =IF((F55<='ΒΟΗΘ'!B53),"ΕΠΙΤΥΧΙΑ","") -> 
A56: 307 | B56: Κτηνιατρικής, ΑΠΘ | C56: Θεσσαλονίκη | D56: 85 | E56: 1.2 | F56: =E56*'ΒΟΗΘ'!D54 -> 14400 | G56: =IF((F56<='ΒΟΗΘ'!B54),"ΕΠΙΤΥΧΙΑ","") -> 
A57: 308 | B57: Κτηνιατρικής, Θεσσαλίας | C57: Καρδίτσα | D57: 76 | E57: 1.2 | F57: =E57*'ΒΟΗΘ'!D55 -> 14400 | G57: =IF((F57<='ΒΟΗΘ'!B55),"ΕΠΙΤΥΧΙΑ","") -> 
A58: 323 | B58: Επιστήμης Φυτικής Παραγωγής, Γεωπονικού | C58: Αθήνα | D58: 167 | E58: 1 | F58: =E58*'ΒΟΗΘ'!D56 -> 12000 | G58: =IF((F58<='ΒΟΗΘ'!B56),"ΕΠΙΤΥΧΙΑ","") -> ΕΠΙΤΥΧΙΑ
A59: 324 | B59: Επιστήμης Ζωικής Παραγωγής, Γεωπονικού (πρώην Επιστήμης Ζωικής Παραγωγής & Υδατοκαλλιεργειών) | C59: Αθήνα | D59: 109 | E59: 1 | F59: =E59*'ΒΟΗΘ'!D57 -> 12000 | G59: =IF((F59<='ΒΟΗΘ'!B57),"ΕΠΙΤΥΧΙΑ","") -> ΕΠΙΤΥΧΙΑ
A60: 325 | B60: Βιοτεχνολογίας, Γεωπονικού | C60: Αθήνα | D60: 109 | E60: 1.01 | F60: =E60*'ΒΟΗΘ'!D58 -> 12120 | G60: =IF((F60<='ΒΟΗΘ'!B58),"ΕΠΙΤΥΧΙΑ","") -> ΕΠΙΤΥΧΙΑ
A61: 326 | B61: Αγροτικής Οικονομίας & Ανάπτυξης, Γεωπονικού | C61: Αθήνα | D61: 61 | E61: 1.2 | F61: =E61*'ΒΟΗΘ'!D59 -> 14400 | G61: =IF((F61<='ΒΟΗΘ'!B59),"ΕΠΙΤΥΧΙΑ","") -> 
A62: 327 | B62: Αξιοποίησης Φυσ. Πόρων & Γεωργ. Μηχανικής, Γεωπονικού | C62: Αθήνα | D62: 118 | E62: 1.04 | F62: =E62*'ΒΟΗΘ'!D60 -> 12480 | G62: =IF((F62<='ΒΟΗΘ'!B60),"ΕΠΙΤΥΧΙΑ","") -> ΕΠΙΤΥΧΙΑ
A63: 328 | B63: Επιστήμης Τροφίμων & Διατροφής του Ανθρώπου, Γεωπονικού | C63: Αθήνα | D63: 101 | E63: 1.2 | F63: =E63*'ΒΟΗΘ'!D61 -> 14400 | G63: =IF((F63<='ΒΟΗΘ'!B61),"ΕΠΙΤΥΧΙΑ","") -> 
A64: 334 | B64: Παιδαγωγικό Δημοτικής Εκπ/σης, Δυτ. Μακεδονίας | C64: Φλώρινα | D64: 180 | E64: 0.8 | F64: =E64*'ΒΟΗΘ'!D62 -> 9600 | G64: =IF((F64<='ΒΟΗΘ'!B62),"ΕΠΙΤΥΧΙΑ","") -> ΕΠΙΤΥΧΙΑ
A65: 341 | B65: Παιδαγωγικό Νηπιαγωγών, Δυτ. Μακεδονίας | C65: Φλώρινα | D65: 178 | E65: 1 | F65: =E65*'ΒΟΗΘ'!D63 -> 12000 | G65: =IF((F65<='ΒΟΗΘ'!B63),"ΕΠΙΤΥΧΙΑ","") -> ΕΠΙΤΥΧΙΑ
A66: 353 | B66: Αγροτικής Ανάπτυξης, ΔΠΘ | C66: Ορεστιάδα | D66: 283 | E66: 0.8 | F66: =E66*'ΒΟΗΘ'!D64 -> 9600 | G66: =IF((F66<='ΒΟΗΘ'!B64),"ΕΠΙΤΥΧΙΑ","") -> ΕΠΙΤΥΧΙΑ
A67: 360 | B67: Γεωπονίας, Ιχθυολογίας & Υδάτινου Περιβ/ντος, Θεσσαλίας | C67: Βόλος | D67: 157 | E67: 0.9 | F67: =E67*'ΒΟΗΘ'!D65 -> 10800 | G67: =IF((F67<='ΒΟΗΘ'!B65),"ΕΠΙΤΥΧΙΑ","") -> ΕΠΙΤΥΧΙΑ
A68: 367 | B68: Τεχνών Ήχου & Εικόνας, Ιονίου | C68: Κέρκυρα | D68: 86 | E68: 0.8 | F68: =E68*'ΒΟΗΘ'!D66 -> 9600 | G68: =IF((F68<='ΒΟΗΘ'!B66),"ΕΠΙΤΥΧΙΑ","") -> ΕΠΙΤΥΧΙΑ
A69: 369 | B69: Πληροφορικής με Εφαρμογές στη Βιοϊατρική, Θεσσαλίας | C69: Λαμία | D69: 167 | E69: 0.8 | F69: =E69*'ΒΟΗΘ'!D67 -> 9600 | G69: =IF((F69<='ΒΟΗΘ'!B67),"ΕΠΙΤΥΧΙΑ","") -> ΕΠΙΤΥΧΙΑ
A70: 372 | B70: Επιστήμης Τροφίμων & Διατροφής, Αιγαίου | C70: Λήμνος | D70: 162 | E70: 0.8 | F70: =E70*'ΒΟΗΘ'!D68 -> 9600 | G70: =IF((F70<='ΒΟΗΘ'!B68),"ΕΠΙΤΥΧΙΑ","") -> ΕΠΙΤΥΧΙΑ
A71: 388 | B71: Μηχανικών Βιοϊατρικής, Δυτ. Αττικής | C71: Αιγάλεω | D71: 94 | E71: 0.8 | F71: =E71*'ΒΟΗΘ'!D69 -> 9600 | G71: =IF((F71<='ΒΟΗΘ'!B69),"ΕΠΙΤΥΧΙΑ","") -> ΕΠΙΤΥΧΙΑ
A72: 401 | B72: Επιστήμης Φυσ. Αγωγής & Αθλητισμού, ΕΚΠΑ | C72: Αθήνα | D72: 121 | E72: 0.8 | F72: =E72*'ΒΟΗΘ'!D70 -> 9600 | G72: =IF((F72<='ΒΟΗΘ'!B70),"ΕΠΙΤΥΧΙΑ","") -> ΕΠΙΤΥΧΙΑ
A73: 402 | B73: Επιστήμης Φυσ. Αγωγής & Αθλητισμού, ΑΠΘ / Εισαγ. Κατ/νση | C73: Σέρρες | D73: 113 | E73: 0.8 | F73: =E73*'ΒΟΗΘ'!D71 -> 9600 | G73: =IF((F73<='ΒΟΗΘ'!B71),"ΕΠΙΤΥΧΙΑ","") -> ΕΠΙΤΥΧΙΑ
A74: 403 | B74: Επιστήμης Φυσ. Αγωγής & Αθλητισμού, ΑΠΘ / Εισαγ. Κατ/νση | C74: Θεσσαλονίκη | D74: 121 | E74: 1 | F74: =E74*'ΒΟΗΘ'!D72 -> 12000 | G74: =IF((F74<='ΒΟΗΘ'!B72),"ΕΠΙΤΥΧΙΑ","") -> ΕΠΙΤΥΧΙΑ
A75: 404 | B75: Επιστήμης Φυσ. Αγωγής & Αθλητισμού, Θράκης | C75: Κομοτηνή | D75: 324 | E75: 0.8 | F75: =E75*'ΒΟΗΘ'!D73 -> 9600 | G75: =IF((F75<='ΒΟΗΘ'!B73),"ΕΠΙΤΥΧΙΑ","") -> ΕΠΙΤΥΧΙΑ
A76: 405 | B76: Επιστήμης Φυσ. Αγωγής & Αθλητισμού, Θεσσαλίας | C76: Τρίκαλα | D76: 151 | E76: 1 | F76: =E76*'ΒΟΗΘ'!D74 -> 12000 | G76: =IF((F76<='ΒΟΗΘ'!B74),"ΕΠΙΤΥΧΙΑ","") -> ΕΠΙΤΥΧΙΑ
A77: 406 | B77: Μουσικών Σπουδών, ΑΠΘ | C77: Θεσσαλονίκη | D77: 55 | E77: 0.9 | F77: =E77*'ΒΟΗΘ'!D75 -> 10800 | G77: =IF((F77<='ΒΟΗΘ'!B75),"ΕΠΙΤΥΧΙΑ","") -> ΕΠΙΤΥΧΙΑ
A78: 407 | B78: Μουσικών Σπουδών, Ιονίου (ΕΙΔΙΚΕΣ ΕΞΕΤΑΣΕΙΣ) | C78: Κέρκυρα | D78: 91 | E78: (***) | F78: =E78*'ΒΟΗΘ'!D76 -> #VALUE! | G78: =IF((F78<='ΒΟΗΘ'!B76),"ΕΠΙΤΥΧΙΑ","") -> #VALUE!
A79: 408 | B79: Μουσικών Σπουδών, ΕΚΠΑ | C79: Αθήνα | D79: 63 | E79: 0.9 | F79: =E79*'ΒΟΗΘ'!D77 -> 10800 | G79: =IF((F79<='ΒΟΗΘ'!B77),"ΕΠΙΤΥΧΙΑ","") -> ΕΠΙΤΥΧΙΑ
A80: 409 | B80: Μουσικής Επιστήμης & Τέχνης, Μακεδονίας (ΕΙΔΙΚΕΣ ΕΞΕΤΑΣΕΙΣ) | C80: Θεσσαλονίκη | D80: 73 | E80: (***) | F80: =E80*'ΒΟΗΘ'!D78 -> #VALUE! | G80: =IF((F80<='ΒΟΗΘ'!B78),"ΕΠΙΤΥΧΙΑ","") -> #VALUE!
A81: 673 | B81: Αγωγής & Φροντίδας στην Πρώιμη Παιδική Ηλικία, Δυτ. Αττικής | C81: Ίλιον | D81: 113 | E81: 1 | F81: =E81*'ΒΟΗΘ'!D79 -> 12000 | G81: =IF((F81<='ΒΟΗΘ'!B79),"ΕΠΙΤΥΧΙΑ","") -> ΕΠΙΤΥΧΙΑ
A82: 678 | B82: Βιοϊατρικών Επιστημών, Δυτ. Αττικής | C82: Αιγάλεω | D82: 292 | E82: 1 | F82: =E82*'ΒΟΗΘ'!D80 -> 12000 | G82: =IF((F82<='ΒΟΗΘ'!B80),"ΕΠΙΤΥΧΙΑ","") -> ΕΠΙΤΥΧΙΑ
A83: 679 | B83: Δημόσιας & Κοινοτικής Υγείας, Δυτ. Αττικής | C83: Αιγάλεω | D83: 169 | E83: 0.9 | F83: =E83*'ΒΟΗΘ'!D81 -> 10800 | G83: =IF((F83<='ΒΟΗΘ'!B81),"ΕΠΙΤΥΧΙΑ","") -> ΕΠΙΤΥΧΙΑ
A84: 680 | B84: Εργοθεραπείας, Δυτ. Αττικής | C84: Αιγάλεω | D84: 101 | E84: 1.2 | F84: =E84*'ΒΟΗΘ'!D82 -> 14400 | G84: =IF((F84<='ΒΟΗΘ'!B82),"ΕΠΙΤΥΧΙΑ","") -> 
A85: 681 | B85: Μαιευτικής, Δυτ. Αττικής | C85: Αιγάλεω | D85: 95 | E85: 1 | F85: =E85*'ΒΟΗΘ'!D83 -> 12000 | G85: =IF((F85<='ΒΟΗΘ'!B83),"ΕΠΙΤΥΧΙΑ","") -> ΕΠΙΤΥΧΙΑ
A86: 682 | B86: Νοσηλευτικής, Δυτ. Αττικής | C86: Αιγάλεω | D86: 179 | E86: 1 | F86: =E86*'ΒΟΗΘ'!D84 -> 12000 | G86: =IF((F86<='ΒΟΗΘ'!B84),"ΕΠΙΤΥΧΙΑ","") -> ΕΠΙΤΥΧΙΑ
A87: 683 | B87: Φυσικοθεραπείας, Δυτ. Αττικής | C87: Αιγάλεω | D87: 101 | E87: 1.2 | F87: =E87*'ΒΟΗΘ'!D85 -> 14400 | G87: =IF((F87<='ΒΟΗΘ'!B85),"ΕΠΙΤΥΧΙΑ","") -> 
A88: 684 | B88: Επιστήμης & Τεχνολογίας Τροφίμων, Δυτ. Αττικής | C88: Αιγάλεω | D88: 81 | E88: 1.1 | F88: =E88*'ΒΟΗΘ'!D86 -> 13200 | G88: =IF((F88<='ΒΟΗΘ'!B86),"ΕΠΙΤΥΧΙΑ","") -> 
A89: 685 | B89: Επιστημών Οίνου, Αμπέλου & Ποτών, Δυτ. Αττικής | C89: Αιγάλεω | D89: 109 | E89: 1 | F89: =E89*'ΒΟΗΘ'!D87 -> 12000 | G89: =IF((F89<='ΒΟΗΘ'!B87),"ΕΠΙΤΥΧΙΑ","") -> ΕΠΙΤΥΧΙΑ
A90: 831 | B90: Ιατρικό (ΣΣΑΣ) Γεν. Σειρά | C90: Θεσσαλονίκη | D90: 30 | E90: 1.2 | F90: =E90*'ΒΟΗΘ'!D88 -> 14400 | G90: =IF((F90<='ΒΟΗΘ'!B88),"ΕΠΙΤΥΧΙΑ","") -> 
A91: 836 | B91: Οδοντιατρικό (ΣΣΑΣ) Γεν. Σειρά | C91: Θεσσαλονίκη | D91: 3 | E91: 1.2 | F91: =E91*'ΒΟΗΘ'!D89 -> 14400 | G91: =IF((F91<='ΒΟΗΘ'!B89),"ΕΠΙΤΥΧΙΑ","") -> 
A92: 841 | B92: Κτηνιατρικό (ΣΣΑΣ) Γεν. Σειρά | C92: Θεσσαλονίκη | D92: 4 | E92: 1.2 | F92: =E92*'ΒΟΗΘ'!D90 -> 14400 | G92: =IF((F92<='ΒΟΗΘ'!B90),"ΕΠΙΤΥΧΙΑ","") -> 
A93: 846 | B93: Φαρμακευτικό (ΣΣΑΣ) Γεν. Σειρά | C93: Θεσσαλονίκη | D93: 4 | E93: 1.2 | F93: =E93*'ΒΟΗΘ'!D91 -> 14400 | G93: =IF((F93<='ΒΟΗΘ'!B91),"ΕΠΙΤΥΧΙΑ","") -> 
A94: 851 | B94: Αξιωματικών Νοσηλ. (ΣΑΝ) Γεν. Σειρά | C94: Αθήνα | D94: 26 | E94: 1.2 | F94: =E94*'ΒΟΗΘ'!D92 -> 14400 | G94: =IF((F94<='ΒΟΗΘ'!B92),"ΕΠΙΤΥΧΙΑ","") -> 
A95: 876 | B95: Σχολή Πυροσβεστών Γεν. Σειρά | C95: Αθήνα | D95: 131 | E95: 0.8 | F95: =E95*'ΒΟΗΘ'!D93 -> 9600 | G95: =IF((F95<='ΒΟΗΘ'!B93),"ΕΠΙΤΥΧΙΑ","") -> ΕΠΙΤΥΧΙΑ
A96: 877 | B96: Σχολή Αξιωματικών Πυροσβεστικής Ακαδημίας Γεν. Σειρά | C96: Αθήνα | D96: 16 | E96: 0.8 | F96: =E96*'ΒΟΗΘ'!D94 -> 9600 | G96: =IF((F96<='ΒΟΗΘ'!B94),"ΕΠΙΤΥΧΙΑ","") -> ΕΠΙΤΥΧΙΑ
A97: 881 | B97: Σχολή Δοκίμων Σημαιοφόρων Λιμεν. Σώματος - Ελλην.Ακτοφυλ.(Σ.Δ.Σ.Λ.Σ. -ΕΛ.ΑΚΤ.), ΝΕΟ | C97: Αθήνα | D97: 21 | E97: 0.9 | F97: =E97*'ΒΟΗΘ'!D95 -> 10800 | G97: =IF((F97<='ΒΟΗΘ'!B95),"ΕΠΙΤΥΧΙΑ","") -> ΕΠΙΤΥΧΙΑ
A98: 882 | B98: Σχολή Δοκίμων Λιμενοφυλάκων, ΝΕΟ | C98: Αθήνα | D98: 74 | E98: 0.9 | F98: =E98*'ΒΟΗΘ'!D96 -> 10800 | G98: =IF((F98<='ΒΟΗΘ'!B96),"ΕΠΙΤΥΧΙΑ","") -> ΕΠΙΤΥΧΙΑ
A99: 1001 | B99: Αγροτικής Ανάπτυξης, Αγροδιατροφής & Διαχείρισης Φυσικών Πόρων, ΕΚΠΑ, ΝΕΟ | C99: Ψαχνά | D99: 65 | E99: 0.8 | F99: =E99*'ΒΟΗΘ'!D97 -> 9600 | G99: =IF((F99<='ΒΟΗΘ'!B97),"ΕΠΙΤΥΧΙΑ","") -> ΕΠΙΤΥΧΙΑ
A100: 1011 | B100: Ψηφιακών Τεχνών & Κινηματογράφου, ΕΚΠΑ, ΝΕΟ | C100: Ψαχνά | D100: 81 | E100: 0.8 | F100: =E100*'ΒΟΗΘ'!D98 -> 9600 | G100: =IF((F100<='ΒΟΗΘ'!B98),"ΕΠΙΤΥΧΙΑ","") -> ΕΠΙΤΥΧΙΑ
A101: 1061 | B101: Δασολογίας & Διαχείρισης Φυσικού Περιβάλλοντος, Γεωπονικού, ΝΕΟ (πρώην Δασ & Διαχείρισης Φυσ Περιβάλλοντος, ΤΕΙ Στερ. Ελλάδας) | C101: Καρπενήσι | D101: 154 | E101: 0.8 | F101: =E101*'ΒΟΗΘ'!D99 -> 9600 | G101: =IF((F101<='ΒΟΗΘ'!B99),"ΕΠΙΤΥΧΙΑ","") -> ΕΠΙΤΥΧΙΑ
A102: 1241 | B102: Αγωγής & Φροντίδας στην Πρώιμη Παιδική Ηλικία, Ιωαννίνων, ΝΕΟ (πρώην Προσχολικής Αγωγής, ΤΕΙ Ηπείρου) | C102: Ιωάννινα | D102: 138 | E102: 0.8 | F102: =E102*'ΒΟΗΘ'!D100 -> 9600 | G102: =IF((F102<='ΒΟΗΘ'!B100),"ΕΠΙΤΥΧΙΑ","") -> ΕΠΙΤΥΧΙΑ
A103: 1242 | B103: Γεωπονίας, Ιωαννίνων, ΝΕΟ (πρώην Τεχνολόγων Γεωπόνων, ΤΕΙ Ηπείρου) | C103: Άρτα | D103: 174 | E103: 0.8 | F103: =E103*'ΒΟΗΘ'!D101 -> 9600 | G103: =IF((F103<='ΒΟΗΘ'!B101),"ΕΠΙΤΥΧΙΑ","") -> ΕΠΙΤΥΧΙΑ
A104: 1245 | B104: Λογοθεραπείας, Ιωαννίνων, ΝΕΟ (πρώην Λογοθεραπείας, ΤΕΙ Ηπείρου) | C104: Ιωάννινα | D104: 117 | E104: 0.8 | F104: =E104*'ΒΟΗΘ'!D102 -> 9600 | G104: =IF((F104<='ΒΟΗΘ'!B102),"ΕΠΙΤΥΧΙΑ","") -> ΕΠΙΤΥΧΙΑ
A105: 1248 | B105: Μουσικών Σπουδών, Ιωαννίνων (ΕΙΔΙΚΕΣ ΕΞΕΤΑΣΕΙΣ) | C105: Αρτα | D105: 135 | E105: (***) | F105: =E105*'ΒΟΗΘ'!D103 -> #VALUE! | G105: =IF((F105<='ΒΟΗΘ'!B103),"ΕΠΙΤΥΧΙΑ","") -> #VALUE!
A106: 1249 | B106: Νοσηλευτικής, Ιωαννίνων, ΝΕΟ (πρώην Νοσηλευτικής, ΤΕΙ Ηπείρου) | C106: Ιωάννινα | D106: 162 | E106: 0.8 | F106: =E106*'ΒΟΗΘ'!D104 -> 9600 | G106: =IF((F106<='ΒΟΗΘ'!B104),"ΕΠΙΤΥΧΙΑ","") -> ΕΠΙΤΥΧΙΑ
A107: 1272 | B107: Νοσηλευτικής, Πατρών, ΝΕΟ (πρώην Νοσηλευτικής, ΤΕΙ Δυτ. Ελλάδας) | C107: Πάτρα | D107: 169 | E107: 0.9 | F107: =E107*'ΒΟΗΘ'!D105 -> 10800 | G107: =IF((F107<='ΒΟΗΘ'!B105),"ΕΠΙΤΥΧΙΑ","") -> ΕΠΙΤΥΧΙΑ
A108: 1273 | B108: Φυσικοθεραπείας, Πατρών, ΝΕΟ (πρώην Φυσικοθεραπείας, ΤΕΙ Δυτ. Ελλάδας) | C108: Αίγιο | D108: 138 | E108: 1.15 | F108: =E108*'ΒΟΗΘ'!D106 -> 13800 | G108: =IF((F108<='ΒΟΗΘ'!B106),"ΕΠΙΤΥΧΙΑ","") -> 
A109: 1274 | B109: Λογοθεραπείας, Πατρών, ΝΕΟ (πρώην Λογοθεραπείας, ΤΕΙ Δυτ. Ελλάδας) | C109: Πάτρα | D109: 89 | E109: 1.15 | F109: =E109*'ΒΟΗΘ'!D107 -> 13800 | G109: =IF((F109<='ΒΟΗΘ'!B107),"ΕΠΙΤΥΧΙΑ","") -> 
A110: 1276 | B110: Ζωικής Παραγωγής, Αλιείας & Υδατοκαλλιεργειών, Πατρών, ΝΕΟ (πρώην Τεχνολογίας Αλιείας - Υδατοκαλλιεργειών, ΤΕΙ Δυτ. Ελλάδας) | C110: Μεσολόγγι | D110: 154 | E110: 0.8 | F110: =E110*'ΒΟΗΘ'!D108 -> 9600 | G110: =IF((F110<='ΒΟΗΘ'!B108),"ΕΠΙΤΥΧΙΑ","") -> ΕΠΙΤΥΧΙΑ
A111: 1278 | B111: Επιστήμης & Τεχνολογίας Τροφίμων, Πατρών, ΝΕΟ | C111: Αγρίνιο | D111: 227 | E111: 0.82 | F111: =E111*'ΒΟΗΘ'!D109 -> 9840 | G111: =IF((F111<='ΒΟΗΘ'!B109),"ΕΠΙΤΥΧΙΑ","") -> ΕΠΙΤΥΧΙΑ
A112: 1280 | B112: Επιστήμης Φυτικής Παραγωγής, Πατρών, ΝΕΟ | C112: Μεσολόγγι | D112: 202 | E112: 0.8 | F112: =E112*'ΒΟΗΘ'!D110 -> 9600 | G112: =IF((F112<='ΒΟΗΘ'!B110),"ΕΠΙΤΥΧΙΑ","") -> ΕΠΙΤΥΧΙΑ
A113: 1286 | B113: Επιστημών της Εκπαίδευσης & Κοινωνικής Εργασίας, Πατρών, ΝΕΟ (πρώην Παιδαγ. Δημοτικής Εκπ/σης) | C113: Πάτρα | D113: 225 | E113: 1.15 | F113: =E113*'ΒΟΗΘ'!D111 -> 13800 | G113: =IF((F113<='ΒΟΗΘ'!B111),"ΕΠΙΤΥΧΙΑ","") -> 
A114: 1391 | B114: Ωκεανογραφίας & Θαλάσσιων Βιοεπιστημών, Αιγαίου, ΝΕΟ (πρώην Επιστημών της Θάλασσας) | C114: Μυτιλήνη | D114: 103 | E114: 0.8 | F114: =E114*'ΒΟΗΘ'!D112 -> 9600 | G114: =IF((F114<='ΒΟΗΘ'!B112),"ΕΠΙΤΥΧΙΑ","") -> ΕΠΙΤΥΧΙΑ
A115: 1422 | B115: Γεωπονίας - Αγροτεχνολογίας, Θεσσαλίας, ΝΕΟ (πρώην Τεχνολόγων Γεωπόνων, ΤΕΙ Θεσσαλίας) | C115: Λάρισα | D115: 138 | E115: 0.8 | F115: =E115*'ΒΟΗΘ'!D113 -> 9600 | G115: =IF((F115<='ΒΟΗΘ'!B113),"ΕΠΙΤΥΧΙΑ","") -> ΕΠΙΤΥΧΙΑ
A116: 1424 | B116: Δασολογίας, Επιστημών Ξύλου & Σχεδιασμού, Θεσσαλίας, ΝΕΟ (πρώην Σχεδιασμού & Τεχνολογίας Ξύλου & Επίπλου ΤΕ, ΤΕΙ Θεσσαλίας) | C116: Καρδίτσα | D116: 186 | E116: 0.8 | F116: =E116*'ΒΟΗΘ'!D114 -> 9600 | G116: =IF((F116<='ΒΟΗΘ'!B114),"ΕΠΙΤΥΧΙΑ","") -> ΕΠΙΤΥΧΙΑ
A117: 1425 | B117: Δημόσιας & Ενιαίας Υγείας, Θεσσαλίας, ΝΕΟ | C117: Καρδίτσα | D117: 97 | E117: 0.8 | F117: =E117*'ΒΟΗΘ'!D115 -> 9600 | G117: =IF((F117<='ΒΟΗΘ'!B115),"ΕΠΙΤΥΧΙΑ","") -> ΕΠΙΤΥΧΙΑ
A118: 1426 | B118: Διαιτολογίας & Διατροφολογίας, Θεσσαλίας, ΝΕΟ (πρώην Διατροφής & Διαιτολογίας, ΤΕΙ Θεσσαλίας) | C118: Τρίκαλα | D118: 97 | E118: 0.85 | F118: =E118*'ΒΟΗΘ'!D116 -> 10200 | G118: =IF((F118<='ΒΟΗΘ'!B116),"ΕΠΙΤΥΧΙΑ","") -> ΕΠΙΤΥΧΙΑ
A119: 1428 | B119: Επιστήμης Ζωικής Παραγωγής, Θεσσαλίας, ΝΕΟ | C119: Λάρισα | D119: 105 | E119: 0.8 | F119: =E119*'ΒΟΗΘ'!D117 -> 9600 | G119: =IF((F119<='ΒΟΗΘ'!B117),"ΕΠΙΤΥΧΙΑ","") -> ΕΠΙΤΥΧΙΑ
A120: 1429 | B120: Επιστήμης Τροφίμων & Διατροφής, Θεσσαλίας, ΝΕΟ (πρώην Τεχνολογίας Τροφίμων, ΤΕΙ Θεσσαλίας) | C120: Καρδίτσα | D120: 121 | E120: 0.8 | F120: =E120*'ΒΟΗΘ'!D118 -> 9600 | G120: =IF((F120<='ΒΟΗΘ'!B118),"ΕΠΙΤΥΧΙΑ","") -> ΕΠΙΤΥΧΙΑ
A121: 1433 | B121: Νοσηλευτικής, Θεσσαλίας, ΝΕΟ (πρώην Νοσηλευτικής, ΤΕΙ Θεσσαλίας) | C121: Λάρισα | D121: 133 | E121: 0.8 | F121: =E121*'ΒΟΗΘ'!D119 -> 9600 | G121: =IF((F121<='ΒΟΗΘ'!B119),"ΕΠΙΤΥΧΙΑ","") -> ΕΠΙΤΥΧΙΑ
A122: 1434 | B122: Περιβάλλοντος, Θεσσαλίας, ΝΕΟ | C122: Λάρισα | D122: 112 | E122: 0.8 | F122: =E122*'ΒΟΗΘ'!D120 -> 9600 | G122: =IF((F122<='ΒΟΗΘ'!B120),"ΕΠΙΤΥΧΙΑ","") -> ΕΠΙΤΥΧΙΑ
A123: 1438 | B123: Φυσικοθεραπείας, Θεσσαλίας, ΝΕΟ (πρώην Φυσικοθεραπείας, ΤΕΙ Στερ. Ελλάδας) | C123: Λαμία | D123: 130 | E123: 1.2 | F123: =E123*'ΒΟΗΘ'!D121 -> 14400 | G123: =IF((F123<='ΒΟΗΘ'!B121),"ΕΠΙΤΥΧΙΑ","") -> 
A124: 1452 | B124: Επιστήμης & Τεχνολογίας Τροφίμων, Ιονίου, ΝΕΟ (πρώην Τεχνολογίας Τροφίμων, ΤΕΙ Ιόνιων Νήσων) | C124: Αργοστόλι | D124: 202 | E124: 0.8 | F124: =E124*'ΒΟΗΘ'!D122 -> 9600 | G124: =IF((F124<='ΒΟΗΘ'!B122),"ΕΠΙΤΥΧΙΑ","") -> ΕΠΙΤΥΧΙΑ
A125: 1453 | B125: Περιβάλλοντος, Ιονίου, ΝΕΟ (πρώην Τεχνολογιών Φυσικού Περιβάλλοντος ΤΕ, ΤΕΙ Ιόνιων Νήσων / Εισαγωγική Κατεύθυνση) | C125: Ζάκυνθος | D125: 146 | E125: 0.8 | F125: =E125*'ΒΟΗΘ'!D123 -> 9600 | G125: =IF((F125<='ΒΟΗΘ'!B123),"ΕΠΙΤΥΧΙΑ","") -> ΕΠΙΤΥΧΙΑ
A126: 1511 | B126: Γεωπονίας, Πελοποννήσου, ΝΕΟ (πρώην Τεχνολόγων Γεωπόνων, ΤΕΙ Πελοποννήσου) | C126: Καλαμάτα | D126: 186 | E126: 0.8 | F126: =E126*'ΒΟΗΘ'!D124 -> 9600 | G126: =IF((F126<='ΒΟΗΘ'!B124),"ΕΠΙΤΥΧΙΑ","") -> ΕΠΙΤΥΧΙΑ
A127: 1512 | B127: Επιστήμης & Τεχνολογίας Τροφίμων, Πελοποννήσου, ΝΕΟ (πρώην Τεχνολογίας Τροφίμων, ΤΕΙ Πελοποννήσου) | C127: Καλαμάτα | D127: 130 | E127: 0.8 | F127: =E127*'ΒΟΗΘ'!D125 -> 9600 | G127: =IF((F127<='ΒΟΗΘ'!B125),"ΕΠΙΤΥΧΙΑ","") -> ΕΠΙΤΥΧΙΑ
A128: 1515 | B128: Λογοθεραπείας, Πελοποννήσου, ΝΕΟ (πρώην Λογοθεραπείας, ΤΕΙ Πελοποννήσου) | C128: Καλαμάτα | D128: 89 | E128: 0.9 | F128: =E128*'ΒΟΗΘ'!D126 -> 10800 | G128: =IF((F128<='ΒΟΗΘ'!B126),"ΕΠΙΤΥΧΙΑ","") -> ΕΠΙΤΥΧΙΑ
A129: 1516 | B129: Επιστήμης Διατροφής & Διαιτολογίας, Πελοποννήσου, ΝΕΟ | C129: Καλαμάτα | D129: 121 | E129: 0.8 | F129: =E129*'ΒΟΗΘ'!D127 -> 9600 | G129: =IF((F129<='ΒΟΗΘ'!B127),"ΕΠΙΤΥΧΙΑ","") -> ΕΠΙΤΥΧΙΑ
A130: 1517 | B130: Παραστατικών & Ψηφιακών Τεχνών, Πελοποννήσου, ΝΕΟ | C130: Ναύπλιον | D130: 113 | E130: 0.8 | F130: =E130*'ΒΟΗΘ'!D128 -> 9600 | G130: =IF((F130<='ΒΟΗΘ'!B128),"ΕΠΙΤΥΧΙΑ","") -> ΕΠΙΤΥΧΙΑ
A131: 1520 | B131: Φυσικοθεραπείας, Πελοποννήσου, ΝΕΟ | C131: Σπάρτη | D131: 114 | E131: 1 | F131: =E131*'ΒΟΗΘ'!D129 -> 12000 | G131: =IF((F131<='ΒΟΗΘ'!B129),"ΕΠΙΤΥΧΙΑ","") -> ΕΠΙΤΥΧΙΑ
A132: 1552 | B132: Γεωπονίας, Δυτ. Μακεδονίας, ΝΕΟ (πρώην Τεχνολόγων Γεωπόνων, ΤΕΙ Δυτ. Μακεδονίας) | C132: Φλώρινα | D132: 283 | E132: 0.8 | F132: =E132*'ΒΟΗΘ'!D130 -> 9600 | G132: =IF((F132<='ΒΟΗΘ'!B130),"ΕΠΙΤΥΧΙΑ","") -> ΕΠΙΤΥΧΙΑ
A133: 1553 | B133: Μαιευτικής, Δυτ. Μακεδονίας, ΝΕΟ (πρώην Μαιευτικής, ΤΕΙ Δυτ. Μακεδονίας) | C133: Πτολεμαΐδα | D133: 130 | E133: 0.8 | F133: =E133*'ΒΟΗΘ'!D131 -> 9600 | G133: =IF((F133<='ΒΟΗΘ'!B131),"ΕΠΙΤΥΧΙΑ","") -> ΕΠΙΤΥΧΙΑ
A134: 1558 | B134: Εργοθεραπείας, Δυτ. Μακεδονίας, ΝΕΟ | C134: Πτολεμαΐδα | D134: 81 | E134: 0.8 | F134: =E134*'ΒΟΗΘ'!D132 -> 9600 | G134: =IF((F134<='ΒΟΗΘ'!B132),"ΕΠΙΤΥΧΙΑ","") -> ΕΠΙΤΥΧΙΑ
A135: 1610 | B135: Αγωγής & Φροντίδας στην Πρώιμη Παιδική Ηλικία, ΔΙ.ΠΑ.Ε., ΝΕΟ (πρώην Προσχολικής Αγωγής, ΤΕΙ Θεσσαλονίκης) | C135: Θεσσαλονίκη | D135: 113 | E135: 0.8 | F135: =E135*'ΒΟΗΘ'!D133 -> 9600 | G135: =IF((F135<='ΒΟΗΘ'!B133),"ΕΠΙΤΥΧΙΑ","") -> ΕΠΙΤΥΧΙΑ
A136: 1613 | B136: Επιστημών Διατροφής και Διαιτολογίας, ΔΙ.ΠΑ.Ε., ΝΕΟ (πρώην Διατροφής & Διαιτολογίας, ΤΕΙ Θεσσαλονίκης) | C136: Θεσσαλονίκη | D136: 93 | E136: 1.2 | F136: =E136*'ΒΟΗΘ'!D134 -> 14400 | G136: =IF((F136<='ΒΟΗΘ'!B134),"ΕΠΙΤΥΧΙΑ","") -> 
A137: 1614 | B137: Μαιευτικής, ΔΙ.ΠΑ.Ε., ΝΕΟ (πρώην Μαιευτικής ΤΕΙ Θεσσαλονίκης) | C137: Θεσσαλονίκη | D137: 93 | E137: 1 | F137: =E137*'ΒΟΗΘ'!D135 -> 12000 | G137: =IF((F137<='ΒΟΗΘ'!B135),"ΕΠΙΤΥΧΙΑ","") -> ΕΠΙΤΥΧΙΑ
A138: 1615 | B138: Βιοϊατρικών Επιστημών ΔΙ.ΠΑ.Ε., ΝΕΟ (πρώην Ιατρικών Εργαστηρίων, ΤΕΙ Θεσσαλονίκης) | C138: Θεσσαλονίκη | D138: 178 | E138: 1.2 | F138: =E138*'ΒΟΗΘ'!D136 -> 14400 | G138: =IF((F138<='ΒΟΗΘ'!B136),"ΕΠΙΤΥΧΙΑ","") -> 
A139: 1616 | B139: Φυσικοθεραπείας, ΔΙ.ΠΑ.Ε., ΝΕΟ (πρώην Φυσικοθεραπείας, ΤΕΙ Θεσσαλονίκης) | C139: Θεσσαλονίκη | D139: 105 | E139: 0.8 | F139: =E139*'ΒΟΗΘ'!D137 -> 9600 | G139: =IF((F139<='ΒΟΗΘ'!B137),"ΕΠΙΤΥΧΙΑ","") -> ΕΠΙΤΥΧΙΑ
A140: 1617 | B140: Νοσηλευτικής, ΔΙ.ΠΑ.Ε., ΝΕΟ (πρώην Νοσηλευτικής, ΤΕΙ Ανατ. Μακεδ. & Θράκης) | C140: Διδυμότειχο | D140: 103 | E140: 1 | F140: =E140*'ΒΟΗΘ'!D138 -> 12000 | G140: =IF((F140<='ΒΟΗΘ'!B138),"ΕΠΙΤΥΧΙΑ","") -> ΕΠΙΤΥΧΙΑ
A141: 1618 | B141: Νοσηλευτικής, ΔΙ.ΠΑ.Ε., ΝΕΟ (πρώην Νοσηλευτικής, ΤΕΙ Θεσσαλονίκης) | C141: Θεσσαλονίκη | D141: 103 | E141: 1 | F141: =E141*'ΒΟΗΘ'!D139 -> 12000 | G141: =IF((F141<='ΒΟΗΘ'!B139),"ΕΠΙΤΥΧΙΑ","") -> ΕΠΙΤΥΧΙΑ
A142: 1629 | B142: Χημείας, ΔΙ.ΠΑ.Ε., ΝΕΟ | C142: Καβάλα | D142: 180 | E142: 1.2 | F142: =E142*'ΒΟΗΘ'!D140 -> 14400 | G142: =IF((F142<='ΒΟΗΘ'!B140),"ΕΠΙΤΥΧΙΑ","") -> 
A143: 1632 | B143: Δασολογίας & Φυσικού Περιβάλλοντος, ΔΙ.ΠΑ.Ε., ΝΕΟ (πρώην Δασοπονίας & Διαχείρισης Φυσικού Περιβάλλοντος, ΤΕΙ Ανατ. Μακεδ. & Θράκης) | C143: Δράμα | D143: 149 | E143: 0.8 | F143: =E143*'ΒΟΗΘ'!D141 -> 9600 | G143: =IF((F143<='ΒΟΗΘ'!B141),"ΕΠΙΤΥΧΙΑ","") -> ΕΠΙΤΥΧΙΑ
A144: 1633 | B144: Αγροτικής Βιοτεχνολογίας & Οινολογίας, ΔΙ.ΠΑ.Ε., ΝΕΟ (πρώην Οινολογίας & Τεχνολογίας Ποτών, ΤΕΙ Ανατ. Μακεδονίας & Θράκης) | C144: Δράμα | D144: 186 | E144: 0.8 | F144: =E144*'ΒΟΗΘ'!D142 -> 9600 | G144: =IF((F144<='ΒΟΗΘ'!B142),"ΕΠΙΤΥΧΙΑ","") -> ΕΠΙΤΥΧΙΑ
A145: 1634 | B145: Γεωπονίας, ΔΙ.ΠΑ.Ε., ΝΕΟ (πρώην Τεχνολόγων Γεωπόνων, ΤΕΙ Θεσσαλονίκης) | C145: Θεσσαλονίκη | D145: 243 | E145: 0.9 | F145: =E145*'ΒΟΗΘ'!D143 -> 10800 | G145: =IF((F145<='ΒΟΗΘ'!B143),"ΕΠΙΤΥΧΙΑ","") -> ΕΠΙΤΥΧΙΑ
A146: 1635 | B146: Επιστήμης & Τεχνολογίας Τροφίμων, ΔΙ.ΠΑ.Ε., ΝΕΟ (πρώην Τεχνολογίας Τροφίμων, ΤΕΙ Θεσσαλονίκης) | C146: Θεσσαλονίκη | D146: 101 | E146: 1 | F146: =E146*'ΒΟΗΘ'!D144 -> 12000 | G146: =IF((F146<='ΒΟΗΘ'!B144),"ΕΠΙΤΥΧΙΑ","") -> ΕΠΙΤΥΧΙΑ
A147: 1651 | B147: Νοσηλευτικής, ΕΛ.ΜΕ.ΠΑ., ΝΕΟ (πρώην Νοσηλευτικής, ΤΕΙ Κρήτης) | C147: Ηράκλειο | D147: 134 | E147: 0.8 | F147: =E147*'ΒΟΗΘ'!D145 -> 9600 | G147: =IF((F147<='ΒΟΗΘ'!B145),"ΕΠΙΤΥΧΙΑ","") -> ΕΠΙΤΥΧΙΑ
A148: 1653 | B148: Επιστημών Διατροφής & Διαιτολογίας, ΕΛ.ΜΕ.ΠΑ., ΝΕΟ (πρώην Διατροφής & Διαιτολογίας, ΤΕΙ Κρήτης) | C148: Σητεία | D148: 121 | E148: 0.8 | F148: =E148*'ΒΟΗΘ'!D146 -> 9600 | G148: =IF((F148<='ΒΟΗΘ'!B146),"ΕΠΙΤΥΧΙΑ","") -> ΕΠΙΤΥΧΙΑ
A149: 1657 | B149: Γεωπονίας, ΕΛ.ΜΕ.ΠΑ., ΝΕΟ (πρώην Τεχνολόγων Γεωπόνων, ΤΕΙ Κρήτης) | C149: Ηράκλειο | D149: 166 | E149: 0.8 | F149: =E149*'ΒΟΗΘ'!D147 -> 9600 | G149: =IF((F149<='ΒΟΗΘ'!B147),"ΕΠΙΤΥΧΙΑ","") -> ΕΠΙΤΥΧΙΑ

Sheet 4ο ΠΕΔΙΟ-ΟΙΚΟΝ ΠΛΗΡ
A2: ΠΕΔΙΟ 4ο: ΟΙΚΟΝΟΜΙΚΕΣ & ΣΧΟΛΕΣ ΠΛΗΡΟΦΟΡΙΚΗΣ
A3: ΚΩΔΙΚΟΣ | B3: ΣΧΟΛΗ/ΤΜΗΜΑ | C3: ΠΟΛΗ | D3: ΕΙΣΑΚΤΕΟΙ | E3: ΣΕΒΕ | F3: ΕΒΕ | G3: ΑΠΟΤΕΛΕΣΜΑ
A4: ΜΗΧΑΝΟΓΡ | D4: 2021 (90%) | E4: 2021 | F4: 2021 (90%)
A5: 97 | B5: Οικονομικών Επιστημών, Θράκης | C5: Κομοτηνή | D5: 266 | E5: 1 | F5: =E5*'ΒΟΗΘ'!D3 -> 12000 | G5: =IF((F5<='ΒΟΗΘ'!B3),"ΕΠΙΤΥΧΙΑ","") -> ΕΠΙΤΥΧΙΑ
A6: 98 | B6: Πληροφορικής & Τηλεπικοινωνιών, Πελοποννήσου | C6: Τρίπολη | D6: 197 | E6: 0.9 | F6: =E6*'ΒΟΗΘ'!D4 -> 10800 | G6: =IF((F6<='ΒΟΗΘ'!B4),"ΕΠΙΤΥΧΙΑ","") -> ΕΠΙΤΥΧΙΑ
A7: 99 | B7: Πληροφορικής & Τηλεπικοινωνιών, Θεσσαλίας, ΝΕΟ (πρώην Πληροφορικής) | C7: Λαμία | D7: 243 | E7: 0.8 | F7: =E7*'ΒΟΗΘ'!D5 -> 9600 | G7: =IF((F7<='ΒΟΗΘ'!B5),"ΕΠΙΤΥΧΙΑ","") -> ΕΠΙΤΥΧΙΑ
A8: 124 | B8: Δημόσιας Διοίκησης, Παντείου | C8: Αθήνα | D8: 265 | E8: 1.2 | F8: =E8*'ΒΟΗΘ'!D6 -> 14400 | G8: =IF((F8<='ΒΟΗΘ'!B6),"ΕΠΙΤΥΧΙΑ","") -> 
A9: 128 | B9: Παιδαγωγικό Δημοτικής Εκπ/σης, ΕΚΠΑ | C9: Αθήνα | D9: 180 | E9: 1.2 | F9: =E9*'ΒΟΗΘ'!D7 -> 14400 | G9: =IF((F9<='ΒΟΗΘ'!B7),"ΕΠΙΤΥΧΙΑ","") -> 
A10: 130 | B10: Παιδαγωγικό Δημοτικής Εκπ/σης, Ιωαννίνων | C10: Ιωάννινα | D10: 209 | E10: 0.8 | F10: =E10*'ΒΟΗΘ'!D8 -> 9600 | G10: =IF((F10<='ΒΟΗΘ'!B8),"ΕΠΙΤΥΧΙΑ","") -> ΕΠΙΤΥΧΙΑ
A11: 132 | B11: Παιδαγωγικό Δημοτικής Εκπ/σης, Κρήτης | C11: Ρέθυμνο | D11: 169 | E11: 1 | F11: =E11*'ΒΟΗΘ'!D9 -> 12000 | G11: =IF((F11<='ΒΟΗΘ'!B9),"ΕΠΙΤΥΧΙΑ","") -> ΕΠΙΤΥΧΙΑ
A12: 134 | B12: Επιστημών Προσχολ. Αγωγής & Εκπ/σης, ΑΠΘ | C12: Θεσσαλονίκη | D12: 130 | E12: 0.8 | F12: =E12*'ΒΟΗΘ'!D10 -> 9600 | G12: =IF((F12<='ΒΟΗΘ'!B10),"ΕΠΙΤΥΧΙΑ","") -> ΕΠΙΤΥΧΙΑ
A13: 136 | B13: Επιστημών της Εκπαίδευσης & της Αγωγής στην Προσχολική Ηλικία, Πατρών | C13: Πάτρα | D13: 143 | E13: 0.8 | F13: =E13*'ΒΟΗΘ'!D11 -> 9600 | G13: =IF((F13<='ΒΟΗΘ'!B11),"ΕΠΙΤΥΧΙΑ","") -> ΕΠΙΤΥΧΙΑ
A14: 140 | B14: Παιδαγωγικό Δημοτικής Εκπ/σης, ΑΠΘ | C14: Θεσσαλονίκη | D14: 180 | E14: 0.8 | F14: =E14*'ΒΟΗΘ'!D12 -> 9600 | G14: =IF((F14<='ΒΟΗΘ'!B12),"ΕΠΙΤΥΧΙΑ","") -> ΕΠΙΤΥΧΙΑ
A15: 142 | B15: Παιδαγωγικό Δημοτικής Εκπ/σης, Θράκης | C15: Αλεξ/πολη | D15: 216 | E15: 0.8 | F15: =E15*'ΒΟΗΘ'!D13 -> 9600 | G15: =IF((F15<='ΒΟΗΘ'!B13),"ΕΠΙΤΥΧΙΑ","") -> ΕΠΙΤΥΧΙΑ
A16: 143 | B16: Παιδαγωγικό Δημοτικής Εκπ/σης, Αιγαίου | C16: Ρόδος | D16: 306 | E16: 0.8 | F16: =E16*'ΒΟΗΘ'!D14 -> 9600 | G16: =IF((F16<='ΒΟΗΘ'!B14),"ΕΠΙΤΥΧΙΑ","") -> ΕΠΙΤΥΧΙΑ
A17: 144 | B17: Οικονομίας και Βιώσιμης Ανάπτυξης (πρώην Οικιακής Οικονομίας & Οικολογίας), Χαροκοπείου | C17: Αθήνα | D17: 75 | E17: 1.1 | F17: =E17*'ΒΟΗΘ'!D15 -> 13200 | G17: =IF((F17<='ΒΟΗΘ'!B15),"ΕΠΙΤΥΧΙΑ","") -> 
A18: 150 | B18: Διεθνών & Ευρωπαϊκών Οικονομικών Σπουδών, Ο.Π.Α. | C18: Αθήνα | D18: 112 | E18: 1.2 | F18: =E18*'ΒΟΗΘ'!D16 -> 14400 | G18: =IF((F18<='ΒΟΗΘ'!B16),"ΕΠΙΤΥΧΙΑ","") -> 
A19: 152 | B19: Οικονομικής & Περιφερειακής Ανάπτυξης, Παντείου | C19: Αθήνα | D19: 198 | E19: 1.2 | F19: =E19*'ΒΟΗΘ'!D17 -> 14400 | G19: =IF((F19<='ΒΟΗΘ'!B17),"ΕΠΙΤΥΧΙΑ","") -> 
A20: 154 | B20: Εκπαίδευσης & Αγωγής στην Προσχ. Ηλικία, ΕΚΠΑ | C20: Αθήνα | D20: 105 | E20: 0.8 | F20: =E20*'ΒΟΗΘ'!D18 -> 9600 | G20: =IF((F20<='ΒΟΗΘ'!B18),"ΕΠΙΤΥΧΙΑ","") -> ΕΠΙΤΥΧΙΑ
A21: 155 | B21: Χρηματοοικονομικής & Τραπεζικής Διοικητικής | C21: Πειραιάς | D21: 158 | E21: 1.2 | F21: =E21*'ΒΟΗΘ'!D19 -> 14400 | G21: =IF((F21<='ΒΟΗΘ'!B19),"ΕΠΙΤΥΧΙΑ","") -> 
A22: 156 | B22: Παιδαγωγικό Νηπιαγωγών | C22: Ιωάννινα | D22: 223 | E22: 0.8 | F22: =E22*'ΒΟΗΘ'!D20 -> 9600 | G22: =IF((F22<='ΒΟΗΘ'!B20),"ΕΠΙΤΥΧΙΑ","") -> ΕΠΙΤΥΧΙΑ
A23: 157 | B23: Ναυτιλιακών Σπουδών | C23: Πειραιάς | D23: 204 | E23: 1.2 | F23: =E23*'ΒΟΗΘ'!D21 -> 14400 | G23: =IF((F23<='ΒΟΗΘ'!B21),"ΕΠΙΤΥΧΙΑ","") -> 
A24: 158 | B24: Παιδαγωγικό Προσχολ. Εκπ/σης, Κρήτης | C24: Ρέθυμνο | D24: 152 | E24: 1 | F24: =E24*'ΒΟΗΘ'!D22 -> 12000 | G24: =IF((F24<='ΒΟΗΘ'!B22),"ΕΠΙΤΥΧΙΑ","") -> ΕΠΙΤΥΧΙΑ
A25: 160 | B25: Επιστημών της Εκπαίδευσης στην Προσχολική Ηλικία, Θράκης | C25: Αλεξ/πολη | D25: 193 | E25: 1 | F25: =E25*'ΒΟΗΘ'!D23 -> 12000 | G25: =IF((F25<='ΒΟΗΘ'!B23),"ΕΠΙΤΥΧΙΑ","") -> ΕΠΙΤΥΧΙΑ
A26: 161 | B26: Διεθνών & Ευρωπαϊκών Σπουδών, Μακεδονίας | C26: Θεσσαλονίκη | D26: 126 | E26: 1.2 | F26: =E26*'ΒΟΗΘ'!D24 -> 14400 | G26: =IF((F26<='ΒΟΗΘ'!B24),"ΕΠΙΤΥΧΙΑ","") -> 
A27: 162 | B27: Επιστημών της Προσχ. Αγωγής & του Εκπ/κού Σχεδιασμού, Αιγαίου | C27: Ρόδος | D27: 259 | E27: 0.8 | F27: =E27*'ΒΟΗΘ'!D25 -> 9600 | G27: =IF((F27<='ΒΟΗΘ'!B25),"ΕΠΙΤΥΧΙΑ","") -> ΕΠΙΤΥΧΙΑ
A28: 163 | B28: Κινηματογράφου | C28: Θεσσαλονίκη | D28: 73 | E28: 1 | F28: =E28*'ΒΟΗΘ'!D26 -> 12000 | G28: =IF((F28<='ΒΟΗΘ'!B26),"ΕΠΙΤΥΧΙΑ","") -> ΕΠΙΤΥΧΙΑ
A29: 164 | B29: Παιδαγωγικό Δημοτικής Εκπ/σης, Θεσσαλίας | C29: Βόλος | D29: 141 | E29: 0.8 | F29: =E29*'ΒΟΗΘ'!D27 -> 9600 | G29: =IF((F29<='ΒΟΗΘ'!B27),"ΕΠΙΤΥΧΙΑ","") -> ΕΠΙΤΥΧΙΑ
A30: 166 | B30: Παιδαγωγικό Προσχολ. Εκπ/σης, Θεσσαλίας | C30: Βόλος | D30: 125 | E30: 0.8 | F30: =E30*'ΒΟΗΘ'!D28 -> 9600 | G30: =IF((F30<='ΒΟΗΘ'!B28),"ΕΠΙΤΥΧΙΑ","") -> ΕΠΙΤΥΧΙΑ
A31: 168 | B31: Θεάτρου, ΑΠΘ | C31: Θεσσαλονίκη | D31: 63 | E31: 0.8 | F31: =E31*'ΒΟΗΘ'!D29 -> 9600 | G31: =IF((F31<='ΒΟΗΘ'!B29),"ΕΠΙΤΥΧΙΑ","") -> ΕΠΙΤΥΧΙΑ
A32: 173 | B32: Ιστορίας & Φιλοσοφίας της Επιστήμης, ΕΚΠΑ | C32: Αθήνα | D32: 114 | E32: 1.05 | F32: =E32*'ΒΟΗΘ'!D30 -> 12600 | G32: =IF((F32<='ΒΟΗΘ'!B30),"ΕΠΙΤΥΧΙΑ","") -> 
A33: 176 | B33: Βαλκανικών, Σλαβικών & Ανατολ. Σπουδών, Μακεδονίας | C33: Θεσσαλονίκη | D33: 177 | E33: 1.2 | F33: =E33*'ΒΟΗΘ'!D31 -> 14400 | G33: =IF((F33<='ΒΟΗΘ'!B31),"ΕΠΙΤΥΧΙΑ","") -> 
A34: 178 | B34: Παιδαγωγικό Ειδικής Αγωγής, Θεσσαλίας | C34: Βόλος | D34: 114 | E34: 1 | F34: =E34*'ΒΟΗΘ'!D32 -> 12000 | G34: =IF((F34<='ΒΟΗΘ'!B32),"ΕΠΙΤΥΧΙΑ","") -> ΕΠΙΤΥΧΙΑ
A35: 179 | B35: Διεθνών, Ευρωπαϊκών & Περιφερειακών Σπουδών, Παντείου | C35: Αθήνα | D35: 138 | E35: 1 | F35: =E35*'ΒΟΗΘ'!D33 -> 12000 | G35: =IF((F35<='ΒΟΗΘ'!B33),"ΕΠΙΤΥΧΙΑ","") -> ΕΠΙΤΥΧΙΑ
A36: 180 | B36: Ναυτιλίας & Επιχειρηματικών Υπηρεσιών, Αιγαίου | C36: Χίος | D36: 190 | E36: 1 | F36: =E36*'ΒΟΗΘ'!D34 -> 12000 | G36: =IF((F36<='ΒΟΗΘ'!B34),"ΕΠΙΤΥΧΙΑ","") -> ΕΠΙΤΥΧΙΑ
A37: 216 | B37: Επιστήμης Υπολογιστών, Κρήτης | C37: Ηράκλειο | D37: 148 | E37: 1.2 | F37: =E37*'ΒΟΗΘ'!D35 -> 14400 | G37: =IF((F37<='ΒΟΗΘ'!B35),"ΕΠΙΤΥΧΙΑ","") -> 
A38: 218 | B38: Στατιστικής & Αναλογιστικών-Χρηματοοικονομικών Μαθηματικών, Αιγαίου | C38: Σάμος | D38: 243 | E38: 0.8 | F38: =E38*'ΒΟΗΘ'!D36 -> 9600 | G38: =IF((F38<='ΒΟΗΘ'!B36),"ΕΠΙΤΥΧΙΑ","") -> ΕΠΙΤΥΧΙΑ
A39: 222 | B39: Μηχανικών Οικονομίας & Διοίκησης, Αιγαίου | C39: Χίος | D39: 113 | E39: 0.8 | F39: =E39*'ΒΟΗΘ'!D37 -> 9600 | G39: =IF((F39<='ΒΟΗΘ'!B37),"ΕΠΙΤΥΧΙΑ","") -> ΕΠΙΤΥΧΙΑ
A40: 224 | B40: Μηχανικών Παραγωγής & Διοίκησης, Θράκης | C40: Ξάνθη | D40: 118 | E40: 1.1 | F40: =E40*'ΒΟΗΘ'!D38 -> 13200 | G40: =IF((F40<='ΒΟΗΘ'!B38),"ΕΠΙΤΥΧΙΑ","") -> 
A41: 230 | B41: Μηχανικών Παραγωγής & Διοίκησης, Πολυτ. Κρήτης | C41: Χανιά | D41: 154 | E41: 1.2 | F41: =E41*'ΒΟΗΘ'!D39 -> 14400 | G41: =IF((F41<='ΒΟΗΘ'!B39),"ΕΠΙΤΥΧΙΑ","") -> 
A42: 238 | B42: Μηχανικών Σχεδίασης Προϊόντων & Συστημάτων, Αιγαίου | C42: Σύρος | D42: 113 | E42: 1 | F42: =E42*'ΒΟΗΘ'!D40 -> 12000 | G42: =IF((F42<='ΒΟΗΘ'!B40),"ΕΠΙΤΥΧΙΑ","") -> ΕΠΙΤΥΧΙΑ
A43: 240 | B43: Διοικητικής Επιστήμης & Τεχνολογίας, Ο.Π.Α. | C43: Αθήνα | D43: 138 | E43: 1.2 | F43: =E43*'ΒΟΗΘ'!D41 -> 14400 | G43: =IF((F43<='ΒΟΗΘ'!B41),"ΕΠΙΤΥΧΙΑ","") -> 
A44: 262 | B44: Ψηφιακών Συστημάτων, Πειραιώς | C44: Πειραιάς | D44: 163 | E44: 1.2 | F44: =E44*'ΒΟΗΘ'!D42 -> 14400 | G44: =IF((F44<='ΒΟΗΘ'!B42),"ΕΠΙΤΥΧΙΑ","") -> 
A45: 309 | B45: Οικονομικών Επιστημών, ΕΚΠΑ | C45: Αθήνα | D45: 296 | E45: 1.2 | F45: =E45*'ΒΟΗΘ'!D43 -> 14400 | G45: =IF((F45<='ΒΟΗΘ'!B43),"ΕΠΙΤΥΧΙΑ","") -> 
A46: 310 | B46: Γεωγραφίας, Αιγαίου | C46: Μυτιλήνη | D46: 177 | E46: 0.8 | F46: =E46*'ΒΟΗΘ'!D44 -> 9600 | G46: =IF((F46<='ΒΟΗΘ'!B44),"ΕΠΙΤΥΧΙΑ","") -> ΕΠΙΤΥΧΙΑ
A47: 311 | B47: Οικονομικών Επιστημών, ΑΠΘ | C47: Θεσσαλονίκη | D47: 316 | E47: 1.2 | F47: =E47*'ΒΟΗΘ'!D45 -> 14400 | G47: =IF((F47<='ΒΟΗΘ'!B45),"ΕΠΙΤΥΧΙΑ","") -> 
A48: 312 | B48: Οικονομικής Επιστήμης, Ο.Π.Α. | C48: Αθήνα | D48: 202 | E48: 1.2 | F48: =E48*'ΒΟΗΘ'!D46 -> 14400 | G48: =IF((F48<='ΒΟΗΘ'!B46),"ΕΠΙΤΥΧΙΑ","") -> 
A49: 313 | B49: Οργάνωσης & Διοίκησης Επιχειρήσεων, Οικον. Παν. Αθήνας | C49: Αθήνα | D49: 211 | E49: 1.2 | F49: =E49*'ΒΟΗΘ'!D47 -> 14400 | G49: =IF((F49<='ΒΟΗΘ'!B47),"ΕΠΙΤΥΧΙΑ","") -> 
A50: 314 | B50: Μάρκετινγκ & Επικοινωνίας, Οικον. Παν. Αθήνας | C50: Αθήνα | D50: 154 | E50: 1.2 | F50: =E50*'ΒΟΗΘ'!D48 -> 14400 | G50: =IF((F50<='ΒΟΗΘ'!B48),"ΕΠΙΤΥΧΙΑ","") -> 
A51: 315 | B51: Οικονομικής Επιστήμης, Πειραιά | C51: Πειραιάς | D51: 266 | E51: 1.2 | F51: =E51*'ΒΟΗΘ'!D49 -> 14400 | G51: =IF((F51<='ΒΟΗΘ'!B49),"ΕΠΙΤΥΧΙΑ","") -> 
A52: 316 | B52: Οργάνωσης & Διοίκησης Επιχειρήσεων, Πειραιά | C52: Πειραιάς | D52: 243 | E52: 1.2 | F52: =E52*'ΒΟΗΘ'!D50 -> 14400 | G52: =IF((F52<='ΒΟΗΘ'!B50),"ΕΠΙΤΥΧΙΑ","") -> 
A53: 317 | B53: Οικονομικών Επιστημών, Μακεδονίας | C53: Θεσσαλονίκη | D53: 242 | E53: 1.2 | F53: =E53*'ΒΟΗΘ'!D51 -> 14400 | G53: =IF((F53<='ΒΟΗΘ'!B51),"ΕΠΙΤΥΧΙΑ","") -> 
A54: 318 | B54: Στατιστικής & Ασφαλιστικής Επιστήμης, Πειραιώς | C54: Πειραιάς | D54: 146 | E54: 1.2 | F54: =E54*'ΒΟΗΘ'!D52 -> 14400 | G54: =IF((F54<='ΒΟΗΘ'!B52),"ΕΠΙΤΥΧΙΑ","") -> 
A55: 319 | B55: Οικονομικών Επιστημών, Πατρών | C55: Πάτρα | D55: 247 | E55: 1.2 | F55: =E55*'ΒΟΗΘ'!D53 -> 14400 | G55: =IF((F55<='ΒΟΗΘ'!B53),"ΕΠΙΤΥΧΙΑ","") -> 
A56: 320 | B56: Διοίκησης Επιχειρήσεων, Αιγαίου | C56: Χίος | D56: 316 | E56: 0.8 | F56: =E56*'ΒΟΗΘ'!D54 -> 9600 | G56: =IF((F56<='ΒΟΗΘ'!B54),"ΕΠΙΤΥΧΙΑ","") -> ΕΠΙΤΥΧΙΑ
A57: 321 | B57: Οικονομικών Επιστημών, Κρήτης | C57: Ρέθυμνο | D57: 257 | E57: 1.08 | F57: =E57*'ΒΟΗΘ'!D55 -> 12960 | G57: =IF((F57<='ΒΟΗΘ'!B55),"ΕΠΙΤΥΧΙΑ","") -> 
A58: 322 | B58: Οργάνωσης & Διοίκησης Επιχειρήσεων, Μακεδονίας | C58: Θεσσαλονίκη | D58: 202 | E58: 1.2 | F58: =E58*'ΒΟΗΘ'!D56 -> 14400 | G58: =IF((F58<='ΒΟΗΘ'!B56),"ΕΠΙΤΥΧΙΑ","") -> 
A59: 326 | B59: Αγροτικής Οικονομίας & Ανάπτυξης, Γεωπονικού | C59: Αθήνα | D59: 61 | E59: 1.2 | F59: =E59*'ΒΟΗΘ'!D57 -> 14400 | G59: =IF((F59<='ΒΟΗΘ'!B57),"ΕΠΙΤΥΧΙΑ","") -> 
A60: 329 | B60: Στατιστικής, Ο.Π.Α. | C60: Αθήνα | D60: 97 | E60: 1.2 | F60: =E60*'ΒΟΗΘ'!D58 -> 14400 | G60: =IF((F60<='ΒΟΗΘ'!B58),"ΕΠΙΤΥΧΙΑ","") -> 
A61: 330 | B61: Πληροφορικής & Τηλεπικοινωνιών, ΕΚΠΑ | C61: Αθήνα | D61: 174 | E61: 1.2 | F61: =E61*'ΒΟΗΘ'!D59 -> 14400 | G61: =IF((F61<='ΒΟΗΘ'!B59),"ΕΠΙΤΥΧΙΑ","") -> 
A62: 333 | B62: Πληροφορικής, Ο.Π.Α. | C62: Αθήνα | D62: 182 | E62: 1.2 | F62: =E62*'ΒΟΗΘ'!D60 -> 14400 | G62: =IF((F62<='ΒΟΗΘ'!B60),"ΕΠΙΤΥΧΙΑ","") -> 
A63: 334 | B63: Παιδαγωγικό Δημοτικής Εκπ/σης, Δυτ. Μακεδονίας | C63: Φλώρινα | D63: 180 | E63: 0.8 | F63: =E63*'ΒΟΗΘ'!D61 -> 9600 | G63: =IF((F63<='ΒΟΗΘ'!B61),"ΕΠΙΤΥΧΙΑ","") -> ΕΠΙΤΥΧΙΑ
A64: 336 | B64: Βιομηχανικής Διοίκησης & Τεχνολογίας | C64: Πειραιάς | D64: 133 | E64: 1.2 | F64: =E64*'ΒΟΗΘ'!D62 -> 14400 | G64: =IF((F64<='ΒΟΗΘ'!B62),"ΕΠΙΤΥΧΙΑ","") -> 
A65: 337 | B65: Λογιστικής & Χρηματοοικονομικής, Μακεδονίας | C65: Θεσσαλονίκη | D65: 251 | E65: 1.2 | F65: =E65*'ΒΟΗΘ'!D63 -> 14400 | G65: =IF((F65<='ΒΟΗΘ'!B63),"ΕΠΙΤΥΧΙΑ","") -> 
A66: 338 | B66: Πληροφορικής, ΑΠΘ | C66: Θεσσαλονίκη | D66: 118 | E66: 1.2 | F66: =E66*'ΒΟΗΘ'!D64 -> 14400 | G66: =IF((F66<='ΒΟΗΘ'!B64),"ΕΠΙΤΥΧΙΑ","") -> 
A67: 339 | B67: Πληροφορικής, Πειραιά | C67: Πειραιάς | D67: 157 | E67: 1.2 | F67: =E67*'ΒΟΗΘ'!D65 -> 14400 | G67: =IF((F67<='ΒΟΗΘ'!B65),"ΕΠΙΤΥΧΙΑ","") -> 
A68: 341 | B68: Παιδαγωγικό Νηπιαγωγών, Δυτ. Μακεδονίας | C68: Φλώρινα | D68: 178 | E68: 1 | F68: =E68*'ΒΟΗΘ'!D66 -> 12000 | G68: =IF((F68<='ΒΟΗΘ'!B66),"ΕΠΙΤΥΧΙΑ","") -> ΕΠΙΤΥΧΙΑ
A69: 345 | B69: Οικονομικών Επιστημών, Ιωαννίνων | C69: Ιωάννινα | D69: 228 | E69: 0.8 | F69: =E69*'ΒΟΗΘ'!D67 -> 9600 | G69: =IF((F69<='ΒΟΗΘ'!B67),"ΕΠΙΤΥΧΙΑ","") -> ΕΠΙΤΥΧΙΑ
A70: 347 | B70: Λογιστικής & Χρηματοοικονομικής, Οικον. Παν. Αθήνας | C70: Αθήνα | D70: 170 | E70: 1.2 | F70: =E70*'ΒΟΗΘ'!D68 -> 14400 | G70: =IF((F70<='ΒΟΗΘ'!B68),"ΕΠΙΤΥΧΙΑ","") -> 
A71: 350 | B71: Οικονομικών Επιστημών, Θεσσαλίας | C71: Βόλος | D71: 202 | E71: 1 | F71: =E71*'ΒΟΗΘ'!D69 -> 12000 | G71: =IF((F71<='ΒΟΗΘ'!B69),"ΕΠΙΤΥΧΙΑ","") -> ΕΠΙΤΥΧΙΑ
A72: 352 | B72: Διοίκησης Επιχειρήσεων, Πατρών | C72: Πάτρα | D72: 266 | E72: 1 | F72: =E72*'ΒΟΗΘ'!D70 -> 12000 | G72: =IF((F72<='ΒΟΗΘ'!B70),"ΕΠΙΤΥΧΙΑ","") -> ΕΠΙΤΥΧΙΑ
A73: 354 | B73: Πολιτισμικής Τεχ/γίας & Επικοινωνίας, Αιγαίου | C73: Μυτιλήνη | D73: 124 | E73: 0.8 | F73: =E73*'ΒΟΗΘ'!D71 -> 9600 | G73: =IF((F73<='ΒΟΗΘ'!B71),"ΕΠΙΤΥΧΙΑ","") -> ΕΠΙΤΥΧΙΑ
A74: 355 | B74: Διεθνών & Ευρωπαϊκών Σπουδών, Πειραιά | C74: Πειραιάς | D74: 129 | E74: 1.2 | F74: =E74*'ΒΟΗΘ'!D72 -> 14400 | G74: =IF((F74<='ΒΟΗΘ'!B72),"ΕΠΙΤΥΧΙΑ","") -> 
A75: 356 | B75: Γεωγραφίας, Χαροκοπείου | C75: Αθήνα | D75: 62 | E75: 0.9 | F75: =E75*'ΒΟΗΘ'!D73 -> 10800 | G75: =IF((F75<='ΒΟΗΘ'!B73),"ΕΠΙΤΥΧΙΑ","") -> ΕΠΙΤΥΧΙΑ
A76: 361 | B76: Οικονομικών Επιστημών, Πελοποννήσου | C76: Τρίπολη | D76: 296 | E76: 1 | F76: =E76*'ΒΟΗΘ'!D74 -> 12000 | G76: =IF((F76<='ΒΟΗΘ'!B74),"ΕΠΙΤΥΧΙΑ","") -> ΕΠΙΤΥΧΙΑ
A77: 366 | B77: Πληροφορικής, Ιονίου | C77: Κέρκυρα | D77: 202 | E77: 1 | F77: =E77*'ΒΟΗΘ'!D75 -> 12000 | G77: =IF((F77<='ΒΟΗΘ'!B75),"ΕΠΙΤΥΧΙΑ","") -> ΕΠΙΤΥΧΙΑ
A78: 367 | B78: Τεχνών Ήχου & Εικόνας, Ιονίου | C78: Κέρκυρα | D78: 86 | E78: 0.8 | F78: =E78*'ΒΟΗΘ'!D76 -> 9600 | G78: =IF((F78<='ΒΟΗΘ'!B76),"ΕΠΙΤΥΧΙΑ","") -> ΕΠΙΤΥΧΙΑ
A79: 375 | B79: Τουριστικών Σπουδών, Πειραιά | C79: Πειραιάς | D79: 74 | E79: 1.2 | F79: =E79*'ΒΟΗΘ'!D77 -> 14400 | G79: =IF((F79<='ΒΟΗΘ'!B77),"ΕΠΙΤΥΧΙΑ","") -> 
A80: 389 | B80: Μηχανικών Βιομηχανικής Σχεδίασης & Παραγωγής, Δυτ. Αττικής | C80: Αιγάλεω | D80: 243 | E80: 1 | F80: =E80*'ΒΟΗΘ'!D78 -> 12000 | G80: =IF((F80<='ΒΟΗΘ'!B78),"ΕΠΙΤΥΧΙΑ","") -> ΕΠΙΤΥΧΙΑ
A81: 390 | B81: Μηχανικών Πληροφορικής & Υπολογιστών, Δυτ. Αττικής | C81: Αιγάλεω | D81: 213 | E81: 1.2 | F81: =E81*'ΒΟΗΘ'!D79 -> 14400 | G81: =IF((F81<='ΒΟΗΘ'!B79),"ΕΠΙΤΥΧΙΑ","") -> 
A82: 400 | B82: Οργάνωσης & Διαχείρισης Αθλητισμού, Πελοποννήσου | C82: Σπάρτη | D82: 133 | E82: 0.8 | F82: =E82*'ΒΟΗΘ'!D80 -> 9600 | G82: =IF((F82<='ΒΟΗΘ'!B80),"ΕΠΙΤΥΧΙΑ","") -> ΕΠΙΤΥΧΙΑ
A83: 401 | B83: Επιστήμης Φυσ. Αγωγής & Αθλητισμού, ΕΚΠΑ | C83: Αθήνα | D83: 121 | E83: 0.8 | F83: =E83*'ΒΟΗΘ'!D81 -> 9600 | G83: =IF((F83<='ΒΟΗΘ'!B81),"ΕΠΙΤΥΧΙΑ","") -> ΕΠΙΤΥΧΙΑ
A84: 402 | B84: Επιστήμης Φυσ. Αγωγής & Αθλητισμού, ΑΠΘ / Εισαγ. Κατ/νση | C84: Σέρρες | D84: 113 | E84: 0.8 | F84: =E84*'ΒΟΗΘ'!D82 -> 9600 | G84: =IF((F84<='ΒΟΗΘ'!B82),"ΕΠΙΤΥΧΙΑ","") -> ΕΠΙΤΥΧΙΑ
A85: 403 | B85: Επιστήμης Φυσ. Αγωγής & Αθλητισμού, ΑΠΘ / Εισαγ. Κατ/νση | C85: Θεσσαλονίκη | D85: 121 | E85: 1 | F85: =E85*'ΒΟΗΘ'!D83 -> 12000 | G85: =IF((F85<='ΒΟΗΘ'!B83),"ΕΠΙΤΥΧΙΑ","") -> ΕΠΙΤΥΧΙΑ
A86: 404 | B86: Επιστήμης Φυσ. Αγωγής & Αθλητισμού, Θράκης | C86: Κομοτηνή | D86: 324 | E86: 0.8 | F86: =E86*'ΒΟΗΘ'!D84 -> 9600 | G86: =IF((F86<='ΒΟΗΘ'!B84),"ΕΠΙΤΥΧΙΑ","") -> ΕΠΙΤΥΧΙΑ
A87: 405 | B87: Επιστήμης Φυσ. Αγωγής & Αθλητισμού, Θεσσαλίας | C87: Τρίκαλα | D87: 151 | E87: 1 | F87: =E87*'ΒΟΗΘ'!D85 -> 12000 | G87: =IF((F87<='ΒΟΗΘ'!B85),"ΕΠΙΤΥΧΙΑ","") -> ΕΠΙΤΥΧΙΑ
A88: 406 | B88: Μουσικών Σπουδών, ΑΠΘ | C88: Θεσσαλονίκη | D88: 55 | E88: 0.9 | F88: =E88*'ΒΟΗΘ'!D86 -> 10800 | G88: =IF((F88<='ΒΟΗΘ'!B86),"ΕΠΙΤΥΧΙΑ","") -> ΕΠΙΤΥΧΙΑ
A89: 407 | B89: Μουσικών Σπουδών, Ιονίου (ΕΙΔΙΚΕΣ ΕΞΕΤΑΣΕΙΣ) | C89: Κέρκυρα | D89: 91 | E89: (***) | F89: =E89*'ΒΟΗΘ'!D87 -> #VALUE! | G89: =IF((F89<='ΒΟΗΘ'!B87),"ΕΠΙΤΥΧΙΑ","") -> #VALUE!
A90: 408 | B90: Μουσικών Σπουδών, ΕΚΠΑ | C90: Αθήνα | D90: 63 | E90: 0.9 | F90: =E90*'ΒΟΗΘ'!D88 -> 10800 | G90: =IF((F90<='ΒΟΗΘ'!B88),"ΕΠΙΤΥΧΙΑ","") -> ΕΠΙΤΥΧΙΑ
A91: 409 | B91: Μουσικής Επιστήμης & Τέχνης, Μακεδονίας (ΕΙΔΙΚΕΣ ΕΞΕΤΑΣΕΙΣ) | C91: Θεσσαλονίκη | D91: 73 | E91: (***) | F91: =E91*'ΒΟΗΘ'!D89 -> #VALUE! | G91: =IF((F91<='ΒΟΗΘ'!B89),"ΕΠΙΤΥΧΙΑ","") -> #VALUE!
A92: 412 | B92: Πληροφορικής & Τηλεματικής, Χαροκοπείου | C92: Αθήνα | D92: 89 | E92: 1.2 | F92: =E92*'ΒΟΗΘ'!D90 -> 14400 | G92: =IF((F92<='ΒΟΗΘ'!B90),"ΕΠΙΤΥΧΙΑ","") -> 
A93: 612 | B93: Οικονομικής & Διοίκησης Τουρισμού, Αιγαίου | C93: Χίος | D93: 74 | E93: 0.8 | F93: =E93*'ΒΟΗΘ'!D91 -> 9600 | G93: =IF((F93<='ΒΟΗΘ'!B91),"ΕΠΙΤΥΧΙΑ","") -> ΕΠΙΤΥΧΙΑ
A94: 613 | B94: Ανώτερη Σχολή Τουριστικής Εκπαίδευσης Ρόδου (Α.Σ.Τ.Ε.Ρ.) | C94: Ρόδος | D94: 88 | E94: 0.8 | F94: =E94*'ΒΟΗΘ'!D92 -> 9600 | G94: =IF((F94<='ΒΟΗΘ'!B92),"ΕΠΙΤΥΧΙΑ","") -> ΕΠΙΤΥΧΙΑ
A95: 614 | B95: Ανώτερη Σχολή Τουριστικής Εκπαίδευσης Κρήτης (Α.Σ.Τ.Ε.Κ.) | C95: Αγ. Νικόλαος | D95: 88 | E95: 0.8 | F95: =E95*'ΒΟΗΘ'!D93 -> 9600 | G95: =IF((F95<='ΒΟΗΘ'!B93),"ΕΠΙΤΥΧΙΑ","") -> ΕΠΙΤΥΧΙΑ
A96: 669 | B96: Διοίκησης Επιχειρήσεων, Δυτ. Αττικής | C96: Αιγάλεω | D96: 327 | E96: 1.2 | F96: =E96*'ΒΟΗΘ'!D94 -> 14400 | G96: =IF((F96<='ΒΟΗΘ'!B94),"ΕΠΙΤΥΧΙΑ","") -> 
A97: 670 | B97: Διοίκησης Τουρισμού, Δυτ. Αττικής | C97: Αιγάλεω | D97: 269 | E97: 1 | F97: =E97*'ΒΟΗΘ'!D95 -> 12000 | G97: =IF((F97<='ΒΟΗΘ'!B95),"ΕΠΙΤΥΧΙΑ","") -> ΕΠΙΤΥΧΙΑ
A98: 672 | B98: Λογιστικής & Χρηματοοικονομικής, Δυτ. Αττικής | C98: Αιγάλεω | D98: 179 | E98: 1.2 | F98: =E98*'ΒΟΗΘ'!D96 -> 14400 | G98: =IF((F98<='ΒΟΗΘ'!B96),"ΕΠΙΤΥΧΙΑ","") -> 
A99: 673 | B99: Αγωγής & Φροντίδας στην Πρώιμη Παιδική Ηλικία, Δυτ. Αττικής | C99: Ίλιον | D99: 113 | E99: 1 | F99: =E99*'ΒΟΗΘ'!D97 -> 12000 | G99: =IF((F99<='ΒΟΗΘ'!B97),"ΕΠΙΤΥΧΙΑ","") -> ΕΠΙΤΥΧΙΑ
A100: 674 | B100: Γραφιστικής & Οπτικής Επικοινωνίας, Δυτ. Αττικής | C100: Αιγάλεω | D100: 174 | E100: 1 | F100: =E100*'ΒΟΗΘ'!D98 -> 12000 | G100: =IF((F100<='ΒΟΗΘ'!B98),"ΕΠΙΤΥΧΙΑ","") -> ΕΠΙΤΥΧΙΑ
A101: 675 | B101: Εσωτερικής Αρχιτεκτονικής, Δυτ. Αττικής | C101: Αιγάλεω | D101: 94 | E101: 0.9 | F101: =E101*'ΒΟΗΘ'!D99 -> 10800 | G101: =IF((F101<='ΒΟΗΘ'!B99),"ΕΠΙΤΥΧΙΑ","") -> ΕΠΙΤΥΧΙΑ
A102: 677 | B102: Φωτογραφίας & Οπτικοακουστικών Τεχνών, Δυτ. Αττικής | C102: Αιγάλεω | D102: 92 | E102: 1 | F102: =E102*'ΒΟΗΘ'!D100 -> 12000 | G102: =IF((F102<='ΒΟΗΘ'!B100),"ΕΠΙΤΥΧΙΑ","") -> ΕΠΙΤΥΧΙΑ
A103: 817 | B103: Σχολή Πλοιάρχων Εμπορικού Ναυτικού Γεν.Σειρά | C103: Διάφορες | D103: 0 | E103: 0.8 | F103: =E103*'ΒΟΗΘ'!D101 -> 9600 | G103: =IF((F103<='ΒΟΗΘ'!B101),"ΕΠΙΤΥΧΙΑ","") -> ΕΠΙΤΥΧΙΑ
A104: 818 | B104: Σχολή Μηχανικών Εμπορικού Ναυτικού Γεν.Σειρά | C104: Διάφορες | D104: 0 | E104: 0.8 | F104: =E104*'ΒΟΗΘ'!D102 -> 9600 | G104: =IF((F104<='ΒΟΗΘ'!B102),"ΕΠΙΤΥΧΙΑ","") -> ΕΠΙΤΥΧΙΑ
A105: 863 | B105: Μονίμων Υπαξ/κών Στρατού (Σ.Μ.Υ) - Σώματα Γεν. Σειρά | C105: Τρίκαλα | D105: 35 | E105: 1 | F105: =E105*'ΒΟΗΘ'!D103 -> 12000 | G105: =IF((F105<='ΒΟΗΘ'!B103),"ΕΠΙΤΥΧΙΑ","") -> ΕΠΙΤΥΧΙΑ
A106: 864 | B106: Μονίμων Υπαξ/κών Ναυτικού (Σ.Μ.Υ.Ν) Γεν. Σειρά | C106: Αθήνα | D106: 65 | E106: 1 | F106: =E106*'ΒΟΗΘ'!D104 -> 12000 | G106: =IF((F106<='ΒΟΗΘ'!B104),"ΕΠΙΤΥΧΙΑ","") -> ΕΠΙΤΥΧΙΑ
A107: 867 | B107: Οικονομικό (ΣΣΑΣ) Γεν. Σειρά | C107: Θεσσαλονίκη | D107: 19 | E107: 1.2 | F107: =E107*'ΒΟΗΘ'!D105 -> 14400 | G107: =IF((F107<='ΒΟΗΘ'!B105),"ΕΠΙΤΥΧΙΑ","") -> 
A108: 869 | B108: Αξιωματικών Ελλ. Αστυνομίας Γεν. Σειρά | C108: Αθήνα | D108: 31 | E108: 0.8 | F108: =E108*'ΒΟΗΘ'!D106 -> 9600 | G108: =IF((F108<='ΒΟΗΘ'!B106),"ΕΠΙΤΥΧΙΑ","") -> ΕΠΙΤΥΧΙΑ
A109: 870 | B109: Αστυφυλάκων Γεν. Σειρά | C109: Αθήνα | D109: 221 | E109: 0.8 | F109: =E109*'ΒΟΗΘ'!D107 -> 9600 | G109: =IF((F109<='ΒΟΗΘ'!B107),"ΕΠΙΤΥΧΙΑ","") -> ΕΠΙΤΥΧΙΑ
A110: 871 | B110: Τμήμα Ανθυποπυραγών (Πυροσβέστες) Γεν. Σειρά | C110: Αθήνα | D110: 4 | E110: 0.8 | F110: =E110*'ΒΟΗΘ'!D108 -> 9600 | G110: =IF((F110<='ΒΟΗΘ'!B108),"ΕΠΙΤΥΧΙΑ","") -> ΕΠΙΤΥΧΙΑ
A111: 872 | B111: Αξιωματικών Ελλ. Αστυνομίας (Αστυνομικοί) Γεν. Σειρά | C111: Αθήνα | D111: 22 | E111: 0.8 | F111: =E111*'ΒΟΗΘ'!D109 -> 9600 | G111: =IF((F111<='ΒΟΗΘ'!B109),"ΕΠΙΤΥΧΙΑ","") -> ΕΠΙΤΥΧΙΑ
A112: 876 | B112: Σχολή Πυροσβεστών Γεν. Σειρά | C112: Αθήνα | D112: 131 | E112: 0.8 | F112: =E112*'ΒΟΗΘ'!D110 -> 9600 | G112: =IF((F112<='ΒΟΗΘ'!B110),"ΕΠΙΤΥΧΙΑ","") -> ΕΠΙΤΥΧΙΑ
A113: 877 | B113: Σχολή Αξιωματικών Πυροσβεστικής Ακαδημίας Γεν. Σειρά | C113: Αθήνα | D113: 16 | E113: 0.8 | F113: =E113*'ΒΟΗΘ'!D111 -> 9600 | G113: =IF((F113<='ΒΟΗΘ'!B111),"ΕΠΙΤΥΧΙΑ","") -> ΕΠΙΤΥΧΙΑ
A114: 880 | B114: ΣΜΥΑ - Κατ/νση Διοικητικής και Εφοδιαστικής Υποστήριξης Γεν. Σειρά | C114: Αθήνα | D114: 18 | E114: 1 | F114: =E114*'ΒΟΗΘ'!D112 -> 12000 | G114: =IF((F114<='ΒΟΗΘ'!B112),"ΕΠΙΤΥΧΙΑ","") -> ΕΠΙΤΥΧΙΑ
A115: 881 | B115: Σχολή Δοκίμων Σημαιοφόρων Λιμενικού Σώματος - Ελληνικής Ακτοφυλακής (Σ.Δ.Σ.Λ.Σ. -ΕΛ.ΑΚΤ.), ΝΕΟ | C115: Αθήνα | D115: 21 | E115: 0.9 | F115: =E115*'ΒΟΗΘ'!D113 -> 10800 | G115: =IF((F115<='ΒΟΗΘ'!B113),"ΕΠΙΤΥΧΙΑ","") -> ΕΠΙΤΥΧΙΑ
A116: 882 | B116: Σχολή Δοκίμων Λιμενοφυλάκων, ΝΕΟ | C116: Αθήνα | D116: 74 | E116: 0.9 | F116: =E116*'ΒΟΗΘ'!D114 -> 10800 | G116: =IF((F116<='ΒΟΗΘ'!B114),"ΕΠΙΤΥΧΙΑ","") -> ΕΠΙΤΥΧΙΑ
A117: 1001 | B117: Αγροτικής Ανάπτυξης, Αγροδιατροφής & Διαχείρισης Φυσικών Πόρων, ΕΚΠΑ, ΝΕΟ | C117: Ψαχνά | D117: 65 | E117: 0.8 | F117: =E117*'ΒΟΗΘ'!D115 -> 9600 | G117: =IF((F117<='ΒΟΗΘ'!B115),"ΕΠΙΤΥΧΙΑ","") -> ΕΠΙΤΥΧΙΑ
A118: 1004 | B118: Διαχείρισης Λιμένων & Ναυτιλίας, ΕΚΠΑ, ΝΕΟ | C118: Ψαχνά | D118: 186 | E118: 0.95 | F118: =E118*'ΒΟΗΘ'!D116 -> 11400 | G118: =IF((F118<='ΒΟΗΘ'!B116),"ΕΠΙΤΥΧΙΑ","") -> ΕΠΙΤΥΧΙΑ
A119: 1005 | B119: Διοίκησης Επιχειρήσεων & Οργανισμών, ΕΚΠΑ, ΝΕΟ | C119: Αθήνα | D119: 81 | E119: 1.2 | F119: =E119*'ΒΟΗΘ'!D117 -> 14400 | G119: =IF((F119<='ΒΟΗΘ'!B117),"ΕΠΙΤΥΧΙΑ","") -> 
A120: 1008 | B120: Τεχνολογιών Ψηφιακής Βιομηχανίας, ΕΚΠΑ, ΝΕΟ | C120: Ψαχνά | D120: 186 | E120: 0.85 | F120: =E120*'ΒΟΗΘ'!D118 -> 10200 | G120: =IF((F120<='ΒΟΗΘ'!B118),"ΕΠΙΤΥΧΙΑ","") -> ΕΠΙΤΥΧΙΑ
A121: 1011 | B121: Ψηφιακών Τεχνών & Κινηματογράφου, ΕΚΠΑ, ΝΕΟ | C121: Ψαχνά | D121: 81 | E121: 0.8 | F121: =E121*'ΒΟΗΘ'!D119 -> 9600 | G121: =IF((F121<='ΒΟΗΘ'!B119),"ΕΠΙΤΥΧΙΑ","") -> ΕΠΙΤΥΧΙΑ
A122: 1063 | B122: Διοίκησης Γεωργικών Επιχειρήσεων & Συστημάτων Εφοδιασμού, Γεωπονικού, ΝΕΟ (πρώην Διοίκησης Συστημάτων Εφοδιασμού, ΤΕΙ Στερεάς Ελλάδας) | C122: Θήβα | D122: 219 | E122: 0.8 | F122: =E122*'ΒΟΗΘ'!D120 -> 9600 | G122: =IF((F122<='ΒΟΗΘ'!B120),"ΕΠΙΤΥΧΙΑ","") -> ΕΠΙΤΥΧΙΑ
A123: 1064 | B123: Περιφερειακής & Οικονομικής Ανάπτυξης, Γεωπονικού, ΝΕΟ | C123: Άμφισσα | D123: 178 | E123: 0.8 | F123: =E123*'ΒΟΗΘ'!D121 -> 9600 | G123: =IF((F123<='ΒΟΗΘ'!B121),"ΕΠΙΤΥΧΙΑ","") -> ΕΠΙΤΥΧΙΑ
A124: 1211 | B124: Επιστήμη & Τεχνολογία Υπολογιστών, Μακεδονίας, ΝΕΟ / Εισαγ. Κατ/νση (Τμ. Εφαρμοσμένης Πληροφορικής) | C124: Θεσσαλονίκη | D124: 109 | E124: 1.2 | F124: =E124*'ΒΟΗΘ'!D122 -> 14400 | G124: =IF((F124<='ΒΟΗΘ'!B122),"ΕΠΙΤΥΧΙΑ","") -> 
A125: 1212 | B125: Πληροφοριακά Συστήματα, Μακεδονίας, ΝΕΟ / Εισαγ. Κατ/νση (Τμ. Εφαρμοσμένης Πληροφορικής) | C125: Θεσσαλονίκη | D125: 109 | E125: 1.2 | F125: =E125*'ΒΟΗΘ'!D123 -> 14400 | G125: =IF((F125<='ΒΟΗΘ'!B123),"ΕΠΙΤΥΧΙΑ","") -> 
A126: 1241 | B126: Αγωγής & Φροντίδας στην Πρώιμη Παιδική Ηλικία, Ιωαννίνων, ΝΕΟ (πρώην Προσχολικής Αγωγής, ΤΕΙ Ηπείρου) | C126: Ιωάννινα | D126: 138 | E126: 0.8 | F126: =E126*'ΒΟΗΘ'!D124 -> 9600 | G126: =IF((F126<='ΒΟΗΘ'!B124),"ΕΠΙΤΥΧΙΑ","") -> ΕΠΙΤΥΧΙΑ
A127: 1244 | B127: Λογιστικής & Χρηματοοικονομικής, Ιωαννίνων, ΝΕΟ (πρώην Λογιστικής & Χρηματοοικονομικής, ΤΕΙ Ηπείρου) | C127: Πρέβεζα | D127: 214 | E127: 0.8 | F127: =E127*'ΒΟΗΘ'!D125 -> 9600 | G127: =IF((F127<='ΒΟΗΘ'!B125),"ΕΠΙΤΥΧΙΑ","") -> ΕΠΙΤΥΧΙΑ
A128: 1248 | B128: Μουσικών Σπουδών, Ιωαννίνων (ΕΙΔΙΚΕΣ ΕΞΕΤΑΣΕΙΣ) | C128: Αρτα | D128: 135 | E128: (***) | F128: =E128*'ΒΟΗΘ'!D126 -> #VALUE! | G128: =IF((F128<='ΒΟΗΘ'!B126),"ΕΠΙΤΥΧΙΑ","") -> #VALUE!
A129: 1250 | B129: Πληροφορικής & Τηλεπικοινωνιών, Ιωαννίνων, ΝΕΟ (πρώην Μηχανικών Πληροφορικής ΤΕ, ΤΕΙ Ηπείρου) | C129: Άρτα | D129: 214 | E129: 0.8 | F129: =E129*'ΒΟΗΘ'!D127 -> 9600 | G129: =IF((F129<='ΒΟΗΘ'!B127),"ΕΠΙΤΥΧΙΑ","") -> ΕΠΙΤΥΧΙΑ
A130: 1282 | B130: Διοικητικής Επιστήμης & Τεχνολογίας, Πατρών, ΝΕΟ (πρώην Διοίκησης Επιχειρήσεων, ΤΕΙ Δυτ. Ελλάδας) | C130: Πάτρα | D130: 235 | E130: 1.02 | F130: =E130*'ΒΟΗΘ'!D128 -> 12240 | G130: =IF((F130<='ΒΟΗΘ'!B128),"ΕΠΙΤΥΧΙΑ","") -> ΕΠΙΤΥΧΙΑ
A131: 1283 | B131: Διοίκησης Τουρισμού, Πατρών, ΝΕΟ (πρώην Τουριστικών Επιχειρήσεων, ΤΕΙ Δυτ. Ελλάδας) | C131: Πάτρα | D131: 138 | E131: 0.9 | F131: =E131*'ΒΟΗΘ'!D129 -> 10800 | G131: =IF((F131<='ΒΟΗΘ'!B129),"ΕΠΙΤΥΧΙΑ","") -> ΕΠΙΤΥΧΙΑ
A132: 1286 | B132: Επιστημών της Εκπαίδευσης & Κοινωνικής Εργασίας, Πατρών, ΝΕΟ (πρώην Παιδαγ. Δημοτικής Εκπ/σης) | C132: Πάτρα | D132: 225 | E132: 1.15 | F132: =E132*'ΒΟΗΘ'!D130 -> 13800 | G132: =IF((F132<='ΒΟΗΘ'!B130),"ΕΠΙΤΥΧΙΑ","") -> 
A133: 1424 | B133: Δασολογίας, Επιστημών Ξύλου & Σχεδιασμού, Θεσσαλίας, ΝΕΟ (πρώην Σχεδ & Τεχν Ξύλου & Επίπλου ΤΕ, ΤΕΙ Θεσσαλίας) | C133: Καρδίτσα | D133: 186 | E133: 0.8 | F133: =E133*'ΒΟΗΘ'!D131 -> 9600 | G133: =IF((F133<='ΒΟΗΘ'!B131),"ΕΠΙΤΥΧΙΑ","") -> ΕΠΙΤΥΧΙΑ
A134: 1427 | B134: Διοίκησης Επιχειρήσεων, Θεσσαλίας, ΝΕΟ (πρώην Διοίκησης Επιχειρήσεων, ΤΕΙ Θεσσαλίας) | C134: Λάρισα | D134: 283 | E134: 0.8 | F134: =E134*'ΒΟΗΘ'!D132 -> 9600 | G134: =IF((F134<='ΒΟΗΘ'!B132),"ΕΠΙΤΥΧΙΑ","") -> ΕΠΙΤΥΧΙΑ
A135: 1430 | B135: Λογιστικής & Χρηματοοικονομικής, Θεσσαλίας, ΝΕΟ (πρώην Λογιστικής & Χρηματοοικονομικής, ΤΕΙ Θεσσαλίας) | C135: Λάρισα | D135: 190 | E135: 0.8 | F135: =E135*'ΒΟΗΘ'!D133 -> 9600 | G135: =IF((F135<='ΒΟΗΘ'!B133),"ΕΠΙΤΥΧΙΑ","") -> ΕΠΙΤΥΧΙΑ
A136: 1435 | B136: Πολιτισμού & Δημιουργικών Μέσων & Βιομηχανιών, Θεσσαλίας, ΝΕΟ | C136: Βόλος | D136: 81 | E136: 0.8 | F136: =E136*'ΒΟΗΘ'!D134 -> 9600 | G136: =IF((F136<='ΒΟΗΘ'!B134),"ΕΠΙΤΥΧΙΑ","") -> ΕΠΙΤΥΧΙΑ
A137: 1439 | B137: Ψηφιακών Συστημάτων, Θεσσαλίας, ΝΕΟ (πρώην Μηχανικών Πληροφορικής ΤΕ, ΤΕΙ Θεσσαλίας) | C137: Λάρισα | D137: 227 | E137: 0.8 | F137: =E137*'ΒΟΗΘ'!D135 -> 9600 | G137: =IF((F137<='ΒΟΗΘ'!B135),"ΕΠΙΤΥΧΙΑ","") -> ΕΠΙΤΥΧΙΑ
A138: 1455 | B138: Τουρισμού, Ιονίου, ΝΕΟ (πρώην Εισ. Κατ. Διοίκηση Τουριστικών Επιχειρήσεων & Επιχ/σεων Φιλοξενίας, ΤΕΙ Ιόνιων Νήσων) | C138: Κέρκυρα | D138: 105 | E138: 0.8 | F138: =E138*'ΒΟΗΘ'!D136 -> 9600 | G138: =IF((F138<='ΒΟΗΘ'!B136),"ΕΠΙΤΥΧΙΑ","") -> ΕΠΙΤΥΧΙΑ
A139: 1456 | B139: Ψηφιακών Μέσων & Επικοινωνίας, Ιονίου, ΝΕΟ (πρώην Ψηφιακών Μέσων & Επικοινωνίας ΤΕ, ΤΕΙ Ιόνιων Νήσων) | C139: Αργοστόλι | D139: 211 | E139: 0.8 | F139: =E139*'ΒΟΗΘ'!D137 -> 9600 | G139: =IF((F139<='ΒΟΗΘ'!B137),"ΕΠΙΤΥΧΙΑ","") -> ΕΠΙΤΥΧΙΑ
A140: 1513 | B140: Λογιστικής & Χρηματοοικονομικής, Πελοποννήσου, ΝΕΟ (πρώην Λογιστικής & Χρηματοοικονομικής, ΤΕΙ Πελοποννήσου) | C140: Καλαμάτα | D140: 170 | E140: 0.8 | F140: =E140*'ΒΟΗΘ'!D138 -> 9600 | G140: =IF((F140<='ΒΟΗΘ'!B138),"ΕΠΙΤΥΧΙΑ","") -> ΕΠΙΤΥΧΙΑ
A141: 1514 | B141: Διοίκησης Επιχειρήσεων & Οργανισμών, Πελοποννήσου, ΝΕΟ (πρώην Διοίκ Μονάδων Υγείας & Πρόνοιας, ΤΕΙ Πελοπον) | C141: Καλαμάτα | D141: 316 | E141: 0.8 | F141: =E141*'ΒΟΗΘ'!D139 -> 9600 | G141: =IF((F141<='ΒΟΗΘ'!B139),"ΕΠΙΤΥΧΙΑ","") -> ΕΠΙΤΥΧΙΑ
A142: 1517 | B142: Παραστατικών & Ψηφιακών Τεχνών, Πελοποννήσου, ΝΕΟ | C142: Ναύπλιον | D142: 113 | E142: 0.8 | F142: =E142*'ΒΟΗΘ'!D140 -> 9600 | G142: =IF((F142<='ΒΟΗΘ'!B140),"ΕΠΙΤΥΧΙΑ","") -> ΕΠΙΤΥΧΙΑ
A143: 1518 | B143: Διοικητικής Επιστήμης & Τεχνολογίας, Πελοποννήσου, ΝΕΟ | C143: Τρίπολη | D143: 121 | E143: 0.8 | F143: =E143*'ΒΟΗΘ'!D141 -> 9600 | G143: =IF((F143<='ΒΟΗΘ'!B141),"ΕΠΙΤΥΧΙΑ","") -> ΕΠΙΤΥΧΙΑ
A144: 1519 | B144: Ψηφιακών Συστημάτων, Πελοποννήσου, ΝΕΟ (πρώην Μηχανικών Πληροφορικής ΤΕ, ΤΕΙ Πελοποννήσου) | C144: Σπάρτη | D144: 162 | E144: 0.8 | F144: =E144*'ΒΟΗΘ'!D142 -> 9600 | G144: =IF((F144<='ΒΟΗΘ'!B142),"ΕΠΙΤΥΧΙΑ","") -> ΕΠΙΤΥΧΙΑ
A145: 1542 | B145: Μηχανικών Σχεδίασης Προϊόντων & Συστημάτων, Δυτ. Μακεδονίας, ΝΕΟ | C145: Κοζάνη | D145: 171 | E145: 0.8 | F145: =E145*'ΒΟΗΘ'!D143 -> 9600 | G145: =IF((F145<='ΒΟΗΘ'!B143),"ΕΠΙΤΥΧΙΑ","") -> ΕΠΙΤΥΧΙΑ
A146: 1543 | B146: Περιφερειακής & Διασυνοριακής Ανάπτυξης, Δυτ. Μακεδονίας, ΝΕΟ | C146: Κοζάνη | D146: 259 | E146: 0.8 | F146: =E146*'ΒΟΗΘ'!D144 -> 9600 | G146: =IF((F146<='ΒΟΗΘ'!B144),"ΕΠΙΤΥΧΙΑ","") -> ΕΠΙΤΥΧΙΑ
A147: 1544 | B147: Διοικητικής Επιστήμης & Τεχνολογίας, Δυτ. Μακεδονίας, ΝΕΟ (πρώην Διοίκησης Επιχειρήσεων, ΤΕΙ Δυτ. Μακεδονίας) | C147: Κοζάνη | D147: 324 | E147: 0.8 | F147: =E147*'ΒΟΗΘ'!D145 -> 9600 | G147: =IF((F147<='ΒΟΗΘ'!B145),"ΕΠΙΤΥΧΙΑ","") -> ΕΠΙΤΥΧΙΑ
A148: 1545 | B148: Λογιστικής & Χρηματοοικονομικής, Δυτ. Μακεδονίας, ΝΕΟ (πρώην Λογιστ & Χρηματοοικ, ΤΕΙ Δυτ. Μακεδονίας) | C148: Κοζάνη | D148: 381 | E148: 0.8 | F148: =E148*'ΒΟΗΘ'!D146 -> 9600 | G148: =IF((F148<='ΒΟΗΘ'!B146),"ΕΠΙΤΥΧΙΑ","") -> ΕΠΙΤΥΧΙΑ
A149: 1546 | B149: Οργάνωσης & Διοίκησης Επιχειρήσεων, Δυτ. Μακεδονίας, ΝΕΟ (πρώην Διοίκ Επιχειρήσεων, ΤΕΙ Δυτ. Μακεδονίας / Εισαγ Κατεύθ) | C149: Γρεβενά | D149: 366 | E149: 0.8 | F149: =E149*'ΒΟΗΘ'!D147 -> 9600 | G149: =IF((F149<='ΒΟΗΘ'!B147),"ΕΠΙΤΥΧΙΑ","") -> ΕΠΙΤΥΧΙΑ
A150: 1547 | B150: Στατιστικής & Ασφαλιστικής Επιστήμης, Δυτ. Μακεδονίας, ΝΕΟ | C150: Γρεβενά | D150: 266 | E150: 0.8 | F150: =E150*'ΒΟΗΘ'!D148 -> 9600 | G150: =IF((F150<='ΒΟΗΘ'!B148),"ΕΠΙΤΥΧΙΑ","") -> ΕΠΙΤΥΧΙΑ
A151: 1548 | B151: Οικονομικών Επιστημών, Δυτ. Μακεδονίας, ΝΕΟ (πρώην Διεθνούς Εμπορίου, ΤΕΙ Δυτ. Μακεδονίας) | C151: Καστοριά | D151: 93 | E151: 0.8 | F151: =E151*'ΒΟΗΘ'!D149 -> 9600 | G151: =IF((F151<='ΒΟΗΘ'!B149),"ΕΠΙΤΥΧΙΑ","") -> ΕΠΙΤΥΧΙΑ
A152: 1549 | B152: Διεθνών & Ευρωπαϊκών Οικονομικών Σπουδών, Δυτ. Μακεδονίας, ΝΕΟ | C152: Κοζάνη | D152: 283 | E152: 0.8 | F152: =E152*'ΒΟΗΘ'!D150 -> 9600 | G152: =IF((F152<='ΒΟΗΘ'!B150),"ΕΠΙΤΥΧΙΑ","") -> ΕΠΙΤΥΧΙΑ
A153: 1551 | B153: Επικοινωνίας & Ψηφιακών Μέσων, Δυτ. Μακεδονίας, ΝΕΟ (πρώην Ψηφιακών Μέσων & Επικοινωνίας ΤΕ, ΤΕΙ Δυτ. Μακεδονίας) | C153: Καστοριά | D153: 178 | E153: 0.96 | F153: =E153*'ΒΟΗΘ'!D151 -> 11520 | G153: =IF((F153<='ΒΟΗΘ'!B151),"ΕΠΙΤΥΧΙΑ","") -> ΕΠΙΤΥΧΙΑ
A154: 1554 | B154: Πληροφορικής, Δυτ. Μακεδονίας, ΝΕΟ (πρώην Μηχανικών Πληροφορικής ΤΕ, ΤΕΙ Δυτ. Μακεδονίας) | C154: Καστοριά | D154: 202 | E154: 0.8 | F154: =E154*'ΒΟΗΘ'!D152 -> 9600 | G154: =IF((F154<='ΒΟΗΘ'!B152),"ΕΠΙΤΥΧΙΑ","") -> ΕΠΙΤΥΧΙΑ
A155: 1601 | B155: Οργάνωσης & Διοίκησης Επιχειρήσεων, ΔΙ.ΠΑ.Ε., ΝΕΟ (πρώην Διοίκησης Επιχειρήσεων, ΤΕΙ Κεντρικής Μακεδονίας) | C155: Σέρρες | D155: 227 | E155: 0.8 | F155: =E155*'ΒΟΗΘ'!D153 -> 9600 | G155: =IF((F155<='ΒΟΗΘ'!B153),"ΕΠΙΤΥΧΙΑ","") -> ΕΠΙΤΥΧΙΑ
A156: 1602 | B156: Οικονομικών Επιστημών ΔΙ.ΠΑ.Ε., ΝΕΟ (πρώην Λογιστικής & Χρηματοοικονομικής, ΤΕΙ Κεντρ. Μακεδονίας) | C156: Σέρρες | D156: 227 | E156: 0.8 | F156: =E156*'ΒΟΗΘ'!D154 -> 9600 | G156: =IF((F156<='ΒΟΗΘ'!B154),"ΕΠΙΤΥΧΙΑ","") -> ΕΠΙΤΥΧΙΑ
A157: 1603 | B157: Διοίκησης Εφοδιαστικής Αλυσίδας, ΔΙ.ΠΑ.Ε., ΝΕΟ (πρώην Διοίκησης Συστημάτων Εφοδιασμού,ΤΕΙ Κεντρ. Μακεδονίας) | C157: Κατερίνη | D157: 146 | E157: 0.8 | F157: =E157*'ΒΟΗΘ'!D155 -> 9600 | G157: =IF((F157<='ΒΟΗΘ'!B155),"ΕΠΙΤΥΧΙΑ","") -> ΕΠΙΤΥΧΙΑ
A158: 1604 | B158: Λογιστικής & Χρηματοοικονομικής, ΔΙ.ΠΑ.Ε., ΝΕΟ (πρώην Λογιστικής & Χρηματοοικονομικής, ΤΕΙ Ανατ. Μακεδ. & Θράκης) | C158: Καβάλα | D158: 283 | E158: 0.8 | F158: =E158*'ΒΟΗΘ'!D156 -> 9600 | G158: =IF((F158<='ΒΟΗΘ'!B156),"ΕΠΙΤΥΧΙΑ","") -> ΕΠΙΤΥΧΙΑ
A159: 1605 | B159: Διοίκησης Οργανισμών, Μάρκετινγκ & Τουρισμού, ΔΙ.ΠΑ.Ε., ΝΕΟ (πρώην Διοίκηση Τουριστ Επιχειρ & Φιλοξενίας, ΤΕΙ Θεσσαλονίκης) | C159: Θεσσαλονίκη | D159: 259 | E159: 1.1 | F159: =E159*'ΒΟΗΘ'!D157 -> 13200 | G159: =IF((F159<='ΒΟΗΘ'!B157),"ΕΠΙΤΥΧΙΑ","") -> 
A160: 1606 | B160: Λογιστικής & Πληροφοριακών Συστημάτων ΔΙ.ΠΑ.Ε., ΝΕΟ (πρώην Λογιστικής & Χρηματοοικονομικής, ΤΕΙ Θεσσαλονίκης) | C160: Θεσσαλονίκη | D160: 138 | E160: 1.1 | F160: =E160*'ΒΟΗΘ'!D158 -> 13200 | G160: =IF((F160<='ΒΟΗΘ'!B158),"ΕΠΙΤΥΧΙΑ","") -> 
A161: 1607 | B161: Διοικητικής Επιστήμης & Τεχνολογίας ΔΙ.ΠΑ.Ε., ΝΕΟ (πρώην Διοίκησης Επιχειρήσεων, ΤΕΙ Ανατ. Μακ. & Θράκης) | C161: Καβάλα | D161: 271 | E161: 0.8 | F161: =E161*'ΒΟΗΘ'!D159 -> 9600 | G161: =IF((F161<='ΒΟΗΘ'!B159),"ΕΠΙΤΥΧΙΑ","") -> ΕΠΙΤΥΧΙΑ
A162: 1610 | B162: Αγωγής & Φροντίδας στην Πρώιμη Παιδική Ηλικία, ΔΙ.ΠΑ.Ε., ΝΕΟ (πρώην Προσχολικής Αγωγής, ΤΕΙ Θεσσαλονίκης) | C162: Θεσσαλονίκη | D162: 113 | E162: 0.8 | F162: =E162*'ΒΟΗΘ'!D160 -> 9600 | G162: =IF((F162<='ΒΟΗΘ'!B160),"ΕΠΙΤΥΧΙΑ","") -> ΕΠΙΤΥΧΙΑ
A163: 1622 | B163: Μηχανικών Πληροφορικής, Υπολογιστών & Τηλεπικοινωνιών, ΔΙ.ΠΑ.Ε., ΝΕΟ (πρώην Μηχ Πληροφορικής ΤΕ, ΤΕΙ Κεντρ. Μακεδονίας) | C163: Σέρρες | D163: 130 | E163: 1 | F163: =E163*'ΒΟΗΘ'!D161 -> 12000 | G163: =IF((F163<='ΒΟΗΘ'!B161),"ΕΠΙΤΥΧΙΑ","") -> ΕΠΙΤΥΧΙΑ
A164: 1624 | B164: Μηχανικών Παραγωγής & Διοίκησης, ΔΙ.ΠΑ.Ε., ΝΕΟ | C164: Θεσσαλονίκη | D164: 178 | E164: 1.1 | F164: =E164*'ΒΟΗΘ'!D162 -> 13200 | G164: =IF((F164<='ΒΟΗΘ'!B162),"ΕΠΙΤΥΧΙΑ","") -> 
A165: 1625 | B165: Μηχανικών Πληροφορικής & Ηλεκτρονικών Συστημάτων, ΔΙ.ΠΑ.Ε., ΝΕΟ (πρώην Μηχανικών Πληροφορικής ΤΕ, ΤΕΙ Θεσσαλονίκης) | C165: Θεσσαλονίκη | D165: 162 | E165: 1.2 | F165: =E165*'ΒΟΗΘ'!D163 -> 14400 | G165: =IF((F165<='ΒΟΗΘ'!B163),"ΕΠΙΤΥΧΙΑ","") -> 
A166: 1626 | B166: Εσωτερικής Αρχιτεκτονικής, ΔΙ.ΠΑ.Ε., ΝΕΟ (πρώην Εσωτερικής Αρχιτεκτονικής, Διακόσμησης & Σχεδιασμού Αντικειμένων, ΤΕΙ Κεντρ. Μακεδονίας) | C166: Σέρρες | D166: 84 | E166: 0.8 | F166: =E166*'ΒΟΗΘ'!D164 -> 9600 | G166: =IF((F166<='ΒΟΗΘ'!B164),"ΕΠΙΤΥΧΙΑ","") -> ΕΠΙΤΥΧΙΑ
A167: 1627 | B167: Δημιουργικού Σχεδιασμού & Ένδυσης, ΔΙ.ΠΑ.Ε. ΝΕΟ (πρώην Σχεδιασμού & Τεχνολογίας Ένδυσης, ΤΕΙ Κεντρ. Μακεδονίας) | C167: Κιλκίς | D167: 133 | E167: 0.8 | F167: =E167*'ΒΟΗΘ'!D165 -> 9600 | G167: =IF((F167<='ΒΟΗΘ'!B165),"ΕΠΙΤΥΧΙΑ","") -> ΕΠΙΤΥΧΙΑ
A168: 1630 | B168: Πληροφορικής, ΔΙ.ΠΑ.Ε., ΝΕΟ (πρώην Μηχανικών Πληροφορικής ΤΕ, ΤΕΙ Ανατ. Μακεδ. & Θράκης) | C168: Καβάλα | D168: 194 | E168: 1.1 | F168: =E168*'ΒΟΗΘ'!D166 -> 13200 | G168: =IF((F168<='ΒΟΗΘ'!B166),"ΕΠΙΤΥΧΙΑ","") -> 
A169: 1654 | B169: Λογιστικής & Χρηματοοικονομικής, ΕΛ.ΜΕ.ΠΑ., ΝΕΟ (πρώην Λογιστικής & Χρηματοοικονομικής, ΤΕΙ Κρήτης) | C169: Ηράκλειο | D169: 194 | E169: 0.8 | F169: =E169*'ΒΟΗΘ'!D167 -> 9600 | G169: =IF((F169<='ΒΟΗΘ'!B167),"ΕΠΙΤΥΧΙΑ","") -> ΕΠΙΤΥΧΙΑ
A170: 1655 | B170: Διοίκησης Επιχειρήσεων & Τουρισμού, ΕΛ.ΜΕ.ΠΑ., ΝΕΟ (πρώην Διοίκηση Τουριστικών Επιχειρήσεων & Επιχ/σεων Φιλοξενίας, ΤΕΙ Κρήτης) | C170: Ηράκλειο | D170: 243 | E170: 0.9 | F170: =E170*'ΒΟΗΘ'!D168 -> 10800 | G170: =IF((F170<='ΒΟΗΘ'!B168),"ΕΠΙΤΥΧΙΑ","") -> ΕΠΙΤΥΧΙΑ
A171: 1656 | B171: Διοικητικής Επιστήμης & Τεχνολογίας, ΕΛ.ΜΕ.ΠΑ., ΝΕΟ (πρώην Διοίκησης Επιχειρήσεων, ΤΕΙ Κρήτης) | C171: Αγ. Νικόλαος | D171: 186 | E171: 0.8 | F171: =E171*'ΒΟΗΘ'!D169 -> 9600 | G171: =IF((F171<='ΒΟΗΘ'!B169),"ΕΠΙΤΥΧΙΑ","") -> ΕΠΙΤΥΧΙΑ
A172: 1662 | B172: Ηλεκτρονικών Μηχανικών, ΕΛ.ΜΕ.ΠΑ., ΝΕΟ (πρώην Ηλεκτρονικών Μηχανικών ΤΕ, ΤΕΙ Κρήτης) | C172: Χανιά | D172: 150 | E172: 0.8 | F172: =E172*'ΒΟΗΘ'!D170 -> 9600 | G172: =IF((F172<='ΒΟΗΘ'!B170),"ΕΠΙΤΥΧΙΑ","") -> ΕΠΙΤΥΧΙΑ
A173: 1664 | B173: Μουσικής Τεχνολογίας & Ακουστικής, ΕΛ.ΜΕ.ΠΑ., ΝΕΟ (πρώην Μηχανικών Μουσικής Τεχνολογίας & Ακουστικής ΤΕ, ΤΕΙ Κρήτης) | C173: Ρέθυμνο | D173: 130 | E173: 0.8 | F173: =E173*'ΒΟΗΘ'!D171 -> 9600 | G173: =IF((F173<='ΒΟΗΘ'!B171),"ΕΠΙΤΥΧΙΑ","") -> ΕΠΙΤΥΧΙΑ

Sheet ΒΟΗΘ (hidden)
B1: ΜΑΘΗΤΗΣ | D1: ΠΑΝΕΛΛΗΝΙΕΣ
B2: ΜΟΡΙΑ | D2: ΜΕΣΟΣ ΟΡΟΣ
B3: ='ΕΙΣΑΓΩΓΗ ΒΑΘΜΟΛΟΓΙΑΣ'!K9 -> 12540 | D3: ='ΕΙΣΑΓΩΓΗ ΒΑΘΜΟΛΟΓΙΑΣ'!F14 -> 12000
B4: =B3 -> 12540 | D4: =D3 -> 12000
B5: 12540 | D5: 12000
B6: 12540 | D6: 12000
B7: 12540 | D7: 12000
B8: 12540 | D8: 12000
B9: 12540 | D9: 12000
B10: 12540 | D10: 12000
B11: 12540 | D11: 12000
B12: 12540 | D12: 12000
B13: 12540 | D13: 12000
B14: 12540 | D14: 12000
B15: 12540 | D15: 12000
B16: 12540 | D16: 12000
B17: 12540 | D17: 12000
B18: 12540 | D18: 12000
B19: 12540 | D19: 12000
B20: 12540 | D20: 12000
B21: 12540 | D21: 12000
B22: 12540 | D22: 12000
B23: 12540 | D23: 12000
B24: 12540 | D24: 12000
B25: 12540 | D25: 12000
B26: 12540 | D26: 12000
B27: 12540 | D27: 12000
B28: 12540 | D28: 12000
B29: 12540 | D29: 12000
B30: 12540 | D30: 12000
B31: 12540 | D31: 12000
B32: 12540 | D32: 12000
B33: 12540 | D33: 12000
B34: 12540 | D34: 12000
B35: 12540 | D35: 12000
B36: 12540 | D36: 12000
B37: 12540 | D37: 12000
B38: 12540 | D38: 12000
B39: 12540 | D39: 12000
B40: 12540 | D40: 12000
B41: 12540 | D41: 12000
B42: 12540 | D42: 12000
B43: 12540 | D43: 12000
B44: 12540 | D44: 12000
B45: 12540 | D45: 12000
B46: 12540 | D46: 12000
B47: 12540 | D47: 12000
B48: 12540 | D48: 12000
B49: 12540 | D49: 12000
B50: 12540 | D50: 12000
B51: 12540 | D51: 12000
B52: 12540 | D52: 12000
B53: 12540 | D53: 12000
B54: 12540 | D54: 12000
B55: 12540 | D55: 12000
B56: 12540 | D56: 12000
B57: 12540 | D57: 12000
B58: 12540 | D58: 12000
B59: 12540 | D59: 12000
B60: 12540 | D60: 12000
B61: 12540 | D61: 12000
B62: 12540 | D62: 12000
B63: 12540 | D63: 12000
B64: 12540 | D64: 12000
B65: 12540 | D65: 12000
B66: 12540 | D66: 12000
B67: 12540 | D67: 12000
B68: 12540 | D68: 12000
B69: 12540 | D69: 12000
B70: 12540 | D70: 12000
B71: 12540 | D71: 12000
B72: 12540 | D72: 12000
B73: 12540 | D73: 12000
B74: 12540 | D74: 12000
B75: 12540 | D75: 12000
B76: 12540 | D76: 12000
B77: 12540 | D77: 12000
B78: 12540 | D78: 12000
B79: 12540 | D79: 12000
B80: 12540 | D80: 12000
B81: 12540 | D81: 12000
B82: 12540 | D82: 12000
B83: 12540 | D83: 12000
B84: 12540 | D84: 12000
B85: 12540 | D85: 12000
B86: 12540 | D86: 12000
B87: 12540 | D87: 12000
B88: 12540 | D88: 12000
B89: 12540 | D89: 12000
B90: 12540 | D90: 12000
B91: 12540 | D91: 12000
B92: 12540 | D92: 12000
B93: 12540 | D93: 12000
B94: 12540 | D94: 12000
B95: 12540 | D95: 12000
B96: 12540 | D96: 12000
B97: 12540 | D97: 12000
B98: 12540 | D98: 12000
B99: 12540 | D99: 12000
B100: 12540 | D100: 12000
B101: 12540 | D101: 12000
B102: 12540 | D102: 12000
B103: 12540 | D103: 12000
B104: 12540 | D104: 12000
B105: 12540 | D105: 12000
B106: 12540 | D106: 12000
B107: 12540 | D107: 12000
B108: 12540 | D108: 12000
B109: 12540 | D109: 12000
B110: 12540 | D110: 12000
B111: 12540 | D111: 12000
B112: 12540 | D112: 12000
B113: 12540 | D113: 12000
B114: 12540 | D114: 12000
B115: 12540 | D115: 12000
B116: 12540 | D116: 12000
B117: 12540 | D117: 12000
B118: 12540 | D118: 12000
B119: 12540 | D119: 12000
B120: 12540 | D120: 12000
B121: 12540 | D121: 12000
B122: 12540 | D122: 12000
B123: 12540 | D123: 12000
B124: 12540 | D124: 12000
B125: 12540 | D125: 12000
B126: 12540 | D126: 12000
B127: 12540 | D127: 12000
B128: 12540 | D128: 12000
B129: 12540 | D129: 12000
B130: 12540 | D130: 12000
B131: 12540 | D131: 12000
B132: 12540 | D132: 12000
B133: 12540 | D133: 12000
B134: 12540 | D134: 12000
B135: 12540 | D135: 12000
B136: 12540 | D136: 12000
B137: 12540 | D137: 12000
B138: 12540 | D138: 12000
B139: 12540 | D139: 12000
B140: 12540 | D140: 12000
B141: 12540 | D141: 12000
B142: 12540 | D142: 12000
B143: 12540 | D143: 12000
B144: 12540 | D144: 12000
B145: 12540 | D145: 12000
B146: 12540 | D146: 12000
B147: 12540 | D147: 12000
B148: 12540 | D148: 12000
B149: 12540 | D149: 12000
B150: 12540 | D150: 12000
B151: 12540 | D151: 12000
B152: 12540 | D152: 12000
B153: 12540 | D153: 12000
B154: 12540 | D154: 12000
B155: 12540 | D155: 12000
B156: 12540 | D156: 12000
B157: 12540 | D157: 12000
B158: 12540 | D158: 12000
B159: 12540 | D159: 12000
B160: 12540 | D160: 12000
B161: 12540 | D161: 12000
B162: 12540 | D162: 12000
B163: 12540 | D163: 12000
B164: 12540 | D164: 12000
B165: 12540 | D165: 12000
B166: 12540 | D166: 12000
B167: 12540 | D167: 12000
B168: 12540 | D168: 12000
B169: 12540 | D169: 12000
B170: 12540 | D170: 12000
B171: 12540 | D171: 12000
B172: 12540 | D172: 12000
B173: 12540 | D173: 12000
B174: 12540 | D174: 12000
B175: 12540 | D175: 12000
B176: 12540 | D176: 12000
B177: 12540 | D177: 12000
B178: 12540 | D178: 12000
B179: 12540 | D179: 12000
B180: 12540 | D180: 12000
B181: 12540 | D181: 12000
B182: 12540 | D182: 12000
B183: 12540 | D183: 12000
B184: 12540 | D184: 12000
B185: 12540 | D185: 12000
B186: 12540 | D186: 12000
B187: 12540 | D187: 12000
B188: 12540 | D188: 12000
B189: 12540 | D189: 12000
B190: 12540 | D190: 12000
B191: 12540 | D191: 12000
B192: 12540 | D192: 12000
B193: 12540 | D193: 12000
B194: 12540 | D194: 12000
B195: 12540 | D195: 12000
B196: 12540 | D196: 12000
B197: 12540 | D197: 12000
B198: 12540 | D198: 12000
B199: 12540 | D199: 12000
B200: 12540 | D200: 12000
... 145 more rows
